Date of Payment,Expense Type,Expense Area,Supplier,Transaction Number,Amount,Department,Entity
03/07/2012,HIRED STAFF,FUSION,TRASYS,5100276735,5748.00,United Kingdom Atomic Energy Authority,United Kingdom Atomic Energy Authority
04/07/2012,HIRED STAFF,FUSION,TRASYS,5100276736,11663.85,United Kingdom Atomic Energy Authority,United Kingdom Atomic Energy Authority
03/07/2012,HIRED STAFF,FUSION,TRASYS,5100276737,7240.05,United Kingdom Atomic Energy Authority,United Kingdom Atomic Energy Authority
03/07/2012,HIRED STAFF,FUSION,TRASYS,5100276797,7068.38,United Kingdom Atomic Energy Authority,United Kingdom Atomic Energy Authority
09/07/2012,PROFESSIONAL SERVICES,FUSION,AMEC NUCLEAR UK LIMITED,5100276908,10850.59,United Kingdom Atomic Energy Authority,United Kingdom Atomic Energy Authority
09/07/2012,TRAVEL,SUPPORT SERVICES,CAPITA BUSINESS TRAVEL,5100277038,26434.85,United Kingdom Atomic Energy Authority,United Kingdom Atomic Energy Authority
09/07/2012,HIRED STAFF,FUSION,TESSELLA PLC,5100277046,9350.10,United Kingdom Atomic Energy Authority,United Kingdom Atomic Energy Authority
09/07/2012,HIRED STAFF,FUSION,TESSELLA PLC,5100277047,5918.22,United Kingdom Atomic Energy Authority,United Kingdom Atomic Energy Authority
09/07/2012,HIRED STAFF,FUSION,TESSELLA PLC,5100277048,7662.24,United Kingdom Atomic Energy Authority,United Kingdom Atomic Energy Authority
09/07/2012,HIRED STAFF,FUSION,TESSELLA PLC,5100277049,4616.01,United Kingdom Atomic Energy Authority,United Kingdom Atomic Energy Authority
16/07/2012,PROFESSIONAL SERVICES,FUSION,OXFORD TECHNOLOGIES LTD (CB),5100277125,3373.65,United Kingdom Atomic Energy Authority,United Kingdom Atomic Energy Authority
16/07/2012,PROFESSIONAL SERVICES,FUSION,OXFORD TECHNOLOGIES LTD (CB),5100277126,2023.78,United Kingdom Atomic Energy Authority,United Kingdom Atomic Energy Authority
16/07/2012,PROFESSIONAL SERVICES,FUSION,OXFORD TECHNOLOGIES LTD (CB),5100277127,5782.05,United Kingdom Atomic Energy Authority,United Kingdom Atomic Energy Authority
16/07/2012,PROFESSIONAL SERVICES,FUSION,OXFORD TECHNOLOGIES LTD (CB),5100277128,2253.75,United Kingdom Atomic Energy Authority,United Kingdom Atomic Energy Authority
16/07/2012,PROFESSIONAL SERVICES,FUSION,OXFORD TECHNOLOGIES LTD (CB),5100277129,3522.68,United Kingdom Atomic Energy Authority,United Kingdom Atomic Energy Authority
16/07/2012,PROFESSIONAL SERVICES,FUSION,OXFORD TECHNOLOGIES LTD (CB),5100277130,2449.00,United Kingdom Atomic Energy Authority,United Kingdom Atomic Energy Authority
16/07/2012,PROFESSIONAL SERVICES,FUSION,OXFORD TECHNOLOGIES LTD,5100277131,514.62,United Kingdom Atomic Energy Authority,United Kingdom Atomic Energy Authority
16/07/2012,PROFESSIONAL SERVICES,FUSION,OXFORD TECHNOLOGIES LTD,5100277132,1002.15,United Kingdom Atomic Energy Authority,United Kingdom Atomic Energy Authority
11/07/2012,IT EQUIPMENT NON CAPITAL,,JIGSAW SYSTEMS LTD,5100277168,3790.49,United Kingdom Atomic Energy Authority,United Kingdom Atomic Energy Authority
16/07/2012,PROFESSIONAL SERVICES,FUSION,OXFORD TECHNOLOGIES LTD (CB),5100277171,3862.07,United Kingdom Atomic Energy Authority,United Kingdom Atomic Energy Authority
16/07/2012,HIRED STAFF,FUSION,GENTLE ASSOCIATES LTD,5100277263,4716.00,United Kingdom Atomic Energy Authority,United Kingdom Atomic Energy Authority
16/07/2012,REPAIRS & MAINTENANCE,,COMPRESSOR ENGINEERING LTD,5100277336,7430.00,United Kingdom Atomic Energy Authority,United Kingdom Atomic Energy Authority
23/07/2012,HIRED STAFF,FUSION,RULLION ENGINEERING PERSONNEL LTD,5100277360,617460.60,United Kingdom Atomic Energy Authority,United Kingdom Atomic Energy Authority
18/07/2012,HIRED STAFF,FUSION,PELICAN SOFTWARE LTD,5100277437,4366.97,United Kingdom Atomic Energy Authority,United Kingdom Atomic Energy Authority
18/07/2012,HIRED STAFF,FUSION,PELICAN SOFTWARE LTD,5100277438,3775.24,United Kingdom Atomic Energy Authority,United Kingdom Atomic Energy Authority
18/07/2012,HIRED STAFF,FUSION,PELICAN SOFTWARE LTD,5100277439,4603.05,United Kingdom Atomic Energy Authority,United Kingdom Atomic Energy Authority
18/07/2012,HIRED STAFF,FUSION,BLACK DIAMOND UMBRELLA LTD,5100277466,905.94,United Kingdom Atomic Energy Authority,United Kingdom Atomic Energy Authority
18/07/2012,HIRED STAFF,FUSION,BLACK DIAMOND UMBRELLA LTD,5100277467,614.41,United Kingdom Atomic Energy Authority,United Kingdom Atomic Energy Authority
18/07/2012,HIRED STAFF,FUSION,BLACK DIAMOND UMBRELLA LTD,5100277468,827.89,United Kingdom Atomic Energy Authority,United Kingdom Atomic Energy Authority
18/07/2012,HIRED STAFF,FUSION,BLACK DIAMOND UMBRELLA LTD,5100277469,1238.00,United Kingdom Atomic Energy Authority,United Kingdom Atomic Energy Authority
18/07/2012,HIRED STAFF,FUSION,BLACK DIAMOND UMBRELLA LTD,5100277470,469.95,United Kingdom Atomic Energy Authority,United Kingdom Atomic Energy Authority
18/07/2012,HIRED STAFF,FUSION,BLACK DIAMOND UMBRELLA LTD,5100277471,1174.88,United Kingdom Atomic Energy Authority,United Kingdom Atomic Energy Authority
18/07/2012,HIRED STAFF,FUSION,BLACK DIAMOND UMBRELLA LTD,5100277472,877.24,United Kingdom Atomic Energy Authority,United Kingdom Atomic Energy Authority
18/07/2012,HIRED STAFF,FUSION,BLACK DIAMOND UMBRELLA LTD,5100277473,3986.55,United Kingdom Atomic Energy Authority,United Kingdom Atomic Energy Authority
18/07/2012,HIRED STAFF,FUSION,BLACK DIAMOND UMBRELLA LTD,5100277474,4615.56,United Kingdom Atomic Energy Authority,United Kingdom Atomic Energy Authority
25/07/2012,HIRED STAFF,FUSION,TRASYS,5100277693,7475.88,United Kingdom Atomic Energy Authority,United Kingdom Atomic Energy Authority
25/07/2012,HIRED STAFF,FUSION,TRASYS,5100277694,5728.88,United Kingdom Atomic Energy Authority,United Kingdom Atomic Energy Authority
25/07/2012,HIRED STAFF,FUSION,TRASYS,5100277695,6033.38,United Kingdom Atomic Energy Authority,United Kingdom Atomic Energy Authority
25/07/2012,HIRED STAFF,FUSION,TRASYS,5100277697,11133.68,United Kingdom Atomic Energy Authority,United Kingdom Atomic Energy Authority
23/07/2012,BUILDING REPAIRS,FUSION,KNOWLES & SONS (OXFORD) LTD,5100277535,23.65,United Kingdom Atomic Energy Authority,United Kingdom Atomic Energy Authority
02/07/2012,OTHER EXTERNAL COSTS,FUSION,VISITOR EXPENSES,1900057153,2661.23,United Kingdom Atomic Energy Authority,United Kingdom Atomic Energy Authority
02/07/2012,OTHER EXTERNAL COSTS,FUSION,VISITOR EXPENSES,1900057154,143.56,United Kingdom Atomic Energy Authority,United Kingdom Atomic Energy Authority
02/07/2012,OTHER EXTERNAL COSTS,FUSION,VISITOR EXPENSES,1900057155,576.60,United Kingdom Atomic Energy Authority,United Kingdom Atomic Energy Authority
02/07/2012,OTHER EXTERNAL COSTS,FUSION,VISITOR EXPENSES,1900057156,360.00,United Kingdom Atomic Energy Authority,United Kingdom Atomic Energy Authority
06/07/2012,OTHER EXTERNAL COSTS,FUSION,VISITOR EXPENSES,1900057178,41.00,United Kingdom Atomic Energy Authority,United Kingdom Atomic Energy Authority
06/07/2012,OTHER EXTERNAL COSTS,FUSION,VISITOR EXPENSES,1900057180,1701.00,United Kingdom Atomic Energy Authority,United Kingdom Atomic Energy Authority
06/07/2012,OTHER EXTERNAL COSTS,FUSION,VISITOR EXPENSES,1900057181,200.00,United Kingdom Atomic Energy Authority,United Kingdom Atomic Energy Authority
06/07/2012,OTHER EXTERNAL COSTS,FUSION,VISITOR EXPENSES,1900057182,320.84,United Kingdom Atomic Energy Authority,United Kingdom Atomic Energy Authority
23/07/2012,OTHER EXTERNAL COSTS,FUSION,VISITOR EXPENSES,1900057270,1349.28,United Kingdom Atomic Energy Authority,United Kingdom Atomic Energy Authority
23/07/2012,BUSINESS ENTERTAINMENT,FUSION,White Hart Hotel,1900057271,338.95,United Kingdom Atomic Energy Authority,United Kingdom Atomic Energy Authority
23/07/2012,OTHER EXTERNAL COSTS,FUSION,VISITOR EXPENSES,1900057275,44.63,United Kingdom Atomic Energy Authority,United Kingdom Atomic Energy Authority
23/07/2012,OTHER EXTERNAL COSTS,FUSION,VISITOR EXPENSES,1900057276,245.00,United Kingdom Atomic Energy Authority,United Kingdom Atomic Energy Authority
06/07/2012,SUBSISTENCE,FUSION,EMPLOYEE EXPENSES,100650653,259.96,United Kingdom Atomic Energy Authority,United Kingdom Atomic Energy Authority
06/07/2012,SUBSISTENCE,FUSION,EMPLOYEE EXPENSES,100650653,1.67,United Kingdom Atomic Energy Authority,United Kingdom Atomic Energy Authority
06/07/2012,MILEAGE ALLOWANCE,FUSION,EMPLOYEE EXPENSES,100650653,31.20,United Kingdom Atomic Energy Authority,United Kingdom Atomic Energy Authority
06/07/2012,RAIL TRAVEL,FUSION,EMPLOYEE EXPENSES,100650653,13.51,United Kingdom Atomic Energy Authority,United Kingdom Atomic Energy Authority
06/07/2012,ROAD TRAVEL,FUSION,EMPLOYEE EXPENSES,100650653,56.86,United Kingdom Atomic Energy Authority,United Kingdom Atomic Energy Authority
06/07/2012,EFDA TRAVEL EXPENSES,FUSION,EMPLOYEE EXPENSES,100650655,71.85,United Kingdom Atomic Energy Authority,United Kingdom Atomic Energy Authority
06/07/2012,VISITOR EXPENSES,FUSION,Florence Marcotte,1900057179,368.00,United Kingdom Atomic Energy Authority,United Kingdom Atomic Energy Authority
06/07/2012,EFDA TRAVEL EXPENSES,FUSION,EMPLOYEE EXPENSES,100650652,294.55,United Kingdom Atomic Energy Authority,United Kingdom Atomic Energy Authority
06/07/2012,EFDA TRAVEL EXPENSES,FUSION,EMPLOYEE EXPENSES,100650654,604.04,United Kingdom Atomic Energy Authority,United Kingdom Atomic Energy Authority
06/07/2012,EFDA TRAVEL EXPENSES,FUSION,EMPLOYEE EXPENSES,100650658,421.35,United Kingdom Atomic Energy Authority,United Kingdom Atomic Energy Authority
06/07/2012,EFDA TRAVEL EXPENSES,FUSION,EMPLOYEE EXPENSES,100650660,359.79,United Kingdom Atomic Energy Authority,United Kingdom Atomic Energy Authority
06/07/2012,EFDA TRAVEL EXPENSES,FUSION,EMPLOYEE EXPENSES,100650665,433.84,United Kingdom Atomic Energy Authority,United Kingdom Atomic Energy Authority
06/07/2012,EFDA TRAVEL EXPENSES,FUSION,EMPLOYEE EXPENSES,100650666,539.25,United Kingdom Atomic Energy Authority,United Kingdom Atomic Energy Authority
12/07/2012,EFDA TRAVEL EXPENSES,FUSION,EMPLOYEE EXPENSES,100650696,71.52,United Kingdom Atomic Energy Authority,United Kingdom Atomic Energy Authority
12/07/2012,EFDA TRAVEL EXPENSES,FUSION,EMPLOYEE EXPENSES,100650697,97.42,United Kingdom Atomic Energy Authority,United Kingdom Atomic Energy Authority
12/07/2012,EFDA TRAVEL EXPENSES,FUSION,EMPLOYEE EXPENSES,100650698,75.95,United Kingdom Atomic Energy Authority,United Kingdom Atomic Energy Authority
12/07/2012,EFDA TRAVEL EXPENSES,FUSION,EMPLOYEE EXPENSES,100650699,314.65,United Kingdom Atomic Energy Authority,United Kingdom Atomic Energy Authority
12/07/2012,EFDA TRAVEL EXPENSES,FUSION,EMPLOYEE EXPENSES,100650700,346.46,United Kingdom Atomic Energy Authority,United Kingdom Atomic Energy Authority
12/07/2012,EFDA TRAVEL EXPENSES,FUSION,EMPLOYEE EXPENSES,100650702,110.75,United Kingdom Atomic Energy Authority,United Kingdom Atomic Energy Authority
12/07/2012,EFDA TRAVEL EXPENSES,FUSION,EMPLOYEE EXPENSES,100650703,309.85,United Kingdom Atomic Energy Authority,United Kingdom Atomic Energy Authority
12/07/2012,EFDA TRAVEL EXPENSES,FUSION,EMPLOYEE EXPENSES,100650704,127.95,United Kingdom Atomic Energy Authority,United Kingdom Atomic Energy Authority
12/07/2012,EFDA TRAVEL EXPENSES,FUSION,EMPLOYEE EXPENSES,100650705,202.60,United Kingdom Atomic Energy Authority,United Kingdom Atomic Energy Authority
26/07/2012,EFDA TRAVEL EXPENSES,FUSION,EMPLOYEE EXPENSES,100658574,478.24,United Kingdom Atomic Energy Authority,United Kingdom Atomic Energy Authority
26/07/2012,EFDA TRAVEL EXPENSES,FUSION,EMPLOYEE EXPENSES,100658575,506.86,United Kingdom Atomic Energy Authority,United Kingdom Atomic Energy Authority
26/07/2012,EFDA TRAVEL EXPENSES,FUSION,EMPLOYEE EXPENSES,100658576,273.24,United Kingdom Atomic Energy Authority,United Kingdom Atomic Energy Authority
26/07/2012,EFDA TRAVEL EXPENSES,FUSION,EMPLOYEE EXPENSES,100658577,104.27,United Kingdom Atomic Energy Authority,United Kingdom Atomic Energy Authority
02/07/2012,BUILDING REPAIRS,FUSION,KNOWLES & SONS (OXFORD) LTD,5100276582,46.43,United Kingdom Atomic Energy Authority,United Kingdom Atomic Energy Authority
09/07/2012,IT EQUIPMENT NON CAPITAL,FUSION,VIDEONATIONS LTD,5100276884,594.74,United Kingdom Atomic Energy Authority,United Kingdom Atomic Energy Authority
09/07/2012,PUBLICATIONS,FUSION,IOP PUBLISHING LTD,5100277173,937.50,United Kingdom Atomic Energy Authority,United Kingdom Atomic Energy Authority
16/07/2012,PUBLICATIONS,FUSION,IOP PUBLISHING LTD,5100277349,3945.00,United Kingdom Atomic Energy Authority,United Kingdom Atomic Energy Authority
04/07/2012,MEDICAL EXPENSES,SUPPORT SERVICES,CHILTON COUNSELLING LTD,5100276786,300.00,United Kingdom Atomic Energy Authority,United Kingdom Atomic Energy Authority
09/07/2012,LEGAL FEES,SUPPORT SERVICES,CATER LEYDON MILLARD LTD,5100276933,910.00,United Kingdom Atomic Energy Authority,United Kingdom Atomic Energy Authority
25/07/2012,PROFESSIONAL SUBSCRIPTIONS,SUPPORT SERVICES,CHARTERED INSTITUTE OF PURCH. & SUP,5100277744,365.00,United Kingdom Atomic Energy Authority,United Kingdom Atomic Energy Authority
12/07/2012,PROFESSIONAL SUBSCRIPTION,SUPPORT SERVICES,EMPLOYEE EXPENSES,100650690,147.00,United Kingdom Atomic Energy Authority,United Kingdom Atomic Energy Authority
12/07/2012,SUBSISTENCE,SUPPORT SERVICES,EMPLOYEE EXPENSES,100650691,4.07,United Kingdom Atomic Energy Authority,United Kingdom Atomic Energy Authority
12/07/2012,ROAD TRAVEL,SUPPORT SERVICES,EMPLOYEE EXPENSES,100650691,6.00,United Kingdom Atomic Energy Authority,United Kingdom Atomic Energy Authority
18/07/2012,TRAINING COURSE FEES,SUPPORT SERVICES,MENTOR FLT TRAINING LTD,5100276409,580.00,United Kingdom Atomic Energy Authority,United Kingdom Atomic Energy Authority
02/07/2012,TRAINING COURSE FEES,SUPPORT SERVICES,MENTOR FLT TRAINING LTD,5100276410,580.00,United Kingdom Atomic Energy Authority,United Kingdom Atomic Energy Authority
04/07/2012,TRAINING COURSE FEES,SUPPORT SERVICES,LLOYDS BRITISH TRAINING PLC,5100276460,470.00,United Kingdom Atomic Energy Authority,United Kingdom Atomic Energy Authority
02/07/2012,BUILDING REPAIRS,SUPPORT SERVICES,KNOWLES & SONS (OXFORD) LTD,5100276579,45.92,United Kingdom Atomic Energy Authority,United Kingdom Atomic Energy Authority
02/07/2012,BUILDING REPAIRS,SUPPORT SERVICES,KNOWLES & SONS (OXFORD) LTD,5100276580,23.65,United Kingdom Atomic Energy Authority,United Kingdom Atomic Energy Authority
02/07/2012,BUILDING REPAIRS,SUPPORT SERVICES,KNOWLES & SONS (OXFORD) LTD,5100276581,36.68,United Kingdom Atomic Energy Authority,United Kingdom Atomic Energy Authority
02/07/2012,BUILDING REPAIRS,SUPPORT SERVICES,KNOWLES & SONS (OXFORD) LTD,5100276583,18.53,United Kingdom Atomic Energy Authority,United Kingdom Atomic Energy Authority
02/07/2012,BUILDING REPAIRS,SUPPORT SERVICES,KNOWLES & SONS (OXFORD) LTD,5100276584,34.94,United Kingdom Atomic Energy Authority,United Kingdom Atomic Energy Authority
02/07/2012,BUILDING REPAIRS,SUPPORT SERVICES,KNOWLES & SONS (OXFORD) LTD,5100276588,18.53,United Kingdom Atomic Energy Authority,United Kingdom Atomic Energy Authority
02/07/2012,BUILDING REPAIRS,SUPPORT SERVICES,KNOWLES & SONS (OXFORD) LTD,5100276589,34.94,United Kingdom Atomic Energy Authority,United Kingdom Atomic Energy Authority
02/07/2012,SAFETY STORES,SUPPORT SERVICES,CONTRACT FIRE SECURITY,5100276620,962.24,United Kingdom Atomic Energy Authority,United Kingdom Atomic Energy Authority
02/07/2012,F&F,SUPPORT SERVICES,EFG MATTHEWS OFFICE FURNITURE LTD,5100276630,644.00,United Kingdom Atomic Energy Authority,United Kingdom Atomic Energy Authority
02/07/2012,ADVERTISING STAFF,SUPPORT SERVICES,TMP (UK) LTD,5100276637,1295.00,United Kingdom Atomic Energy Authority,United Kingdom Atomic Energy Authority
02/07/2012,PLANT & EQUIPMENT,SUPPORT SERVICES,FISHER SCIENTIFIC UK LTD,5100276690,206.76,United Kingdom Atomic Energy Authority,United Kingdom Atomic Energy Authority
04/07/2012,IT MANGED SERVICE,SUPPORT SERVICES,CSC COMPUTER SCIENCES LIMITED,5100276732,5968.42,United Kingdom Atomic Energy Authority,United Kingdom Atomic Energy Authority
16/07/2012,PROFESSIONAL SERVICES,SUPPORT SERVICES,THE COPYRIGHT LICENSING AGENCY LIMI,5100276740,7626.15,United Kingdom Atomic Energy Authority,United Kingdom Atomic Energy Authority
02/07/2012,PERSONAL PROTECTIVE EQUIPMENT,SUPPORT SERVICES,BUCK & HICKMAN LTD,5100276750,98.52,United Kingdom Atomic Energy Authority,United Kingdom Atomic Energy Authority
02/07/2012,INSURANCE,SUPPORT SERVICES,MARSH UK LIMITED,5100276778,106.00,United Kingdom Atomic Energy Authority,United Kingdom Atomic Energy Authority
04/07/2012,TRAINING COSTS,SUPPORT SERVICES,SCA TRAINING & CONSULTANCY SERVICES,5100276793,1125.00,United Kingdom Atomic Energy Authority,United Kingdom Atomic Energy Authority
02/07/2012,CAR HIRE,SUPPORT SERVICES,LEASEDRIVE VELO,5100276824,70.64,United Kingdom Atomic Energy Authority,United Kingdom Atomic Energy Authority
02/07/2012,IT EQUIPMENT NON CAPITAL,SUPPORT SERVICES,MAAINTECH,5100276841,96.00,United Kingdom Atomic Energy Authority,United Kingdom Atomic Energy Authority
09/07/2012,TRAINING COURSE FEES,SUPPORT SERVICES,3C ASSOCIATES LTD,5100276865,3768.30,United Kingdom Atomic Energy Authority,United Kingdom Atomic Energy Authority
09/07/2012,PROFESSIONAL SERVICES,SUPPORT SERVICES,FREYA CONSULTING,5100276866,10625.00,United Kingdom Atomic Energy Authority,United Kingdom Atomic Energy Authority
09/07/2012,PROFESSIONAL SUBSCRIPTION,SUPPORT SERVICES,THE WELDING INSTITUTE LTD,5100277009,8404.00,United Kingdom Atomic Energy Authority,United Kingdom Atomic Energy Authority
09/07/2012,BUILDING REPAIRS,SUPPORT SERVICES,KNOWLES & SONS (OXFORD) LTD,5100277028,135.91,United Kingdom Atomic Energy Authority,United Kingdom Atomic Energy Authority
09/07/2012,BUILDING REPAIRS,SUPPORT SERVICES,KNOWLES & SONS (OXFORD) LTD,5100277033,49.42,United Kingdom Atomic Energy Authority,United Kingdom Atomic Energy Authority
09/07/2012,ROSPA,SUPPORT SERVICES,ROSPA,5100277172,710.00,United Kingdom Atomic Energy Authority,United Kingdom Atomic Energy Authority
09/07/2012,PROFESSIONAL SERVICES,SUPPORT SERVICES,DISCLOSURE SCOTLAND,5100277185,675.00,United Kingdom Atomic Energy Authority,United Kingdom Atomic Energy Authority
18/07/2012,CATERING SUPPLIES,SUPPORT SERVICES,BWT UK LTD,5100277245,3240.00,United Kingdom Atomic Energy Authority,United Kingdom Atomic Energy Authority
16/07/2012,F&F,SUPPORT SERVICES,EFG MATTHEWS OFFICE FURNITURE LTD,5100277303,563.58,United Kingdom Atomic Energy Authority,United Kingdom Atomic Energy Authority
16/07/2012,F&F,SUPPORT SERVICES,EFG MATTHEWS OFFICE FURNITURE LTD,5100277305,122.25,United Kingdom Atomic Energy Authority,United Kingdom Atomic Energy Authority
16/07/2012,F&F,SUPPORT SERVICES,EFG MATTHEWS OFFICE FURNITURE LTD,5100277306,380.25,United Kingdom Atomic Energy Authority,United Kingdom Atomic Energy Authority
16/07/2012,BOOKS & PUBLICATIONS,SUPPORT SERVICES,THE BRITISH LIBRARY,5100277317,53.45,United Kingdom Atomic Energy Authority,United Kingdom Atomic Energy Authority
16/07/2012,STATIONERY,SUPPORT SERVICES,LYRECO UK LIMITED,5100277355,111.93,United Kingdom Atomic Energy Authority,United Kingdom Atomic Energy Authority
16/07/2012,PERSONAL PROTECTIVE EQUIPMENT,SUPPORT SERVICES,ARCO WESSEX,5100277386,165.50,United Kingdom Atomic Energy Authority,United Kingdom Atomic Energy Authority
23/07/2012,PROFESSIONAL SERVICES,SUPPORT SERVICES,ESR TECHNOLOGY LTD,5100277407,2090.00,United Kingdom Atomic Energy Authority,United Kingdom Atomic Energy Authority
23/07/2012,BUILDING REPAIRS,SUPPORT SERVICES,KNOWLES & SONS (OXFORD) LTD,5100277530,2264.34,United Kingdom Atomic Energy Authority,United Kingdom Atomic Energy Authority
23/07/2012,BUILDING REPAIRS,SUPPORT SERVICES,KNOWLES & SONS (OXFORD) LTD,5100277533,547.27,United Kingdom Atomic Energy Authority,United Kingdom Atomic Energy Authority
23/07/2012,BUILDING REPAIRS,SUPPORT SERVICES,KNOWLES & SONS (OXFORD) LTD,5100277534,30.15,United Kingdom Atomic Energy Authority,United Kingdom Atomic Energy Authority
23/07/2012,BUILDING REPAIRS,SUPPORT SERVICES,KNOWLES & SONS (OXFORD) LTD,5100277536,23.65,United Kingdom Atomic Energy Authority,United Kingdom Atomic Energy Authority
23/07/2012,BUILDING REPAIRS,SUPPORT SERVICES,KNOWLES & SONS (OXFORD) LTD,5100277538,47.16,United Kingdom Atomic Energy Authority,United Kingdom Atomic Energy Authority
23/07/2012,BUILDING REPAIRS,SUPPORT SERVICES,KNOWLES & SONS (OXFORD) LTD,5100277540,125.40,United Kingdom Atomic Energy Authority,United Kingdom Atomic Energy Authority
23/07/2012,BUILDING REPAIRS,SUPPORT SERVICES,KNOWLES & SONS (OXFORD) LTD,5100277542,57.51,United Kingdom Atomic Energy Authority,United Kingdom Atomic Energy Authority
23/07/2012,BUILDING REPAIRS,SUPPORT SERVICES,KNOWLES & SONS (OXFORD) LTD,5100277543,57.51,United Kingdom Atomic Energy Authority,United Kingdom Atomic Energy Authority
23/07/2012,BUILDING REPAIRS,SUPPORT SERVICES,KNOWLES & SONS (OXFORD) LTD,5100277544,71.62,United Kingdom Atomic Energy Authority,United Kingdom Atomic Energy Authority
23/07/2012,BUILDING REPAIRS,SUPPORT SERVICES,KNOWLES & SONS (OXFORD) LTD,5100277545,49.42,United Kingdom Atomic Energy Authority,United Kingdom Atomic Energy Authority
23/07/2012,BUILDING REPAIRS,SUPPORT SERVICES,KNOWLES & SONS (OXFORD) LTD,5100277546,24.71,United Kingdom Atomic Energy Authority,United Kingdom Atomic Energy Authority
23/07/2012,BUILDING REPAIRS,SUPPORT SERVICES,KNOWLES & SONS (OXFORD) LTD,5100277547,106.96,United Kingdom Atomic Energy Authority,United Kingdom Atomic Energy Authority
23/07/2012,BUILDING REPAIRS,SUPPORT SERVICES,KNOWLES & SONS (OXFORD) LTD,5100277548,82.83,United Kingdom Atomic Energy Authority,United Kingdom Atomic Energy Authority
23/07/2012,BUILDING REPAIRS,SUPPORT SERVICES,KNOWLES & SONS (OXFORD) LTD,5100277549,31.42,United Kingdom Atomic Energy Authority,United Kingdom Atomic Energy Authority
23/07/2012,BUILDING REPAIRS,SUPPORT SERVICES,KNOWLES & SONS (OXFORD) LTD,5100277550,46.43,United Kingdom Atomic Energy Authority,United Kingdom Atomic Energy Authority
23/07/2012,BUILDING REPAIRS,SUPPORT SERVICES,KNOWLES & SONS (OXFORD) LTD,5100277551,29.14,United Kingdom Atomic Energy Authority,United Kingdom Atomic Energy Authority
23/07/2012,MATERIALS & SPARES,SUPPORT SERVICES,TRAVIS PERKINS TRADING CO LTD,5100277555,40.38,United Kingdom Atomic Energy Authority,United Kingdom Atomic Energy Authority
23/07/2012,TRAINING COURSE FEES,SUPPORT SERVICES,PETER METCALF MANAGEMENT COACH,5100277562,1650.00,United Kingdom Atomic Energy Authority,United Kingdom Atomic Energy Authority
23/07/2012,BUILDING REPAIRS,SUPPORT SERVICES,KNOWLES & SONS (OXFORD) LTD,5100277563,168.80,United Kingdom Atomic Energy Authority,United Kingdom Atomic Energy Authority
23/07/2012,BUILDING REPAIRS,SUPPORT SERVICES,KNOWLES & SONS (OXFORD) LTD,5100277564,16.78,United Kingdom Atomic Energy Authority,United Kingdom Atomic Energy Authority
23/07/2012,BUILDING REPAIRS,SUPPORT SERVICES,KNOWLES & SONS (OXFORD) LTD,5100277565,62.66,United Kingdom Atomic Energy Authority,United Kingdom Atomic Energy Authority
23/07/2012,F&F,SUPPORT SERVICES,EFG MATTHEWS OFFICE FURNITURE LTD,5100277585,1391.27,United Kingdom Atomic Energy Authority,United Kingdom Atomic Energy Authority
23/07/2012,F&F,SUPPORT SERVICES,EFG MATTHEWS OFFICE FURNITURE LTD,5100277586,1727.00,United Kingdom Atomic Energy Authority,United Kingdom Atomic Energy Authority
23/07/2012,F&F,SUPPORT SERVICES,EFG MATTHEWS OFFICE FURNITURE LTD,5100277587,319.68,United Kingdom Atomic Energy Authority,United Kingdom Atomic Energy Authority
23/07/2012,F&F,SUPPORT SERVICES,EFG MATTHEWS OFFICE FURNITURE LTD,5100277589,1435.44,United Kingdom Atomic Energy Authority,United Kingdom Atomic Energy Authority
25/07/2012,BUILDING REPAIRS,SUPPORT SERVICES,KNOWLES & SONS (OXFORD) LTD,5100277601,92.39,United Kingdom Atomic Energy Authority,United Kingdom Atomic Energy Authority
23/07/2012,PROFESSIONAL SERVICES,SUPPORT SERVICES,WOLTERS KLUWER UK LTD,5100277665,2186.86,United Kingdom Atomic Energy Authority,United Kingdom Atomic Energy Authority
23/07/2012,PROFESSIONAL SERVICES,SUPPORT SERVICES,WOLTERS KLUWER UK LTD,5100277666,797.42,United Kingdom Atomic Energy Authority,United Kingdom Atomic Energy Authority
23/07/2012,TRAINING COURSE FEES,SUPPORT SERVICES,CANON FIRE PROTECTION,5100277685,320.00,United Kingdom Atomic Energy Authority,United Kingdom Atomic Energy Authority
23/07/2012,MATERIALS & SPARES,SUPPORT SERVICES,RS COMPONENTS LTD,5100277687,45.37,United Kingdom Atomic Energy Authority,United Kingdom Atomic Energy Authority
23/07/2012,IT MANGED SERVICE,SUPPORT SERVICES,CSC COMPUTER SCIENCES LIMITED,5100277701,13493.38,United Kingdom Atomic Energy Authority,United Kingdom Atomic Energy Authority
23/07/2012,IT MANGED SERVICE,SUPPORT SERVICES,CSC COMPUTER SCIENCES LIMITED,5100277702,22059.26,United Kingdom Atomic Energy Authority,United Kingdom Atomic Energy Authority
25/07/2012,F&F,SUPPORT SERVICES,EFG MATTHEWS OFFICE FURNITURE LTD,5100277749,457.72,United Kingdom Atomic Energy Authority,United Kingdom Atomic Energy Authority
25/07/2012,F&F,SUPPORT SERVICES,EFG MATTHEWS OFFICE FURNITURE LTD,5100277750,644.00,United Kingdom Atomic Energy Authority,United Kingdom Atomic Energy Authority
04/07/2012,ENTERTAINMENT - STAFF,SUPPORT SERVICES,Warren Griffin,1900057158,400.00,United Kingdom Atomic Energy Authority,United Kingdom Atomic Energy Authority
04/07/2012,ENTERTAINMENT - STAFF,SUPPORT SERVICES,Barry Light,1900057159,50.00,United Kingdom Atomic Energy Authority,United Kingdom Atomic Energy Authority
04/07/2012,ENTERTAINMENT - STAFF,SUPPORT SERVICES,PLD Entertainment,1900057160,482.00,United Kingdom Atomic Energy Authority,United Kingdom Atomic Energy Authority
12/07/2012,CHARITABLE DONATIONS,SUPPORT SERVICES,Yeah Baby,1900057222,400.00,United Kingdom Atomic Energy Authority,United Kingdom Atomic Energy Authority
13/07/2012,CHARITABLE DONATIONS,SUPPORT SERVICES,Sobell House Hospice,1900057226,150.00,United Kingdom Atomic Energy Authority,United Kingdom Atomic Energy Authority
13/07/2012,CHARITABLE DONATIONS,SUPPORT SERVICES,Race for Life Cancer Research,1900057227,150.00,United Kingdom Atomic Energy Authority,United Kingdom Atomic Energy Authority
13/07/2012,CHARITABLE DONATIONS,SUPPORT SERVICES,The Prostate Cancer Charity,1900057228,150.00,United Kingdom Atomic Energy Authority,United Kingdom Atomic Energy Authority
17/07/2012,CHARITABLE DONATIONS,SUPPORT SERVICES,FONS,1900057253,300.00,United Kingdom Atomic Energy Authority,United Kingdom Atomic Energy Authority
18/07/2012,CHARITABLE DONATIONS,SUPPORT SERVICES,Radley Primary School,1900057256,300.00,United Kingdom Atomic Energy Authority,United Kingdom Atomic Energy Authority
18/07/2012,PROFESSIONAL SUBSCRIPTION,SUPPORT SERVICES,Dariusz Maciocha,1900057260,771.33,United Kingdom Atomic Energy Authority,United Kingdom Atomic Energy Authority
24/07/2012,TRAINING COURSE FEES,SUPPORT SERVICES,The Xafinity Skillbase,1900057278,360.00,United Kingdom Atomic Energy Authority,United Kingdom Atomic Energy Authority
06/07/2012,MILEAGE ALLOWANCE,SUPPORT SERVICES,EMPLOYEE EXPENSES,100650636,8.40,United Kingdom Atomic Energy Authority,United Kingdom Atomic Energy Authority
06/07/2012,SUBSISTENCE,SUPPORT SERVICES,EMPLOYEE EXPENSES,100650643,34.88,United Kingdom Atomic Energy Authority,United Kingdom Atomic Energy Authority
06/07/2012,SUBSISTENCE,SUPPORT SERVICES,EMPLOYEE EXPENSES,100650643,5.04,United Kingdom Atomic Energy Authority,United Kingdom Atomic Energy Authority
06/07/2012,ROAD TRAVEL,SUPPORT SERVICES,EMPLOYEE EXPENSES,100650643,5.37,United Kingdom Atomic Energy Authority,United Kingdom Atomic Energy Authority
06/07/2012,OTHER EMPLOYEE EXPENSES,SUPPORT SERVICES,EMPLOYEE EXPENSES,100650643,3.00,United Kingdom Atomic Energy Authority,United Kingdom Atomic Energy Authority
06/07/2012,SUBSISTENCE,SUPPORT SERVICES,EMPLOYEE EXPENSES,100650644,16.70,United Kingdom Atomic Energy Authority,United Kingdom Atomic Energy Authority
06/07/2012,MILEAGE ALLOWANCE,SUPPORT SERVICES,EMPLOYEE EXPENSES,100650644,138.24,United Kingdom Atomic Energy Authority,United Kingdom Atomic Energy Authority
06/07/2012,SUBSISTENCE,SUPPORT SERVICES,EMPLOYEE EXPENSES,100650667,450.00,United Kingdom Atomic Energy Authority,United Kingdom Atomic Energy Authority
06/07/2012,MILEAGE ALLOWANCE,SUPPORT SERVICES,EMPLOYEE EXPENSES,100650667,144.00,United Kingdom Atomic Energy Authority,United Kingdom Atomic Energy Authority
12/07/2012,SUBSISTENCE,SUPPORT SERVICES,EMPLOYEE EXPENSES,100650712,5.00,United Kingdom Atomic Energy Authority,United Kingdom Atomic Energy Authority
12/07/2012,SUBSISTENCE,SUPPORT SERVICES,EMPLOYEE EXPENSES,100650712,7.42,United Kingdom Atomic Energy Authority,United Kingdom Atomic Energy Authority
12/07/2012,ROAD TRAVEL,SUPPORT SERVICES,EMPLOYEE EXPENSES,100650712,14.17,United Kingdom Atomic Energy Authority,United Kingdom Atomic Energy Authority
12/07/2012,OTHER EMPLOYEE EXPENSES,SUPPORT SERVICES,EMPLOYEE EXPENSES,100650713,39.00,United Kingdom Atomic Energy Authority,United Kingdom Atomic Energy Authority
14/07/2012,SUBSISTENCE,SUPPORT SERVICES,EMPLOYEE EXPENSES,100650725,436.41,United Kingdom Atomic Energy Authority,United Kingdom Atomic Energy Authority
14/07/2012,RAIL TRAVEL,SUPPORT SERVICES,EMPLOYEE EXPENSES,100650725,29.11,United Kingdom Atomic Energy Authority,United Kingdom Atomic Energy Authority
14/07/2012,OTHER EMPLOYEE EXPENSES,SUPPORT SERVICES,EMPLOYEE EXPENSES,100650725,6.50,United Kingdom Atomic Energy Authority,United Kingdom Atomic Energy Authority
14/07/2012,SUBSISTENCE,SUPPORT SERVICES,EMPLOYEE EXPENSES,100650730,433.29,United Kingdom Atomic Energy Authority,United Kingdom Atomic Energy Authority
14/07/2012,RAIL TRAVEL,SUPPORT SERVICES,EMPLOYEE EXPENSES,100650730,29.11,United Kingdom Atomic Energy Authority,United Kingdom Atomic Energy Authority
14/07/2012,OTHER EMPLOYEE EXPENSES,SUPPORT SERVICES,EMPLOYEE EXPENSES,100650730,6.50,United Kingdom Atomic Energy Authority,United Kingdom Atomic Energy Authority
28/07/2012,TAXIS,SUPPORT SERVICES,EMPLOYEE EXPENSES,100658598,74.00,United Kingdom Atomic Energy Authority,United Kingdom Atomic Energy Authority
28/07/2012,TAXIS,SUPPORT SERVICES,EMPLOYEE EXPENSES,100658598,7.50,United Kingdom Atomic Energy Authority,United Kingdom Atomic Energy Authority
28/07/2012,SUBSISTENCE,SUPPORT SERVICES,EMPLOYEE EXPENSES,100658598,3.87,United Kingdom Atomic Energy Authority,United Kingdom Atomic Energy Authority
28/07/2012,RAIL TRAVEL,SUPPORT SERVICES,EMPLOYEE EXPENSES,100658598,195.50,United Kingdom Atomic Energy Authority,United Kingdom Atomic Energy Authority
28/07/2012,ROAD TRAVEL,SUPPORT SERVICES,EMPLOYEE EXPENSES,100658598,14.80,United Kingdom Atomic Energy Authority,United Kingdom Atomic Energy Authority
28/07/2012,ROAD TRAVEL,SUPPORT SERVICES,EMPLOYEE EXPENSES,100658598,54.33,United Kingdom Atomic Energy Authority,United Kingdom Atomic Energy Authority
02/07/2012,PRINTING & GRAPHICS,FUSION,HUNTS,5100276591,140.00,United Kingdom Atomic Energy Authority,United Kingdom Atomic Energy Authority
02/07/2012,STATIONERY,FUSION,MPS SERVICES LTD,5100276649,322.00,United Kingdom Atomic Energy Authority,United Kingdom Atomic Energy Authority
02/07/2012,STATIONERY,FUSION,FULTON PAPER,5100276688,880.00,United Kingdom Atomic Energy Authority,United Kingdom Atomic Energy Authority
02/07/2012,STATIONERY,FUSION,COLOURCOM,5100276707,61.00,United Kingdom Atomic Energy Authority,United Kingdom Atomic Energy Authority
02/07/2012,PROFESSIONAL SERVICES,FUSION,ELECTRIC STUDIO LTD,5100276731,2400.00,United Kingdom Atomic Energy Authority,United Kingdom Atomic Energy Authority
11/07/2012,IT EQUIPMENT NON CAPITAL,FUSION,JIGSAW SYSTEMS LTD,5100276819,469.00,United Kingdom Atomic Energy Authority,United Kingdom Atomic Energy Authority
09/07/2012,OPERATING LEASE,FUSION,ANNODATA BUSINESS COMMUNICATIONS,5100276901,17293.90,United Kingdom Atomic Energy Authority,United Kingdom Atomic Energy Authority
09/07/2012,OPERATING LEASE,FUSION,ANNODATA BUSINESS COMMUNICATIONS,5100276945,2646.00,United Kingdom Atomic Energy Authority,United Kingdom Atomic Energy Authority
09/07/2012,OPERATING LEASE,FUSION,ANNODATA BUSINESS COMMUNICATIONS,5100276946,560.01,United Kingdom Atomic Energy Authority,United Kingdom Atomic Energy Authority
16/07/2012,IT EQUIPMENT NON CAPITAL,FUSION,JIGSAW SYSTEMS LTD,5100277261,180.00,United Kingdom Atomic Energy Authority,United Kingdom Atomic Energy Authority
16/07/2012,STATIONERY,FUSION,FULTON PAPER,5100277264,979.30,United Kingdom Atomic Energy Authority,United Kingdom Atomic Energy Authority
25/07/2012,OPERATING LEASE,FUSION,ANNODATA BUSINESS COMMUNICATIONS,5100277504,1748.55,United Kingdom Atomic Energy Authority,United Kingdom Atomic Energy Authority
23/07/2012,CAR HIRE,FUSION,LEASEDRIVE VELO,5100277706,68.78,United Kingdom Atomic Energy Authority,United Kingdom Atomic Energy Authority
23/07/2012,TAXIS,FUSION,PRYORS TAXIS,5100277034,6944.57,United Kingdom Atomic Energy Authority,United Kingdom Atomic Energy Authority
16/07/2012,TAXIS,FUSION,HAROLDS CARS,5100277343,817.60,United Kingdom Atomic Energy Authority,United Kingdom Atomic Energy Authority
18/07/2012,EFDA SECONDEE CONTRACT,FUSION,ENEA - C.R.E. FRASCATI,5100277011,42463.92,United Kingdom Atomic Energy Authority,United Kingdom Atomic Energy Authority
02/07/2012,UTILITIES/ELECTRICITY,FUSION,BRITISH ENERGY GENERATION LTD,5100276692,65256.37,United Kingdom Atomic Energy Authority,United Kingdom Atomic Energy Authority
09/07/2012,ELECTRICITY,FUSION,NATIONAL GRID TRANSCO,5100276864,3412.84,United Kingdom Atomic Energy Authority,United Kingdom Atomic Energy Authority
11/07/2012,UTILITIES/ELECTRICITY,FUSION,EDF ENERGY,5100277030,260597.07,United Kingdom Atomic Energy Authority,United Kingdom Atomic Energy Authority
11/07/2012,UTILITIES/ELECTRICITY,FUSION,EDF ENERGY,5100277269,749.13,United Kingdom Atomic Energy Authority,United Kingdom Atomic Energy Authority
18/07/2012,UTILITIES/ELECTRICITY,FUSION,BRITISH ENERGY GENERATION LTD,5100277384,89194.34,United Kingdom Atomic Energy Authority,United Kingdom Atomic Energy Authority
02/07/2012,MATERIALS & SPARES,FUSION,RS COMPONENTS LTD,5100275777,30.23,United Kingdom Atomic Energy Authority,United Kingdom Atomic Energy Authority
04/07/2012,PLANT & EQUIPMENT,FUSION,LEMO UK LTD,5100276693,158.64,United Kingdom Atomic Energy Authority,United Kingdom Atomic Energy Authority
02/07/2012,GENERAL MACHINE TOOL SPARES,FUSION,GENERAL MACHINE TOOL SPARES,5100276855,447.46,United Kingdom Atomic Energy Authority,United Kingdom Atomic Energy Authority
09/07/2012,MATERIALS & SPARES,FUSION,FARNELL ELECTRONIC,5100277042,28.71,United Kingdom Atomic Energy Authority,United Kingdom Atomic Energy Authority
09/07/2012,MATERIALS & SPARES,FUSION,RS COMPONENTS LTD,5100277147,85.75,United Kingdom Atomic Energy Authority,United Kingdom Atomic Energy Authority
09/07/2012,MATERIALS & SPARES,FUSION,RS COMPONENTS LTD,5100277156,106.40,United Kingdom Atomic Energy Authority,United Kingdom Atomic Energy Authority
09/07/2012,MATERIALS & SPARES,FUSION,RS COMPONENTS LTD,5100277165,22.50,United Kingdom Atomic Energy Authority,United Kingdom Atomic Energy Authority
09/07/2012,MATERIALS & SPARES,FUSION,RS COMPONENTS LTD,5100277176,136.48,United Kingdom Atomic Energy Authority,United Kingdom Atomic Energy Authority
11/07/2012,MATERIALS & SPARES,FUSION,CROMWELL LTD,5100277193,246.98,United Kingdom Atomic Energy Authority,United Kingdom Atomic Energy Authority
16/07/2012,MATERIALS & SPARES,FUSION,DURBIN METAL INDUSTRIES LTD,5100277205,76.50,United Kingdom Atomic Energy Authority,United Kingdom Atomic Energy Authority
16/07/2012,MATERIALS & SPARES,FUSION,RS COMPONENTS LTD,5100277342,167.13,United Kingdom Atomic Energy Authority,United Kingdom Atomic Energy Authority
16/07/2012,MATERIALS & SPARES,FUSION,RS COMPONENTS LTD,5100277361,9.92,United Kingdom Atomic Energy Authority,United Kingdom Atomic Energy Authority
16/07/2012,PERSONAL PROTECTIVE EQUIPMENT,FUSION,BUCK & HICKMAN LTD,5100277396,90.05,United Kingdom Atomic Energy Authority,United Kingdom Atomic Energy Authority
16/07/2012,GENERAL MACHINE TOOL SPARES,FUSION,GENERAL MACHINE TOOL SPARES,5100277463,-447.46,United Kingdom Atomic Energy Authority,United Kingdom Atomic Energy Authority
16/07/2012,GENERAL MACHINE TOOL SPARES,FUSION,GENERAL MACHINE TOOL SPARES,5100277464,372.88,United Kingdom Atomic Energy Authority,United Kingdom Atomic Energy Authority
23/07/2012,MATERIALS & SPARES,FUSION,DURBIN METAL INDUSTRIES LTD,5100277525,77.00,United Kingdom Atomic Energy Authority,United Kingdom Atomic Energy Authority
06/07/2012,PLANT & EQUIPMENT,FUSION,DJ Webster LTD,1900057183,8589.00,United Kingdom Atomic Energy Authority,United Kingdom Atomic Energy Authority
02/07/2012,MATERIALS & SPARES,FUSION,FARNELL ELECTRONIC,5100275068,237.50,United Kingdom Atomic Energy Authority,United Kingdom Atomic Energy Authority
02/07/2012,MATERIALS & SPARES,FUSION,FARNELL ELECTRONIC,5100275503,122.27,United Kingdom Atomic Energy Authority,United Kingdom Atomic Energy Authority
02/07/2012,PLANT & EQUIPMENT,FUSION,HEWDEN,5100275706,620.00,United Kingdom Atomic Energy Authority,United Kingdom Atomic Energy Authority
04/07/2012,GASES,FUSION,BOC LTD,5100276226,190.07,United Kingdom Atomic Energy Authority,United Kingdom Atomic Energy Authority
02/07/2012,PLANT & EQUIPMENT,FUSION,AALCO LIMITED,5100276507,128.00,United Kingdom Atomic Energy Authority,United Kingdom Atomic Energy Authority
02/07/2012,PLANT & EQUIPMENT,FUSION,AALCO LIMITED,5100276508,131.24,United Kingdom Atomic Energy Authority,United Kingdom Atomic Energy Authority
02/07/2012,PLANT & EQUIPMENT,FUSION,AALCO LIMITED,5100276509,113.50,United Kingdom Atomic Energy Authority,United Kingdom Atomic Energy Authority
09/07/2012,MATERIALS & SPARES,FUSION,CROMWELL LTD,5100276520,207.47,United Kingdom Atomic Energy Authority,United Kingdom Atomic Energy Authority
02/07/2012,MATERIALS & SPARES,FUSION,SCREWFIX DIRECT LTD,5100276594,83.33,United Kingdom Atomic Energy Authority,United Kingdom Atomic Energy Authority
02/07/2012,PLANT & EQUIPMENT,FUSION,AALCO LIMITED,5100276626,68.93,United Kingdom Atomic Energy Authority,United Kingdom Atomic Energy Authority
02/07/2012,PLANT & EQUIPMENT,FUSION,AALCO LIMITED,5100276627,36.60,United Kingdom Atomic Energy Authority,United Kingdom Atomic Energy Authority
02/07/2012,PERSONAL PROTECTIVE EQUIPMENT,FUSION,SERCO LIMITED,5100276632,45.85,United Kingdom Atomic Energy Authority,United Kingdom Atomic Energy Authority
02/07/2012,MATERIALS & SPARES,FUSION,FARNELL ELECTRONIC,5100276666,425.89,United Kingdom Atomic Energy Authority,United Kingdom Atomic Energy Authority
04/07/2012,GASES,FUSION,BOC LTD,5100276694,123.92,United Kingdom Atomic Energy Authority,United Kingdom Atomic Energy Authority
04/07/2012,MATERIALS & SPARES,FUSION,BUDGET FORKTRUCKS LTD,5100276733,268.67,United Kingdom Atomic Energy Authority,United Kingdom Atomic Energy Authority
04/07/2012,MATERIALS & SPARES,FUSION,BUDGET FORKTRUCKS LTD,5100276734,390.00,United Kingdom Atomic Energy Authority,United Kingdom Atomic Energy Authority
02/07/2012,PLANT & EQUIPMENT,FUSION,AALCO LIMITED,5100276779,22.81,United Kingdom Atomic Energy Authority,United Kingdom Atomic Energy Authority
02/07/2012,MATERIALS & SPARES,FUSION,INVENT UK LIMITED,5100276854,1950.00,United Kingdom Atomic Energy Authority,United Kingdom Atomic Energy Authority
09/07/2012,MATERIALS & SPARES,FUSION,UNIVERSAL ACCESS & POWER PLANT LTD,5100276877,600.40,United Kingdom Atomic Energy Authority,United Kingdom Atomic Energy Authority
04/07/2012,HIRED STAFF,FUSION,MORSON INTERNATIONAL,5100276902,193763.35,United Kingdom Atomic Energy Authority,United Kingdom Atomic Energy Authority
09/07/2012,REPAIRS & MAINTENANCE,FUSION,BEAVER 84 LIMITED,5100276969,2665.00,United Kingdom Atomic Energy Authority,United Kingdom Atomic Energy Authority
09/07/2012,PROFESSIONAL SERVICES,FUSION,BNS NUCLEAR SERVICES,5100276988,124266.86,United Kingdom Atomic Energy Authority,United Kingdom Atomic Energy Authority
09/07/2012,MATERIALS & SPARES,FUSION,FARNELL ELECTRONIC,5100276999,50.88,United Kingdom Atomic Energy Authority,United Kingdom Atomic Energy Authority
11/07/2012,MATERIALS & SPARES,FUSION,OXFORD BOLTS & BEARINGS,5100277016,46.70,United Kingdom Atomic Energy Authority,United Kingdom Atomic Energy Authority
09/07/2012,MATERIALS & SPARES,FUSION,BUDGET FORKTRUCKS LTD,5100277052,390.00,United Kingdom Atomic Energy Authority,United Kingdom Atomic Energy Authority
09/07/2012,HIRED STAFF,FUSION,MORSON INTERNATIONAL,5100277094,45.65,United Kingdom Atomic Energy Authority,United Kingdom Atomic Energy Authority
09/07/2012,CAR HIRE,FUSION,LEASEDRIVE VELO,5100277111,136.90,United Kingdom Atomic Energy Authority,United Kingdom Atomic Energy Authority
16/07/2012,MATERIALS & SPARES,FUSION,RS COMPONENTS LTD,5100277154,471.45,United Kingdom Atomic Energy Authority,United Kingdom Atomic Energy Authority
16/07/2012,GASES,FUSION,BOC LTD,5100277218,49.40,United Kingdom Atomic Energy Authority,United Kingdom Atomic Energy Authority
16/07/2012,PLANT & EQUIPMENT,FUSION,MILLHILL TOOLS LTD,5100277252,72.64,United Kingdom Atomic Energy Authority,United Kingdom Atomic Energy Authority
16/07/2012,MATERIALS & SPARES,FUSION,TECHNICAL ARC LIMITED,5100277311,1850.00,United Kingdom Atomic Energy Authority,United Kingdom Atomic Energy Authority
16/07/2012,MATERIALS & SPARES,FUSION,RS COMPONENTS LTD,5100277362,87.08,United Kingdom Atomic Energy Authority,United Kingdom Atomic Energy Authority
23/07/2012,PLANT SPARES,FUSION,AW GRACE & SON,5100277401,930.00,United Kingdom Atomic Energy Authority,United Kingdom Atomic Energy Authority
16/07/2012,MATERIALS & SPARES,FUSION,CROMWELL LTD,5100277425,25.00,United Kingdom Atomic Energy Authority,United Kingdom Atomic Energy Authority
23/07/2012,PLANT & EQUIPMENT,FUSION,HEWDEN,5100277495,620.00,United Kingdom Atomic Energy Authority,United Kingdom Atomic Energy Authority
23/07/2012,MATERIALS & SPARES,FUSION,UNIVERSAL ACCESS & POWER PLANT LTD,5100277497,572.50,United Kingdom Atomic Energy Authority,United Kingdom Atomic Energy Authority
23/07/2012,MATERIALS & SPARES,FUSION,FARNELL ELECTRONIC,5100277622,393.16,United Kingdom Atomic Energy Authority,United Kingdom Atomic Energy Authority
25/07/2012,MATERIALS & SPARES,FUSION,FARNELL ELECTRONIC,5100277623,48.76,United Kingdom Atomic Energy Authority,United Kingdom Atomic Energy Authority
23/07/2012,MATERIALS & SPARES,FUSION,RS COMPONENTS LTD,5100277640,64.99,United Kingdom Atomic Energy Authority,United Kingdom Atomic Energy Authority
25/07/2012,CAR HIRE,FUSION,LEASEDRIVE VELO,5100277651,96.12,United Kingdom Atomic Energy Authority,United Kingdom Atomic Energy Authority
25/07/2012,MATERIALS & SPARES,FUSION,BUDGET FORKTRUCKS LTD,5100277673,268.67,United Kingdom Atomic Energy Authority,United Kingdom Atomic Energy Authority
25/07/2012,MATERIALS & SPARES,FUSION,BUDGET FORKTRUCKS LTD,5100277674,390.00,United Kingdom Atomic Energy Authority,United Kingdom Atomic Energy Authority
12/07/2012,PLANT & EQUIPMENT REPAIR,FUSION,Brackley Rewinds Ltd,1900057219,140.00,United Kingdom Atomic Energy Authority,United Kingdom Atomic Energy Authority
16/07/2012,VEHICLE REPAIRS,FUSION,Budget Forktrucks Ltd,1900057246,63.44,United Kingdom Atomic Energy Authority,United Kingdom Atomic Energy Authority
02/07/2012,MATERIALS & SPARES,FUSION,FTI LTD,5100276770,632.49,United Kingdom Atomic Energy Authority,United Kingdom Atomic Energy Authority
02/07/2012,MATERIALS & SPARES,FUSION,RS COMPONENTS LTD,5100276817,73.49,United Kingdom Atomic Energy Authority,United Kingdom Atomic Energy Authority
02/07/2012,MATERIALS & SPARES,FUSION,OXFORD BOLTS & BEARINGS,5100276822,338.70,United Kingdom Atomic Energy Authority,United Kingdom Atomic Energy Authority
04/07/2012,MATERIALS & SPARES,FUSION,METALFAST (A DIVISION OF,5100276915,67.00,United Kingdom Atomic Energy Authority,United Kingdom Atomic Energy Authority
16/07/2012,PLANT & EQUIPMENT,FUSION,MILLHILL TOOLS LTD,5100277251,13.50,United Kingdom Atomic Energy Authority,United Kingdom Atomic Energy Authority
16/07/2012,PLANT & EQUIPMENT,FUSION,MILLHILL TOOLS LTD,5100277253,29.71,United Kingdom Atomic Energy Authority,United Kingdom Atomic Energy Authority
16/07/2012,MATERIALS & SPARES,FUSION,TVH,5100277288,291.45,United Kingdom Atomic Energy Authority,United Kingdom Atomic Energy Authority
16/07/2012,MATERIALS & SPARES,FUSION,OXFORD BOLTS & BEARINGS,5100277294,722.43,United Kingdom Atomic Energy Authority,United Kingdom Atomic Energy Authority
16/07/2012,MATERIALS & SPARES,FUSION,RS COMPONENTS LTD,5100277308,81.08,United Kingdom Atomic Energy Authority,United Kingdom Atomic Energy Authority
16/07/2012,MATERIALS & SPARES,FUSION,RS COMPONENTS LTD,5100277366,101.34,United Kingdom Atomic Energy Authority,United Kingdom Atomic Energy Authority
23/07/2012,MATERIALS & SPARES,FUSION,FARNELL ELECTRONIC,5100277484,39.46,United Kingdom Atomic Energy Authority,United Kingdom Atomic Energy Authority
23/07/2012,PLANT & EQUIPMENT,FUSION,SELBY ENGINEERING & LIFTING SAFETY,5100277580,156.20,United Kingdom Atomic Energy Authority,United Kingdom Atomic Energy Authority
09/07/2012,CAR HIRE,FUSION,LEASEDRIVE VELO,5100277110,72.88,United Kingdom Atomic Energy Authority,United Kingdom Atomic Energy Authority
06/07/2012,SUBSISTENCE,FUSION,EMPLOYEE EXPENSES,100650650,320.47,United Kingdom Atomic Energy Authority,United Kingdom Atomic Energy Authority
06/07/2012,ROAD TRAVEL,FUSION,EMPLOYEE EXPENSES,100650650,29.03,United Kingdom Atomic Energy Authority,United Kingdom Atomic Energy Authority
19/07/2012,SUBSISTENCE,FUSION,EMPLOYEE EXPENSES,100650851,20.00,United Kingdom Atomic Energy Authority,United Kingdom Atomic Energy Authority
04/07/2012,GASES,FUSION,BOC LTD,5100276220,340.05,United Kingdom Atomic Energy Authority,United Kingdom Atomic Energy Authority
02/07/2012,MATERIALS & SPARES,FUSION,FARNELL ELECTRONIC,5100276652,5.76,United Kingdom Atomic Energy Authority,United Kingdom Atomic Energy Authority
02/07/2012,MATERIALS & SPARES,FUSION,FARNELL ELECTRONIC,5100276656,13.35,United Kingdom Atomic Energy Authority,United Kingdom Atomic Energy Authority
02/07/2012,MATERIALS & SPARES,FUSION,FARNELL ELECTRONIC,5100276657,447.89,United Kingdom Atomic Energy Authority,United Kingdom Atomic Energy Authority
02/07/2012,MATERIALS & SPARES,FUSION,FARNELL ELECTRONIC,5100276668,434.86,United Kingdom Atomic Energy Authority,United Kingdom Atomic Energy Authority
02/07/2012,PROFESSIONAL SERVICES,FUSION,HUTTON ENGINEERING (PRECISION) LTD,5100276678,185.32,United Kingdom Atomic Energy Authority,United Kingdom Atomic Energy Authority
02/07/2012,PERSONAL PROTECTIVE EQUIPMENT,FUSION,ARCO WESSEX,5100276715,49.09,United Kingdom Atomic Energy Authority,United Kingdom Atomic Energy Authority
02/07/2012,MATERIALS & SPARES,FUSION,RS COMPONENTS LTD,5100276730,64.31,United Kingdom Atomic Energy Authority,United Kingdom Atomic Energy Authority
02/07/2012,PROFESSIONAL SERVICES,FUSION,M&D ELECTRONICS LTD,5100276744,350.00,United Kingdom Atomic Energy Authority,United Kingdom Atomic Energy Authority
02/07/2012,PROFESSIONAL SERVICES,FUSION,M&D ELECTRONICS LTD,5100276745,854.00,United Kingdom Atomic Energy Authority,United Kingdom Atomic Energy Authority
02/07/2012,MATERIALS & SPARES,FUSION,CROMWELL LTD,5100276791,41.49,United Kingdom Atomic Energy Authority,United Kingdom Atomic Energy Authority
02/07/2012,MATERIALS & SPARES,FUSION,CROMWELL LTD,5100276792,23.98,United Kingdom Atomic Energy Authority,United Kingdom Atomic Energy Authority
09/07/2012,MATERIALS & SPARES,FUSION,FARNELL ELECTRONIC,5100276947,151.92,United Kingdom Atomic Energy Authority,United Kingdom Atomic Energy Authority
11/07/2012,MATERIALS & SPARES,FUSION,FARNELL ELECTRONIC,5100276949,82.00,United Kingdom Atomic Energy Authority,United Kingdom Atomic Energy Authority
16/07/2012,MATERIALS & SPARES,FUSION,SCHROFF UK LTD,5100276959,-385.70,United Kingdom Atomic Energy Authority,United Kingdom Atomic Energy Authority
09/07/2012,MATERIALS & SPARES,FUSION,METALFAST (A DIVISION OF,5100276987,175.50,United Kingdom Atomic Energy Authority,United Kingdom Atomic Energy Authority
09/07/2012,MATERIALS & SPARES,FUSION,FARNELL ELECTRONIC,5100277000,28.70,United Kingdom Atomic Energy Authority,United Kingdom Atomic Energy Authority
09/07/2012,MATERIALS & SPARES,FUSION,FARNELL ELECTRONIC,5100277001,9.71,United Kingdom Atomic Energy Authority,United Kingdom Atomic Energy Authority
09/07/2012,MATERIALS & SPARES,FUSION,FARNELL ELECTRONIC,5100277002,19.42,United Kingdom Atomic Energy Authority,United Kingdom Atomic Energy Authority
09/07/2012,MATERIALS & SPARES,FUSION,OXFORD BOLTS & BEARINGS,5100277019,347.83,United Kingdom Atomic Energy Authority,United Kingdom Atomic Energy Authority
09/07/2012,DELIVERY & CARRIAGE,FUSION,APPLIED WEIGHING INTERNATIONAL LTD,5100277086,110.95,United Kingdom Atomic Energy Authority,United Kingdom Atomic Energy Authority
11/07/2012,PROFESSIONAL SERVICES,FUSION,M&D ELECTRONICS LTD,5100277190,448.00,United Kingdom Atomic Energy Authority,United Kingdom Atomic Energy Authority
11/07/2012,MATERIALS & SPARES,FUSION,CROMWELL LTD,5100277192,22.72,United Kingdom Atomic Energy Authority,United Kingdom Atomic Energy Authority
16/07/2012,GASES,FUSION,BOC LTD,5100277220,304.91,United Kingdom Atomic Energy Authority,United Kingdom Atomic Energy Authority
16/07/2012,GASES,FUSION,BOC LTD,5100277225,7.56,United Kingdom Atomic Energy Authority,United Kingdom Atomic Energy Authority
16/07/2012,MATERIALS & SPARES,FUSION,FLEXIBLE & SPECIALIST CABLES,5100277271,459.70,United Kingdom Atomic Energy Authority,United Kingdom Atomic Energy Authority
16/07/2012,MATERIALS & SPARES,FUSION,FLEXIBLE & SPECIALIST CABLES,5100277272,91.90,United Kingdom Atomic Energy Authority,United Kingdom Atomic Energy Authority
16/07/2012,MATERIALS & SPARES,FUSION,RS COMPONENTS LTD,5100277335,178.40,United Kingdom Atomic Energy Authority,United Kingdom Atomic Energy Authority
16/07/2012,MATERIALS & SPARES,FUSION,RS COMPONENTS LTD,5100277363,60.28,United Kingdom Atomic Energy Authority,United Kingdom Atomic Energy Authority
23/07/2012,PLANT & EQUIPMENT,FUSION,AALCO LIMITED,5100277398,48.40,United Kingdom Atomic Energy Authority,United Kingdom Atomic Energy Authority
23/07/2012,PLANT & EQUIPMENT,FUSION,AALCO LIMITED,5100277399,298.86,United Kingdom Atomic Energy Authority,United Kingdom Atomic Energy Authority
23/07/2012,PLANT & EQUIPMENT,FUSION,AALCO LIMITED,5100277408,271.90,United Kingdom Atomic Energy Authority,United Kingdom Atomic Energy Authority
23/07/2012,PLANT & EQUIPMENT,FUSION,AALCO LIMITED,5100277410,199.30,United Kingdom Atomic Energy Authority,United Kingdom Atomic Energy Authority
16/07/2012,MATERIALS & SPARES,FUSION,CROMWELL LTD,5100277426,55.98,United Kingdom Atomic Energy Authority,United Kingdom Atomic Energy Authority
16/07/2012,MATERIALS & SPARES,FUSION,FARNELL ELECTRONIC,5100277429,-82.00,United Kingdom Atomic Energy Authority,United Kingdom Atomic Energy Authority
23/07/2012,MATERIALS & SPARES,FUSION,FARNELL ELECTRONIC,5100277459,1600.90,United Kingdom Atomic Energy Authority,United Kingdom Atomic Energy Authority
23/07/2012,MATERIALS & SPARES,FUSION,FARNELL ELECTRONIC,5100277460,82.00,United Kingdom Atomic Energy Authority,United Kingdom Atomic Energy Authority
23/07/2012,MATERIALS & SPARES,FUSION,FARNELL ELECTRONIC,5100277461,14.15,United Kingdom Atomic Energy Authority,United Kingdom Atomic Energy Authority
23/07/2012,MATERIALS & SPARES,FUSION,FARNELL ELECTRONIC,5100277462,7.75,United Kingdom Atomic Energy Authority,United Kingdom Atomic Energy Authority
23/07/2012,MATERIALS & SPARES,FUSION,FARNELL ELECTRONIC,5100277465,2218.85,United Kingdom Atomic Energy Authority,United Kingdom Atomic Energy Authority
23/07/2012,IT EQUIPMENT NON CAPITAL,FUSION,MAAINTECH,5100277508,549.00,United Kingdom Atomic Energy Authority,United Kingdom Atomic Energy Authority
23/07/2012,PLANT & EQUIPMENT,FUSION,LEMO UK LTD,5100277509,84.58,United Kingdom Atomic Energy Authority,United Kingdom Atomic Energy Authority
23/07/2012,IT EQUIPMENT NON CAPITAL,FUSION,MAAINTECH,5100277511,2254.00,United Kingdom Atomic Energy Authority,United Kingdom Atomic Energy Authority
23/07/2012,MATERIALS & SPARES,FUSION,FARNELL ELECTRONIC,5100277595,2097.59,United Kingdom Atomic Energy Authority,United Kingdom Atomic Energy Authority
23/07/2012,MATERIALS & SPARES,FUSION,FARNELL ELECTRONIC,5100277614,2.83,United Kingdom Atomic Energy Authority,United Kingdom Atomic Energy Authority
23/07/2012,MATERIALS & SPARES,FUSION,FARNELL ELECTRONIC,5100277615,8.49,United Kingdom Atomic Energy Authority,United Kingdom Atomic Energy Authority
23/07/2012,MATERIALS & SPARES,FUSION,FARNELL ELECTRONIC,5100277624,80.74,United Kingdom Atomic Energy Authority,United Kingdom Atomic Energy Authority
23/07/2012,MATERIALS & SPARES,FUSION,CROMWELL LTD,5100277679,49.68,United Kingdom Atomic Energy Authority,United Kingdom Atomic Energy Authority
23/07/2012,MATERIALS & SPARES,FUSION,ACRONA ENGINEERING LTD,5100277717,497.04,United Kingdom Atomic Energy Authority,United Kingdom Atomic Energy Authority
02/07/2012,PRINTING & GRAPHICS,FUSION,KIP UK SERVICE CENTRE,5100276183,339.40,United Kingdom Atomic Energy Authority,United Kingdom Atomic Energy Authority
16/07/2012,STATIONERY,FUSION,OCE UK LTD,5100277409,25.40,United Kingdom Atomic Energy Authority,United Kingdom Atomic Energy Authority
16/07/2012,SOFTWARE,FUSION,APPLIED CAE,5100277422,2260.00,United Kingdom Atomic Energy Authority,United Kingdom Atomic Energy Authority
23/07/2012,STATIONERY,FUSION,OCE UK LTD,5100277599,228.60,United Kingdom Atomic Energy Authority,United Kingdom Atomic Energy Authority
02/07/2012,MATERIALS & SPARES,FUSION,RS COMPONENTS LTD,5100276807,81.58,United Kingdom Atomic Energy Authority,United Kingdom Atomic Energy Authority
16/07/2012,MATERIALS & SPARES,FUSION,RS COMPONENTS LTD,5100277309,34.11,United Kingdom Atomic Energy Authority,United Kingdom Atomic Energy Authority
18/07/2012,TRAINING COURSE FEES,FUSION,EA TECHNOLOGY LTD,5100277570,990.00,United Kingdom Atomic Energy Authority,United Kingdom Atomic Energy Authority
23/07/2012,TRAINING COURSE FEES,FUSION,ICS LIMITED,5100277664,471.99,United Kingdom Atomic Energy Authority,United Kingdom Atomic Energy Authority
18/07/2012,GASES,FUSION,BOC LTD,5100276217,213.20,United Kingdom Atomic Energy Authority,United Kingdom Atomic Energy Authority
18/07/2012,GASES,FUSION,AIR PRODUCTS PLC,5100276370,17.98,United Kingdom Atomic Energy Authority,United Kingdom Atomic Energy Authority
02/07/2012,MATERIALS & SPARES,FUSION,FARNELL ELECTRONIC,5100276551,8.83,United Kingdom Atomic Energy Authority,United Kingdom Atomic Energy Authority
02/07/2012,MATERIALS & SPARES,FUSION,FARNELL ELECTRONIC,5100276672,22.78,United Kingdom Atomic Energy Authority,United Kingdom Atomic Energy Authority
02/07/2012,MATERIALS & SPARES,FUSION,RS COMPONENTS LTD,5100276721,188.19,United Kingdom Atomic Energy Authority,United Kingdom Atomic Energy Authority
02/07/2012,MATERIALS & SPARES,FUSION,KEY INDUSTRIAL EQUIPMENT LTD,5100276752,79.90,United Kingdom Atomic Energy Authority,United Kingdom Atomic Energy Authority
02/07/2012,MATERIALS & SPARES,FUSION,RS COMPONENTS LTD,5100276804,27.72,United Kingdom Atomic Energy Authority,United Kingdom Atomic Energy Authority
02/07/2012,MATERIALS & SPARES,FUSION,RS COMPONENTS LTD,5100276815,140.40,United Kingdom Atomic Energy Authority,United Kingdom Atomic Energy Authority
09/07/2012,PLANT & EQUIPMENT,FUSION,LONDON FLUID SYSTEM,5100276840,367.82,United Kingdom Atomic Energy Authority,United Kingdom Atomic Energy Authority
09/07/2012,MATERIALS & SPARES,FUSION,FARNELL ELECTRONIC,5100276964,2.46,United Kingdom Atomic Energy Authority,United Kingdom Atomic Energy Authority
09/07/2012,MATERIALS & SPARES,FUSION,FARNELL ELECTRONIC,5100276968,32.86,United Kingdom Atomic Energy Authority,United Kingdom Atomic Energy Authority
09/07/2012,MATERIALS & SPARES,FUSION,FARNELL ELECTRONIC,5100276983,168.83,United Kingdom Atomic Energy Authority,United Kingdom Atomic Energy Authority
09/07/2012,CONSUMABLES,FUSION,SIP ANALYTICAL LTD,5100277062,2150.00,United Kingdom Atomic Energy Authority,United Kingdom Atomic Energy Authority
09/07/2012,MATERIALS & SPARES,FUSION,RS COMPONENTS LTD,5100277072,291.91,United Kingdom Atomic Energy Authority,United Kingdom Atomic Energy Authority
09/07/2012,MATERIALS & SPARES,FUSION,RS COMPONENTS LTD,5100277160,78.75,United Kingdom Atomic Energy Authority,United Kingdom Atomic Energy Authority
25/07/2012,GASES,FUSION,BOC LTD,5100277230,213.20,United Kingdom Atomic Energy Authority,United Kingdom Atomic Energy Authority
23/07/2012,MATERIALS & SPARES,FUSION,FARNELL ELECTRONIC,5100277627,2.32,United Kingdom Atomic Energy Authority,United Kingdom Atomic Energy Authority
23/07/2012,MATERIALS & SPARES,FUSION,MAPLIN ELECTRONICS LTD,5100277676,40.94,United Kingdom Atomic Energy Authority,United Kingdom Atomic Energy Authority
16/07/2012,PLANT & EQUIPMENT,FUSION,EDMUNDSON ELECTRICALS LTD,5100276635,410.11,United Kingdom Atomic Energy Authority,United Kingdom Atomic Energy Authority
16/07/2012,PLANT & EQUIPMENT,FUSION,EDMUNDSON ELECTRICALS LTD,5100276796,85.66,United Kingdom Atomic Energy Authority,United Kingdom Atomic Energy Authority
09/07/2012,ADT FIRE & SECURITY PLC,FUSION,ADT FIRE & SECURITY PLC,5100276938,4965.00,United Kingdom Atomic Energy Authority,United Kingdom Atomic Energy Authority
09/07/2012,ADT FIRE & SECURITY PLC,FUSION,ADT FIRE & SECURITY PLC,5100276939,3916.13,United Kingdom Atomic Energy Authority,United Kingdom Atomic Energy Authority
09/07/2012,ADT FIRE & SECURITY PLC,FUSION,ADT FIRE & SECURITY PLC,5100276940,8594.60,United Kingdom Atomic Energy Authority,United Kingdom Atomic Energy Authority
09/07/2012,ADT FIRE & SECURITY PLC,FUSION,ADT FIRE & SECURITY PLC,5100276941,1028.25,United Kingdom Atomic Energy Authority,United Kingdom Atomic Energy Authority
09/07/2012,ADT FIRE & SECURITY PLC,FUSION,ADT FIRE & SECURITY PLC,5100276942,27759.50,United Kingdom Atomic Energy Authority,United Kingdom Atomic Energy Authority
16/07/2012,PLANT & EQUIPMENT,FUSION,EDMUNDSON ELECTRICALS LTD,5100277004,47.95,United Kingdom Atomic Energy Authority,United Kingdom Atomic Energy Authority
09/07/2012,BUILDING REPAIRS,FUSION,KNOWLES & SONS (OXFORD) LTD,5100277032,232.34,United Kingdom Atomic Energy Authority,United Kingdom Atomic Energy Authority
09/07/2012,MATERIALS & SPARES,FUSION,RS COMPONENTS LTD,5100277080,167.78,United Kingdom Atomic Energy Authority,United Kingdom Atomic Energy Authority
09/07/2012,PLANT SPARES,FUSION,AVNET EMG LTD,5100277097,708.00,United Kingdom Atomic Energy Authority,United Kingdom Atomic Energy Authority
16/07/2012,PLANT & EQUIPMENT,FUSION,EDMUNDSON ELECTRICALS LTD,5100277104,398.99,United Kingdom Atomic Energy Authority,United Kingdom Atomic Energy Authority
16/07/2012,MATERIALS & SPARES,FUSION,ANIXTER (UK) LTD,5100277210,957.50,United Kingdom Atomic Energy Authority,United Kingdom Atomic Energy Authority
18/07/2012,MATERIALS & SPARES,FUSION,FARNELL ELECTRONIC,5100277376,795.41,United Kingdom Atomic Energy Authority,United Kingdom Atomic Energy Authority
23/07/2012,MATERIALS & SPARES,FUSION,FARNELL ELECTRONIC,5100277626,105.40,United Kingdom Atomic Energy Authority,United Kingdom Atomic Energy Authority
23/07/2012,MATERIALS & SPARES,FUSION,RS COMPONENTS LTD,5100277635,224.57,United Kingdom Atomic Energy Authority,United Kingdom Atomic Energy Authority
11/07/2012,PERSONAL PROTECTIVE EQUIPMENT,FUSION,ARCO WESSEX,5100276701,74.90,United Kingdom Atomic Energy Authority,United Kingdom Atomic Energy Authority
11/07/2012,PERSONAL PROTECTIVE EQUIPMENT,FUSION,ARCO WESSEX,5100276713,54.50,United Kingdom Atomic Energy Authority,United Kingdom Atomic Energy Authority
02/07/2012,MATERIALS & SPARES,FUSION,RS COMPONENTS LTD,5100276729,687.03,United Kingdom Atomic Energy Authority,United Kingdom Atomic Energy Authority
09/07/2012,MATERIALS & SPARES,FUSION,RS COMPONENTS LTD,5100277055,24.01,United Kingdom Atomic Energy Authority,United Kingdom Atomic Energy Authority
09/07/2012,MATERIALS & SPARES,FUSION,RS COMPONENTS LTD,5100277056,385.87,United Kingdom Atomic Energy Authority,United Kingdom Atomic Energy Authority
16/07/2012,MATERIALS & SPARES,FUSION,RS COMPONENTS LTD,5100277177,104.05,United Kingdom Atomic Energy Authority,United Kingdom Atomic Energy Authority
23/07/2012,PERSONAL PROTECTIVE EQUIPMENT,FUSION,ARCO WESSEX,5100277424,20.40,United Kingdom Atomic Energy Authority,United Kingdom Atomic Energy Authority
25/07/2012,BUILDING REPAIRS,FUSION,KNOWLES & SONS (OXFORD) LTD,5100277607,196.90,United Kingdom Atomic Energy Authority,United Kingdom Atomic Energy Authority
25/07/2012,PLANT & EQUIPMENT,FUSION,NATIONAL INSTRUMENTS LTD,5100277711,2716.87,United Kingdom Atomic Energy Authority,United Kingdom Atomic Energy Authority
02/07/2012,GASES,FUSION,BOC LTD,5100276215,505.20,United Kingdom Atomic Energy Authority,United Kingdom Atomic Energy Authority
02/07/2012,GASES,FUSION,BOC LTD,5100276455,505.20,United Kingdom Atomic Energy Authority,United Kingdom Atomic Energy Authority
02/07/2012,MATERIALS & SPARES,FUSION,RS COMPONENTS LTD,5100276727,242.18,United Kingdom Atomic Energy Authority,United Kingdom Atomic Energy Authority
09/07/2012,MATERIALS & SPARES,FUSION,STEWART-BUCHANAN GAUGES LTD,5100276763,741.80,United Kingdom Atomic Energy Authority,United Kingdom Atomic Energy Authority
09/07/2012,GASES,FUSION,BOC LTD,5100276955,479.94,United Kingdom Atomic Energy Authority,United Kingdom Atomic Energy Authority
09/07/2012,GASES,FUSION,BOC LTD,5100276956,3741.36,United Kingdom Atomic Energy Authority,United Kingdom Atomic Energy Authority
09/07/2012,MATERIALS & SPARES,FUSION,RS COMPONENTS LTD,5100277060,40.09,United Kingdom Atomic Energy Authority,United Kingdom Atomic Energy Authority
16/07/2012,GASES,FUSION,BOC LTD,5100277219,20217.00,United Kingdom Atomic Energy Authority,United Kingdom Atomic Energy Authority
16/07/2012,TRAINING COURSE FEES,FUSION,ROCKWELL AUTOMATION LTD,5100277296,650.99,United Kingdom Atomic Energy Authority,United Kingdom Atomic Energy Authority
16/07/2012,GASES,FUSION,BOC LTD,5100277298,35062.77,United Kingdom Atomic Energy Authority,United Kingdom Atomic Energy Authority
02/07/2012,MATERIALS & SPARES,FUSION,OERLIKON LEYBOLD VACUUM UK LTD,5100276835,428.87,United Kingdom Atomic Energy Authority,United Kingdom Atomic Energy Authority
02/07/2012,MATERIALS & SPARES,FUSION,OERLIKON LEYBOLD VACUUM UK LTD,5100276837,91.87,United Kingdom Atomic Energy Authority,United Kingdom Atomic Energy Authority
09/07/2012,MATERIALS & SPARES,FUSION,OERLIKON LEYBOLD VACUUM UK LTD,5100277150,84.15,United Kingdom Atomic Energy Authority,United Kingdom Atomic Energy Authority
23/07/2012,MATERIALS & SPARES,FUSION,FARNELL ELECTRONIC,5100277452,1.20,United Kingdom Atomic Energy Authority,United Kingdom Atomic Energy Authority
23/07/2012,MATERIALS & SPARES,FUSION,OERLIKON LEYBOLD VACUUM UK LTD,5100277558,114.71,United Kingdom Atomic Energy Authority,United Kingdom Atomic Energy Authority
02/07/2012,PLANT SPARES,FUSION,A D INSTALLATION LTD,5100276762,590.00,United Kingdom Atomic Energy Authority,United Kingdom Atomic Energy Authority
02/07/2012,CAR HIRE,FUSION,LEASEDRIVE VELO,5100276823,72.88,United Kingdom Atomic Energy Authority,United Kingdom Atomic Energy Authority
16/07/2012,TREATED WATER,FUSION,B & V WATER TREATMENT,5100276843,1131.98,United Kingdom Atomic Energy Authority,United Kingdom Atomic Energy Authority
04/07/2012,MATERIALS & SPARES,FUSION,GOODMAN STEEL SERVICES LTD,5100276867,808.00,United Kingdom Atomic Energy Authority,United Kingdom Atomic Energy Authority
09/07/2012,PROFESSIONAL SERVICES,FUSION,MCBAINS COOPER,5100276925,873.78,United Kingdom Atomic Energy Authority,United Kingdom Atomic Energy Authority
09/07/2012,MATERIALS & SPARES,FUSION,RS COMPONENTS LTD,5100277161,343.87,United Kingdom Atomic Energy Authority,United Kingdom Atomic Energy Authority
09/07/2012,MATERIALS & SPARES,FUSION,RS COMPONENTS LTD,5100277175,72.18,United Kingdom Atomic Energy Authority,United Kingdom Atomic Energy Authority
16/07/2012,TREATED WATER,FUSION,B & V WATER TREATMENT,5100277208,2965.00,United Kingdom Atomic Energy Authority,United Kingdom Atomic Energy Authority
25/07/2012,MATERIALS & SPARES,FUSION,UNDERWOODS ELECTRICAL DISTRIBUTORS,5100277273,2196.44,United Kingdom Atomic Energy Authority,United Kingdom Atomic Energy Authority
25/07/2012,MATERIALS & SPARES,FUSION,UNDERWOODS ELECTRICAL DISTRIBUTORS,5100277358,6573.95,United Kingdom Atomic Energy Authority,United Kingdom Atomic Energy Authority
23/07/2012,MATERIALS & SPARES,FUSION,FARNELL ELECTRONIC,5100277485,47.23,United Kingdom Atomic Energy Authority,United Kingdom Atomic Energy Authority
23/07/2012,PLANT & EQUIPMENT,FUSION,LC AUTOMATION LTD,5100277500,360.00,United Kingdom Atomic Energy Authority,United Kingdom Atomic Energy Authority
23/07/2012,MATERIALS & SPARES,FUSION,RS COMPONENTS LTD,5100277637,117.07,United Kingdom Atomic Energy Authority,United Kingdom Atomic Energy Authority
23/07/2012,MATERIALS & SPARES,FUSION,SCREWFIX DIRECT LTD,5100277722,57.60,United Kingdom Atomic Energy Authority,United Kingdom Atomic Energy Authority
09/07/2012,MATERIALS & SPARES,FUSION,OXFORD BOLTS & BEARINGS,5100276577,418.00,United Kingdom Atomic Energy Authority,United Kingdom Atomic Energy Authority
09/07/2012,MATERIALS & SPARES,FUSION,RS COMPONENTS LTD,5100277137,224.34,United Kingdom Atomic Energy Authority,United Kingdom Atomic Energy Authority
11/07/2012,MATERIALS & SPARES,FUSION,RS COMPONENTS LTD,5100277143,94.32,United Kingdom Atomic Energy Authority,United Kingdom Atomic Energy Authority
09/07/2012,MATERIALS & SPARES,FUSION,RS COMPONENTS LTD,5100277145,74.11,United Kingdom Atomic Energy Authority,United Kingdom Atomic Energy Authority
16/07/2012,SAFETY STORES,FUSION,SP SERVICES,5100277198,64.51,United Kingdom Atomic Energy Authority,United Kingdom Atomic Energy Authority
16/07/2012,CATERING,FUSION,AVENANCE PLC,5100277278,781.00,United Kingdom Atomic Energy Authority,United Kingdom Atomic Energy Authority
16/07/2012,SAFETY STORES,FUSION,SP SERVICES,5100277338,78.30,United Kingdom Atomic Energy Authority,United Kingdom Atomic Energy Authority
23/07/2012,MATERIALS & SPARES,FUSION,RS COMPONENTS LTD,5100277642,73.92,United Kingdom Atomic Energy Authority,United Kingdom Atomic Energy Authority
05/07/2012,PLANT & EQUIPMENT,FUSION,Actuator Services Ltd,1900057175,1777.38,United Kingdom Atomic Energy Authority,United Kingdom Atomic Energy Authority
11/07/2012,PLANT & EQUIPMENT,FUSION,LC AUTOMATION LTD,5100277166,111.58,United Kingdom Atomic Energy Authority,United Kingdom Atomic Energy Authority
16/07/2012,PLANT & EQUIPMENT,FUSION,LC AUTOMATION LTD,5100277265,1860.65,United Kingdom Atomic Energy Authority,United Kingdom Atomic Energy Authority
16/07/2012,PLANT & EQUIPMENT,FUSION,LC AUTOMATION LTD,5100277357,612.85,United Kingdom Atomic Energy Authority,United Kingdom Atomic Energy Authority
23/07/2012,MATERIALS & SPARES,FUSION,FARNELL ELECTRONIC,5100277482,3.74,United Kingdom Atomic Energy Authority,United Kingdom Atomic Energy Authority
23/07/2012,MATERIALS & SPARES,FUSION,FARNELL ELECTRONIC,5100277483,128.40,United Kingdom Atomic Energy Authority,United Kingdom Atomic Energy Authority
25/07/2012,PLANT SPARES,FUSION,MICROMECH,5100277660,583.00,United Kingdom Atomic Energy Authority,United Kingdom Atomic Energy Authority
16/07/2012,MATERIALS & SPARES,FUSION,ANIXTER (UK) LTD,5100276499,241.20,United Kingdom Atomic Energy Authority,United Kingdom Atomic Energy Authority
04/07/2012,PLANT & EQUIPMENT,FUSION,EDMUNDSON ELECTRICAL LTD,5100276546,386.55,United Kingdom Atomic Energy Authority,United Kingdom Atomic Energy Authority
02/07/2012,MATERIALS & SPARES,FUSION,FARNELL ELECTRONIC,5100276553,58.32,United Kingdom Atomic Energy Authority,United Kingdom Atomic Energy Authority
02/07/2012,MATERIALS & SPARES,FUSION,KEY INDUSTRIAL EQUIPMENT LTD,5100276568,40.95,United Kingdom Atomic Energy Authority,United Kingdom Atomic Energy Authority
02/07/2012,MATERIALS & SPARES,FUSION,E2V TECHNOLOGIES (UK) lTD,5100276634,3220.00,United Kingdom Atomic Energy Authority,United Kingdom Atomic Energy Authority
02/07/2012,MATERIALS & SPARES,FUSION,MARK 5,5100276648,409.29,United Kingdom Atomic Energy Authority,United Kingdom Atomic Energy Authority
02/07/2012,MATERIALS & SPARES,FUSION,FARNELL ELECTRONIC,5100276665,52.92,United Kingdom Atomic Energy Authority,United Kingdom Atomic Energy Authority
02/07/2012,CONSUMABLES,FUSION,CAPARO TESTING TECHNOLOGIES,5100276783,100.00,United Kingdom Atomic Energy Authority,United Kingdom Atomic Energy Authority
04/07/2012,PLANT & EQUIPMENT,FUSION,EDMUNDSON ELECTRICAL LTD,5100276795,973.26,United Kingdom Atomic Energy Authority,United Kingdom Atomic Energy Authority
02/07/2012,MATERIALS & SPARES,FUSION,RS COMPONENTS LTD,5100276805,58.57,United Kingdom Atomic Energy Authority,United Kingdom Atomic Energy Authority
02/07/2012,MATERIALS & SPARES,FUSION,RS COMPONENTS LTD,5100276816,113.72,United Kingdom Atomic Energy Authority,United Kingdom Atomic Energy Authority
04/07/2012,MATERIALS & SPARES,FUSION,WOODSTOCK INDUSTRIAL SUPPLIES LTD,5100276842,47.24,United Kingdom Atomic Energy Authority,United Kingdom Atomic Energy Authority
09/07/2012,MATERIALS & SPARES,FUSION,FARNELL ELECTRONIC,5100276852,132.04,United Kingdom Atomic Energy Authority,United Kingdom Atomic Energy Authority
09/07/2012,MATERIALS & SPARES,FUSION,FARNELL ELECTRONIC,5100276853,489.40,United Kingdom Atomic Energy Authority,United Kingdom Atomic Energy Authority
09/07/2012,MATERIALS & SPARES,FUSION,FARNELL ELECTRONIC,5100276856,72.41,United Kingdom Atomic Energy Authority,United Kingdom Atomic Energy Authority
09/07/2012,MATERIALS & SPARES,FUSION,FARNELL ELECTRONIC,5100276858,92.66,United Kingdom Atomic Energy Authority,United Kingdom Atomic Energy Authority
04/07/2012,MATERIALS & SPARES,FUSION,SCREWFIX DIRECT LTD,5100276921,54.04,United Kingdom Atomic Energy Authority,United Kingdom Atomic Energy Authority
09/07/2012,MATERIALS & SPARES,FUSION,FARNELL ELECTRONIC,5100276958,0.90,United Kingdom Atomic Energy Authority,United Kingdom Atomic Energy Authority
09/07/2012,PLANT & EQUIPMENT,FUSION,EDMUNDSON ELECTRICAL LTD,5100276991,3571.53,United Kingdom Atomic Energy Authority,United Kingdom Atomic Energy Authority
09/07/2012,PLANT & EQUIPMENT,FUSION,EDMUNDSON ELECTRICAL LTD,5100277005,63.82,United Kingdom Atomic Energy Authority,United Kingdom Atomic Energy Authority
11/07/2012,PLANT & EQUIPMENT,FUSION,POWELL & CO,5100277020,339.15,United Kingdom Atomic Energy Authority,United Kingdom Atomic Energy Authority
09/07/2012,MATERIALS & SPARES,FUSION,RS COMPONENTS LTD,5100277068,246.75,United Kingdom Atomic Energy Authority,United Kingdom Atomic Energy Authority
09/07/2012,MATERIALS & SPARES,FUSION,BERKSHIRE METALS,5100277098,248.50,United Kingdom Atomic Energy Authority,United Kingdom Atomic Energy Authority
09/07/2012,MATERIALS & SPARES,FUSION,ALPHA ENGINEERING SUPPLIES,5100277099,262.47,United Kingdom Atomic Energy Authority,United Kingdom Atomic Energy Authority
09/07/2012,PLANT & EQUIPMENT,FUSION,EDMUNDSON ELECTRICAL LTD,5100277102,460.60,United Kingdom Atomic Energy Authority,United Kingdom Atomic Energy Authority
09/07/2012,PLANT & EQUIPMENT,FUSION,EDMUNDSON ELECTRICAL LTD,5100277105,128.70,United Kingdom Atomic Energy Authority,United Kingdom Atomic Energy Authority
18/07/2012,MATERIALS & SPARES,FUSION,DILO ARMATURAN AND ANLAGEN GMBH,5100277186,151.53,United Kingdom Atomic Energy Authority,United Kingdom Atomic Energy Authority
18/07/2012,GASES,FUSION,BOC LTD,5100277228,114.86,United Kingdom Atomic Energy Authority,United Kingdom Atomic Energy Authority
16/07/2012,MATERIALS & SPARES,FUSION,ANIXTER (UK) LTD,5100277299,78.00,United Kingdom Atomic Energy Authority,United Kingdom Atomic Energy Authority
18/07/2012,MATERIALS & SPARES,FUSION,RS COMPONENTS LTD,5100277321,206.87,United Kingdom Atomic Energy Authority,United Kingdom Atomic Energy Authority
16/07/2012,MATERIALS & SPARES,FUSION,ANIXTER (UK) LTD,5100277340,-241.20,United Kingdom Atomic Energy Authority,United Kingdom Atomic Energy Authority
16/07/2012,MATERIALS & SPARES,FUSION,FARNELL ELECTRONIC,5100277378,351.40,United Kingdom Atomic Energy Authority,United Kingdom Atomic Energy Authority
18/07/2012,PLANT & EQUIPMENT,FUSION,ROUTECO,5100277382,374.51,United Kingdom Atomic Energy Authority,United Kingdom Atomic Energy Authority
23/07/2012,MATERIALS & SPARES,FUSION,FARNELL ELECTRONIC,5100277449,95.00,United Kingdom Atomic Energy Authority,United Kingdom Atomic Energy Authority
23/07/2012,MATERIALS & SPARES,FUSION,FARNELL ELECTRONIC,5100277450,4.70,United Kingdom Atomic Energy Authority,United Kingdom Atomic Energy Authority
23/07/2012,MATERIALS & SPARES,FUSION,TW METALS LTD,5100277476,379.20,United Kingdom Atomic Energy Authority,United Kingdom Atomic Energy Authority
18/07/2012,PLANT & EQUIPMENT,FUSION,EDMUNDSON ELECTRICAL LTD,5100277486,272.81,United Kingdom Atomic Energy Authority,United Kingdom Atomic Energy Authority
23/07/2012,MATERIALS & SPARES,FUSION,NEWBURY ELECTRONICS,5100277498,128.53,United Kingdom Atomic Energy Authority,United Kingdom Atomic Energy Authority
23/07/2012,MATERIALS & SPARES,FUSION,HVR PENTAGON,5100277501,915.00,United Kingdom Atomic Energy Authority,United Kingdom Atomic Energy Authority
23/07/2012,MATERIALS & SPARES,FUSION,VISHAY MEASUREMENTS GROUP UK LTD,5100277512,809.50,United Kingdom Atomic Energy Authority,United Kingdom Atomic Energy Authority
23/07/2012,MATERIALS & SPARES,FUSION,HVR PENTAGON,5100277556,-915.00,United Kingdom Atomic Energy Authority,United Kingdom Atomic Energy Authority
23/07/2012,MATERIALS & SPARES,FUSION,HVR PENTAGON,5100277557,915.00,United Kingdom Atomic Energy Authority,United Kingdom Atomic Energy Authority
23/07/2012,F&F,FUSION,EFG MATTHEWS OFFICE FURNITURE LTD,5100277590,186.00,United Kingdom Atomic Energy Authority,United Kingdom Atomic Energy Authority
25/07/2012,MATERIALS & SPARES,FUSION,HIVOLT CAPACITORS LIMITED,5100277632,690.00,United Kingdom Atomic Energy Authority,United Kingdom Atomic Energy Authority
25/07/2012,GASES,FUSION,AIR PRODUCTS PLC,5100277653,17.40,United Kingdom Atomic Energy Authority,United Kingdom Atomic Energy Authority
23/07/2012,PLANT & EQUIPMENT,FUSION,ROUTECO,5100277657,17.96,United Kingdom Atomic Energy Authority,United Kingdom Atomic Energy Authority
23/07/2012,MATERIALS & SPARES,FUSION,W&S ALLELY LTD,5100277659,130.00,United Kingdom Atomic Energy Authority,United Kingdom Atomic Energy Authority
23/07/2012,MATERIALS & SPARES,FUSION,RS COMPONENTS LTD,5100277692,125.56,United Kingdom Atomic Energy Authority,United Kingdom Atomic Energy Authority
23/07/2012,MATERIALS & SPARES,FUSION,RS COMPONENTS LTD,5100277705,268.86,United Kingdom Atomic Energy Authority,United Kingdom Atomic Energy Authority
23/07/2012,MATERIALS & SPARES,FUSION,RS COMPONENTS LTD,5100277737,-62.45,United Kingdom Atomic Energy Authority,United Kingdom Atomic Energy Authority
25/07/2012,MATERIALS & SPARES,FUSION,FARNELL ELECTRONIC,5100277761,-23.75,United Kingdom Atomic Energy Authority,United Kingdom Atomic Energy Authority
02/07/2012,PERSONAL PROTECTIVE EQUIPMENT,FUSION,ARCO LTD,5100276369,47.55,United Kingdom Atomic Energy Authority,United Kingdom Atomic Energy Authority
02/07/2012,MATERIALS & SPARES,FUSION,G&B PROJECTS COMPANY,5100276569,73.70,United Kingdom Atomic Energy Authority,United Kingdom Atomic Energy Authority
02/07/2012,MATERIALS & SPARES,FUSION,FARNELL ELECTRONIC,5100276658,2.06,United Kingdom Atomic Energy Authority,United Kingdom Atomic Energy Authority
02/07/2012,MATERIALS & SPARES,FUSION,FARNELL ELECTRONIC,5100276659,192.05,United Kingdom Atomic Energy Authority,United Kingdom Atomic Energy Authority
02/07/2012,MATERIALS & SPARES,FUSION,RS COMPONENTS LTD,5100276806,14.36,United Kingdom Atomic Energy Authority,United Kingdom Atomic Energy Authority
02/07/2012,MATERIALS & SPARES,FUSION,RS COMPONENTS LTD,5100276818,62.80,United Kingdom Atomic Energy Authority,United Kingdom Atomic Energy Authority
23/07/2012,MATERIALS & SPARES,FUSION,FARNELL ELECTRONIC,5100276857,6.34,United Kingdom Atomic Energy Authority,United Kingdom Atomic Energy Authority
09/07/2012,PLANT & EQUIPMENT,FUSION,WILSON POWER SOLUTIONS,5100276952,3800.00,United Kingdom Atomic Energy Authority,United Kingdom Atomic Energy Authority
09/07/2012,MATERIALS & SPARES,FUSION,FARNELL ELECTRONIC,5100277043,160.66,United Kingdom Atomic Energy Authority,United Kingdom Atomic Energy Authority
09/07/2012,MATERIALS & SPARES,FUSION,FARNELL ELECTRONIC,5100277044,97.05,United Kingdom Atomic Energy Authority,United Kingdom Atomic Energy Authority
09/07/2012,MATERIALS & SPARES,FUSION,FARNELL ELECTRONIC,5100277045,31.85,United Kingdom Atomic Energy Authority,United Kingdom Atomic Energy Authority
16/07/2012,MATERIALS & SPARES,FUSION,RS COMPONENTS LTD,5100277146,72.58,United Kingdom Atomic Energy Authority,United Kingdom Atomic Energy Authority
16/07/2012,MATERIALS & SPARES,FUSION,FARNELL ELECTRONIC,5100277377,27.30,United Kingdom Atomic Energy Authority,United Kingdom Atomic Energy Authority
16/07/2012,MATERIALS & SPARES,FUSION,FARNELL ELECTRONIC,5100277430,-73.72,United Kingdom Atomic Energy Authority,United Kingdom Atomic Energy Authority
23/07/2012,MATERIALS & SPARES,FUSION,FARNELL ELECTRONIC,5100277489,142.08,United Kingdom Atomic Energy Authority,United Kingdom Atomic Energy Authority
23/07/2012,BUILDING REPAIRS,FUSION,KNOWLES & SONS (OXFORD) LTD,5100277541,49.42,United Kingdom Atomic Energy Authority,United Kingdom Atomic Energy Authority
23/07/2012,BUILDING REPAIRS,FUSION,KNOWLES & SONS (OXFORD) LTD,5100277571,24.71,United Kingdom Atomic Energy Authority,United Kingdom Atomic Energy Authority
23/07/2012,MATERIALS & SPARES,FUSION,FARNELL ELECTRONIC,5100277579,37.20,United Kingdom Atomic Energy Authority,United Kingdom Atomic Energy Authority
23/07/2012,MATERIALS & SPARES,FUSION,FARNELL ELECTRONIC,5100277582,166.95,United Kingdom Atomic Energy Authority,United Kingdom Atomic Energy Authority
23/07/2012,MATERIALS & SPARES,FUSION,FARNELL ELECTRONIC,5100277583,100.71,United Kingdom Atomic Energy Authority,United Kingdom Atomic Energy Authority
23/07/2012,MATERIALS & SPARES,FUSION,FARNELL ELECTRONIC,5100277588,126.60,United Kingdom Atomic Energy Authority,United Kingdom Atomic Energy Authority
23/07/2012,PERSONAL PROTECTIVE EQUIPMENT,FUSION,ARCO LTD,5100277594,6.48,United Kingdom Atomic Energy Authority,United Kingdom Atomic Energy Authority
23/07/2012,PERSONAL PROTECTIVE EQUIPMENT,FUSION,ARCO LTD,5100277596,37.41,United Kingdom Atomic Energy Authority,United Kingdom Atomic Energy Authority
25/07/2012,BUILDING REPAIRS,FUSION,KNOWLES & SONS (OXFORD) LTD,5100277603,598.99,United Kingdom Atomic Energy Authority,United Kingdom Atomic Energy Authority
23/07/2012,MATERIALS & SPARES,FUSION,RS COMPONENTS LTD,5100277688,46.72,United Kingdom Atomic Energy Authority,United Kingdom Atomic Energy Authority
12/07/2012,OTHER FACILITIES MANAGEMENT,FUSION,South Oxfordshire District Council,1900057223,85.00,United Kingdom Atomic Energy Authority,United Kingdom Atomic Energy Authority
06/07/2012,SUBSISTENCE,FUSION,EMPLOYEE EXPENSES,100650659,1.25,United Kingdom Atomic Energy Authority,United Kingdom Atomic Energy Authority
06/07/2012,SUBSISTENCE,FUSION,EMPLOYEE EXPENSES,100650659,4.24,United Kingdom Atomic Energy Authority,United Kingdom Atomic Energy Authority
06/07/2012,RAIL TRAVEL,FUSION,EMPLOYEE EXPENSES,100650659,4.30,United Kingdom Atomic Energy Authority,United Kingdom Atomic Energy Authority
06/07/2012,ROAD TRAVEL,FUSION,EMPLOYEE EXPENSES,100650659,4.20,United Kingdom Atomic Energy Authority,United Kingdom Atomic Energy Authority
12/07/2012,SUBSISTENCE,FUSION,EMPLOYEE EXPENSES,100650706,4.04,United Kingdom Atomic Energy Authority,United Kingdom Atomic Energy Authority
12/07/2012,ROAD TRAVEL,FUSION,EMPLOYEE EXPENSES,100650706,6.50,United Kingdom Atomic Energy Authority,United Kingdom Atomic Energy Authority
28/07/2012,SUBSISTENCE,FUSION,EMPLOYEE EXPENSES,100658603,14.74,United Kingdom Atomic Energy Authority,United Kingdom Atomic Energy Authority
28/07/2012,SUBSISTENCE,FUSION,EMPLOYEE EXPENSES,100658603,9.96,United Kingdom Atomic Energy Authority,United Kingdom Atomic Energy Authority
18/07/2012,PLANT & EQUIPMENT,FUSION,AALCO LIMITED,5100276357,355.00,United Kingdom Atomic Energy Authority,United Kingdom Atomic Energy Authority
11/07/2012,PLANT & EQUIPMENT,FUSION,AALCO LIMITED,5100276358,372.50,United Kingdom Atomic Energy Authority,United Kingdom Atomic Energy Authority
02/07/2012,PLANT & EQUIPMENT,FUSION,AALCO LIMITED,5100276539,247.50,United Kingdom Atomic Energy Authority,United Kingdom Atomic Energy Authority
02/07/2012,PLANT & EQUIPMENT,FUSION,AALCO LIMITED,5100276540,487.92,United Kingdom Atomic Energy Authority,United Kingdom Atomic Energy Authority
02/07/2012,PLANT & EQUIPMENT,FUSION,AALCO LIMITED,5100276541,479.90,United Kingdom Atomic Energy Authority,United Kingdom Atomic Energy Authority
02/07/2012,PLANT & EQUIPMENT,FUSION,PFEIFFER VACUUM UK,5100276565,305.80,United Kingdom Atomic Energy Authority,United Kingdom Atomic Energy Authority
02/07/2012,PLANT & EQUIPMENT,FUSION,AALCO LIMITED,5100276619,966.00,United Kingdom Atomic Energy Authority,United Kingdom Atomic Energy Authority
02/07/2012,PLANT & EQUIPMENT,FUSION,AALCO LIMITED,5100276622,36.00,United Kingdom Atomic Energy Authority,United Kingdom Atomic Energy Authority
02/07/2012,PLANT & EQUIPMENT,FUSION,AALCO LIMITED,5100276623,45.00,United Kingdom Atomic Energy Authority,United Kingdom Atomic Energy Authority
02/07/2012,PLANT & EQUIPMENT,FUSION,AALCO LIMITED,5100276624,39.00,United Kingdom Atomic Energy Authority,United Kingdom Atomic Energy Authority
02/07/2012,PLANT & EQUIPMENT,FUSION,AALCO LIMITED,5100276625,12.50,United Kingdom Atomic Energy Authority,United Kingdom Atomic Energy Authority
02/07/2012,MATERIALS & SPARES,FUSION,FARNELL ELECTRONIC,5100276667,11.52,United Kingdom Atomic Energy Authority,United Kingdom Atomic Energy Authority
04/07/2012,MATERIALS & SPARES,FUSION,RS COMPONENTS LTD,5100276722,69.41,United Kingdom Atomic Energy Authority,United Kingdom Atomic Energy Authority
02/07/2012,PLANT SPARES,FUSION,EDINBURGH INSTRUMENTS,5100276741,650.00,United Kingdom Atomic Energy Authority,United Kingdom Atomic Energy Authority
02/07/2012,MATERIALS & SPARES,FUSION,EDMUND OPTICS LTD,5100276771,447.00,United Kingdom Atomic Energy Authority,United Kingdom Atomic Energy Authority
02/07/2012,MATERIALS & SPARES,FUSION,THORLABS LTD,5100276785,154.40,United Kingdom Atomic Energy Authority,United Kingdom Atomic Energy Authority
02/07/2012,MATERIALS & SPARES,FUSION,RS COMPONENTS LTD,5100276801,76.12,United Kingdom Atomic Energy Authority,United Kingdom Atomic Energy Authority
02/07/2012,MATERIALS & SPARES,FUSION,RS COMPONENTS LTD,5100276802,100.36,United Kingdom Atomic Energy Authority,United Kingdom Atomic Energy Authority
02/07/2012,MATERIALS & SPARES,FUSION,RS COMPONENTS LTD,5100276808,20.82,United Kingdom Atomic Energy Authority,United Kingdom Atomic Energy Authority
09/07/2012,PLANT & EQUIPMENT,FUSION,PFEIFFER VACUUM UK,5100276872,5990.94,United Kingdom Atomic Energy Authority,United Kingdom Atomic Energy Authority
16/07/2012,PERSONAL PROTECTIVE EQUIPMENT,FUSION,ARCO LTD,5100277064,21.04,United Kingdom Atomic Energy Authority,United Kingdom Atomic Energy Authority
09/07/2012,MATERIALS & SPARES,FUSION,RS COMPONENTS LTD,5100277140,43.31,United Kingdom Atomic Energy Authority,United Kingdom Atomic Energy Authority
09/07/2012,MATERIALS & SPARES,FUSION,RS COMPONENTS LTD,5100277178,44.94,United Kingdom Atomic Energy Authority,United Kingdom Atomic Energy Authority
16/07/2012,MATERIALS & SPARES,FUSION,RS COMPONENTS LTD,5100277180,8.61,United Kingdom Atomic Energy Authority,United Kingdom Atomic Energy Authority
09/07/2012,MATERIALS & SPARES,FUSION,RS COMPONENTS LTD,5100277181,66.32,United Kingdom Atomic Energy Authority,United Kingdom Atomic Energy Authority
11/07/2012,MATERIALS & SPARES,FUSION,RS COMPONENTS LTD,5100277183,72.89,United Kingdom Atomic Energy Authority,United Kingdom Atomic Energy Authority
16/07/2012,GASES,FUSION,BOC LTD,5100277231,171.12,United Kingdom Atomic Energy Authority,United Kingdom Atomic Energy Authority
16/07/2012,PROFESSIONAL SERVICES,FUSION,SWAGELOK LONDON,5100277282,157.44,United Kingdom Atomic Energy Authority,United Kingdom Atomic Energy Authority
16/07/2012,MATERIALS & SPARES,FUSION,THORLABS LTD,5100277307,148.94,United Kingdom Atomic Energy Authority,United Kingdom Atomic Energy Authority
16/07/2012,MATERIALS & SPARES,FUSION,EDMUND OPTICS LTD,5100277315,131.00,United Kingdom Atomic Energy Authority,United Kingdom Atomic Energy Authority
16/07/2012,MATERIALS & SPARES,FUSION,RS COMPONENTS LTD,5100277325,35.31,United Kingdom Atomic Energy Authority,United Kingdom Atomic Energy Authority
23/07/2012,MATERIALS & SPARES,FUSION,OXFORD BOLTS & BEARINGS,5100277350,353.06,United Kingdom Atomic Energy Authority,United Kingdom Atomic Energy Authority
16/07/2012,MATERIALS & SPARES,FUSION,RS COMPONENTS LTD,5100277365,85.43,United Kingdom Atomic Energy Authority,United Kingdom Atomic Energy Authority
18/07/2012,MATERIALS & SPARES,FUSION,FARNELL ELECTRONIC,5100277368,107.88,United Kingdom Atomic Energy Authority,United Kingdom Atomic Energy Authority
16/07/2012,MATERIALS & SPARES,FUSION,FARNELL ELECTRONIC,5100277381,24.16,United Kingdom Atomic Energy Authority,United Kingdom Atomic Energy Authority
16/07/2012,MATERIALS & SPARES,FUSION,UNDERWOODS ELECTRICAL DISTRIBUTORS,5100277388,491.00,United Kingdom Atomic Energy Authority,United Kingdom Atomic Energy Authority
16/07/2012,TRAINING COSTS,FUSION,ISIS TRAINING SERVICES LTD,5100277389,264.40,United Kingdom Atomic Energy Authority,United Kingdom Atomic Energy Authority
16/07/2012,MATERIALS & SPARES,FUSION,EDMUND OPTICS LTD,5100277404,180.00,United Kingdom Atomic Energy Authority,United Kingdom Atomic Energy Authority
23/07/2012,MATERIALS & SPARES,FUSION,FARNELL ELECTRONIC,5100277451,28.05,United Kingdom Atomic Energy Authority,United Kingdom Atomic Energy Authority
18/07/2012,MATERIALS & SPARES,FUSION,THORLABS LTD,5100277477,37.86,United Kingdom Atomic Energy Authority,United Kingdom Atomic Energy Authority
23/07/2012,GASES,FUSION,BOC LTD,5100277516,1201.80,United Kingdom Atomic Energy Authority,United Kingdom Atomic Energy Authority
23/07/2012,MATERIALS & SPARES,FUSION,DURBIN METAL INDUSTRIES LTD,5100277526,149.98,United Kingdom Atomic Energy Authority,United Kingdom Atomic Energy Authority
23/07/2012,MATERIALS & SPARES,FUSION,DURBIN METAL INDUSTRIES LTD,5100277527,67.90,United Kingdom Atomic Energy Authority,United Kingdom Atomic Energy Authority
23/07/2012,MATERIALS & SPARES,FUSION,DURBIN METAL INDUSTRIES LTD,5100277528,38.50,United Kingdom Atomic Energy Authority,United Kingdom Atomic Energy Authority
23/07/2012,MATERIALS & SPARES,FUSION,FARNELL ELECTRONIC,5100277591,4.51,United Kingdom Atomic Energy Authority,United Kingdom Atomic Energy Authority
23/07/2012,MATERIALS & SPARES,FUSION,FARNELL ELECTRONIC,5100277592,38.94,United Kingdom Atomic Energy Authority,United Kingdom Atomic Energy Authority
18/07/2012,PROFESSIONAL SERVICES,FUSION,SWAGELOK LONDON,5100277598,966.12,United Kingdom Atomic Energy Authority,United Kingdom Atomic Energy Authority
23/07/2012,MATERIALS & SPARES,FUSION,RS COMPONENTS LTD,5100277639,64.33,United Kingdom Atomic Energy Authority,United Kingdom Atomic Energy Authority
23/07/2012,MATERIALS & SPARES,FUSION,RS COMPONENTS LTD,5100277696,77.26,United Kingdom Atomic Energy Authority,United Kingdom Atomic Energy Authority
23/07/2012,PRINTING & GRAPHICS,FUSION,JESSOPS,5100277709,32.43,United Kingdom Atomic Energy Authority,United Kingdom Atomic Energy Authority
16/07/2012,MATERIALS & SPARES,FUSION,AFFA,1900057249,735.60,United Kingdom Atomic Energy Authority,United Kingdom Atomic Energy Authority
26/07/2012,TAXIS,FUSION,Diogo Alves,1900057289,18.40,United Kingdom Atomic Energy Authority,United Kingdom Atomic Energy Authority
02/07/2012,IT EQUIPMENT NON CAPITAL,FUSION,VIDEK LTD,5100276137,454.65,United Kingdom Atomic Energy Authority,United Kingdom Atomic Energy Authority
02/07/2012,REPAIRS & MAINTENANCE,FUSION,ADVATEK,5100276523,13350.00,United Kingdom Atomic Energy Authority,United Kingdom Atomic Energy Authority
02/07/2012,REPAIRS & MAINTENANCE,FUSION,ADVATEK,5100276768,-425.00,United Kingdom Atomic Energy Authority,United Kingdom Atomic Energy Authority
02/07/2012,REPAIRS & MAINTENANCE,FUSION,ADVATEK,5100276846,-13350.00,United Kingdom Atomic Energy Authority,United Kingdom Atomic Energy Authority
02/07/2012,REPAIRS & MAINTENANCE,FUSION,ADVATEK,5100276847,425.00,United Kingdom Atomic Energy Authority,United Kingdom Atomic Energy Authority
02/07/2012,REPAIRS & MAINTENANCE,FUSION,ADVATEK,5100276849,13350.00,United Kingdom Atomic Energy Authority,United Kingdom Atomic Energy Authority
02/07/2012,REPAIRS & MAINTENANCE,FUSION,ADVATEK,5100276851,-425.00,United Kingdom Atomic Energy Authority,United Kingdom Atomic Energy Authority
25/07/2012,FACILITIES MANAGEMENT,FUSION,ISS FACILITIES SERVICES,5100277007,156.35,United Kingdom Atomic Energy Authority,United Kingdom Atomic Energy Authority
02/07/2012,IT EQUIPMENT NON CAPITAL,FUSION,SCAN COMPUTERS INTERNATIONAL LTD,5100276533,2520.11,United Kingdom Atomic Energy Authority,United Kingdom Atomic Energy Authority
02/07/2012,IT EQUIPMENT NON CAPITAL,FUSION,ASHLYN COMPUTER SERVICES LTD,5100276628,735.00,United Kingdom Atomic Energy Authority,United Kingdom Atomic Energy Authority
02/07/2012,PROFESSIONAL SERVICES,FUSION,EDUSERV,5100276674,2250.00,United Kingdom Atomic Energy Authority,United Kingdom Atomic Energy Authority
09/07/2012,PROFESSIONAL SERVICES,FUSION,HYTEC ELECTRONICS LTD,5100276753,2813.30,United Kingdom Atomic Energy Authority,United Kingdom Atomic Energy Authority
16/07/2012,IT EQUIPMENT NON CAPITAL,FUSION,MAAINTECH,5100276903,4600.00,United Kingdom Atomic Energy Authority,United Kingdom Atomic Energy Authority
09/07/2012,MATERIALS & SPARES,FUSION,FARNELL ELECTRONIC,5100276976,30.94,United Kingdom Atomic Energy Authority,United Kingdom Atomic Energy Authority
09/07/2012,MATERIALS & SPARES,FUSION,FARNELL ELECTRONIC,5100276978,63.80,United Kingdom Atomic Energy Authority,United Kingdom Atomic Energy Authority
09/07/2012,MATERIALS & SPARES,FUSION,FARNELL ELECTRONIC,5100276982,61.63,United Kingdom Atomic Energy Authority,United Kingdom Atomic Energy Authority
09/07/2012,MATERIALS & SPARES,FUSION,RS COMPONENTS LTD,5100277138,154.43,United Kingdom Atomic Energy Authority,United Kingdom Atomic Energy Authority
09/07/2012,MATERIALS & SPARES,FUSION,RS COMPONENTS LTD,5100277151,33.32,United Kingdom Atomic Energy Authority,United Kingdom Atomic Energy Authority
09/07/2012,MATERIALS & SPARES,FUSION,RS COMPONENTS LTD,5100277155,168.26,United Kingdom Atomic Energy Authority,United Kingdom Atomic Energy Authority
11/07/2012,IT EQUIPMENT NON CAPITAL,FUSION,SCAN COMPUTERS INTERNATIONAL LTD,5100277204,4468.63,United Kingdom Atomic Energy Authority,United Kingdom Atomic Energy Authority
23/07/2012,MATERIALS & SPARES,FUSION,ANIXTER (UK) LTD,5100277478,769.00,United Kingdom Atomic Energy Authority,United Kingdom Atomic Energy Authority
23/07/2012,PLANT & EQUIPMENT,FUSION,EDMUNDSON ELECTRICALS LTD,5100277492,237.27,United Kingdom Atomic Energy Authority,United Kingdom Atomic Energy Authority
23/07/2012,IT EQUIPMENT NON CAPITAL,FUSION,MAAINTECH,5100277510,1878.00,United Kingdom Atomic Energy Authority,United Kingdom Atomic Energy Authority
23/07/2012,MATERIALS & SPARES,FUSION,FARNELL ELECTRONIC,5100277629,13.64,United Kingdom Atomic Energy Authority,United Kingdom Atomic Energy Authority
23/07/2012,IT EQUIPMENT NON CAPITAL,FUSION,SCAN COMPUTERS INTERNATIONAL LTD,5100277672,3496.66,United Kingdom Atomic Energy Authority,United Kingdom Atomic Energy Authority
16/07/2012,F&F,FUSION,EFG MATTHEWS OFFICE FURNITURE LTD,5100277300,979.00,United Kingdom Atomic Energy Authority,United Kingdom Atomic Energy Authority
23/07/2012,MATERIALS & SPARES,FUSION,FARNELL ELECTRONIC,5100277628,80.77,United Kingdom Atomic Energy Authority,United Kingdom Atomic Energy Authority
02/07/2012,PLANT & EQUIPMENT,FUSION,POWELL & CO,5100276449,719.10,United Kingdom Atomic Energy Authority,United Kingdom Atomic Energy Authority
02/07/2012,ADVERTISING STAFF,FUSION,TMP (UK) LTD,5100276638,620.00,United Kingdom Atomic Energy Authority,United Kingdom Atomic Energy Authority
02/07/2012,MATERIALS & SPARES,FUSION,FARNELL ELECTRONIC,5100276654,831.37,United Kingdom Atomic Energy Authority,United Kingdom Atomic Energy Authority
02/07/2012,MATERIALS & SPARES,FUSION,KURT J LESKER,5100276699,729.40,United Kingdom Atomic Energy Authority,United Kingdom Atomic Energy Authority
02/07/2012,PLANT & EQUIPMENT,FUSION,POWELL & CO,5100276764,-219.30,United Kingdom Atomic Energy Authority,United Kingdom Atomic Energy Authority
18/07/2012,PLANT & EQUIPMENT,FUSION,CANBERRA UK LIMITED,5100276769,705.00,United Kingdom Atomic Energy Authority,United Kingdom Atomic Energy Authority
18/07/2012,MATERIALS & SPARES,FUSION,RS COMPONENTS LTD,5100276813,135.76,United Kingdom Atomic Energy Authority,United Kingdom Atomic Energy Authority
18/07/2012,MATERIALS & SPARES,FUSION,FARNELL ELECTRONIC,5100276970,52.60,United Kingdom Atomic Energy Authority,United Kingdom Atomic Energy Authority
09/07/2012,MATERIALS & SPARES,FUSION,FARNELL ELECTRONIC,5100277036,143.85,United Kingdom Atomic Energy Authority,United Kingdom Atomic Energy Authority
09/07/2012,MATERIALS & SPARES,FUSION,FARNELL ELECTRONIC,5100277037,41.36,United Kingdom Atomic Energy Authority,United Kingdom Atomic Energy Authority
09/07/2012,MATERIALS & SPARES,FUSION,RS COMPONENTS LTD,5100277144,74.73,United Kingdom Atomic Energy Authority,United Kingdom Atomic Energy Authority
09/07/2012,MATERIALS & SPARES,FUSION,RS COMPONENTS LTD,5100277148,150.01,United Kingdom Atomic Energy Authority,United Kingdom Atomic Energy Authority
09/07/2012,MATERIALS & SPARES,FUSION,RS COMPONENTS LTD,5100277157,38.02,United Kingdom Atomic Energy Authority,United Kingdom Atomic Energy Authority
16/07/2012,GASES,FUSION,BOC LTD,5100277227,177.76,United Kingdom Atomic Energy Authority,United Kingdom Atomic Energy Authority
18/07/2012,MATERIALS & SPARES,FUSION,KURT J LESKER,5100277267,452.50,United Kingdom Atomic Energy Authority,United Kingdom Atomic Energy Authority
16/07/2012,PLANT & EQUIPMENT,FUSION,LEYBOLD LTD,5100277390,1480.83,United Kingdom Atomic Energy Authority,United Kingdom Atomic Energy Authority
18/07/2012,PLANT SPARES,FUSION,AS SCIENTIFIC PRODUCTS LTD,5100277481,3115.00,United Kingdom Atomic Energy Authority,United Kingdom Atomic Energy Authority
23/07/2012,PLANT & EQUIPMENT,FUSION,FISHER SCIENTIFIC UK LTD,5100277502,89.90,United Kingdom Atomic Energy Authority,United Kingdom Atomic Energy Authority
23/07/2012,MATERIALS & SPARES,FUSION,RS COMPONENTS LTD,5100277641,45.10,United Kingdom Atomic Energy Authority,United Kingdom Atomic Energy Authority
23/07/2012,GASES,FUSION,AIR PRODUCTS PLC,5100277654,87.00,United Kingdom Atomic Energy Authority,United Kingdom Atomic Energy Authority
23/07/2012,MATERIALS & SPARES,FUSION,RS COMPONENTS LTD,5100277681,16.46,United Kingdom Atomic Energy Authority,United Kingdom Atomic Energy Authority
10/07/2012,INTERVIEW EXPENSES,FUSION,INTERVIEW EXPENSES,1900057202,128.40,United Kingdom Atomic Energy Authority,United Kingdom Atomic Energy Authority
24/07/2012,PLANT & EQUIPMENT,FUSION,Icenta Controls Ltd,1900057279,1906.80,United Kingdom Atomic Energy Authority,United Kingdom Atomic Energy Authority
25/07/2012,PROFESSIONAL SERVICES,FUSION,HILLS WASTE SOLUTIONS LTD,5100275985,1410.00,United Kingdom Atomic Energy Authority,United Kingdom Atomic Energy Authority
25/07/2012,PROFESSIONAL SERVICES,FUSION,HILLS WASTE SOLUTIONS LTD,5100275986,394.20,United Kingdom Atomic Energy Authority,United Kingdom Atomic Energy Authority
25/07/2012,PROFESSIONAL SERVICES,FUSION,HILLS WASTE SOLUTIONS LTD,5100275987,460.00,United Kingdom Atomic Energy Authority,United Kingdom Atomic Energy Authority
25/07/2012,PROFESSIONAL SERVICES,FUSION,HILLS WASTE SOLUTIONS LTD,5100275988,275.00,United Kingdom Atomic Energy Authority,United Kingdom Atomic Energy Authority
02/07/2012,PLANT & EQUIPMENT,FUSION,FISHER SCIENTIFIC UK LTD,5100276572,34.42,United Kingdom Atomic Energy Authority,United Kingdom Atomic Energy Authority
25/07/2012,MATERIALS & SPARES,FUSION,HOTCHKISS AIR SUPPLY,5100276574,187.78,United Kingdom Atomic Energy Authority,United Kingdom Atomic Energy Authority
02/07/2012,MATERIALS & SPARES,FUSION,SCREWFIX DIRECT LTD,5100276593,45.38,United Kingdom Atomic Energy Authority,United Kingdom Atomic Energy Authority
02/07/2012,MATERIALS & SPARES,FUSION,SCREWFIX DIRECT LTD,5100276596,380.72,United Kingdom Atomic Energy Authority,United Kingdom Atomic Energy Authority
02/07/2012,PLANT & EQUIPMENT,FUSION,PATRICO LTD,5100276681,4416.00,United Kingdom Atomic Energy Authority,United Kingdom Atomic Energy Authority
02/07/2012,PROFESSIONAL SERVICES,FUSION,SCIENTIFICS LTD,5100276682,6585.00,United Kingdom Atomic Energy Authority,United Kingdom Atomic Energy Authority
02/07/2012,PROFESSIONAL SERVICES,FUSION,SCIENTIFICS LTD,5100276683,270.00,United Kingdom Atomic Energy Authority,United Kingdom Atomic Energy Authority
02/07/2012,PROFESSIONAL SERVICES,FUSION,SCIENTIFICS LTD,5100276686,1755.00,United Kingdom Atomic Energy Authority,United Kingdom Atomic Energy Authority
02/07/2012,PROFESSIONAL SERVICES,FUSION,SCIENTIFICS LTD,5100276687,1080.00,United Kingdom Atomic Energy Authority,United Kingdom Atomic Energy Authority
04/07/2012,PERSONAL PROTECTIVE EQUIPMENT,FUSION,ARCO LTD,5100276703,507.69,United Kingdom Atomic Energy Authority,United Kingdom Atomic Energy Authority
04/07/2012,PERSONAL PROTECTIVE EQUIPMENT,FUSION,ARCO LTD,5100276704,10.78,United Kingdom Atomic Energy Authority,United Kingdom Atomic Energy Authority
02/07/2012,PLANT & EQUIPMENT,FUSION,POWELL & CO,5100276765,696.15,United Kingdom Atomic Energy Authority,United Kingdom Atomic Energy Authority
02/07/2012,MATERIALS & SPARES,FUSION,BSS OXFORD,5100276790,122.26,United Kingdom Atomic Energy Authority,United Kingdom Atomic Energy Authority
04/07/2012,PROFESSIONAL SERVICES,FUSION,OHES ENNVIRONMENTAL LTD,5100276828,4346.04,United Kingdom Atomic Energy Authority,United Kingdom Atomic Energy Authority
25/07/2012,MATERIALS & SPARES,FUSION,HOTCHKISS AIR SUPPLY,5100276879,337.55,United Kingdom Atomic Energy Authority,United Kingdom Atomic Energy Authority
11/07/2012,BUILDING REPAIRS,FUSION,LORNE STEWART PLC,5100276889,95.62,United Kingdom Atomic Energy Authority,United Kingdom Atomic Energy Authority
18/07/2012,BUILDING REPAIRS,FUSION,LORNE STEWART PLC,5100276893,1417.50,United Kingdom Atomic Energy Authority,United Kingdom Atomic Energy Authority
11/07/2012,BUILDING REPAIRS,FUSION,LORNE STEWART PLC,5100276894,805.35,United Kingdom Atomic Energy Authority,United Kingdom Atomic Energy Authority
11/07/2012,BUILDING REPAIRS,FUSION,LORNE STEWART PLC,5100276896,3858.95,United Kingdom Atomic Energy Authority,United Kingdom Atomic Energy Authority
11/07/2012,BUILDING REPAIRS,FUSION,LORNE STEWART PLC,5100276900,218.02,United Kingdom Atomic Energy Authority,United Kingdom Atomic Energy Authority
09/07/2012,PROFESSIONAL SERVICES,FUSION,OHES ENNVIRONMENTAL LTD,5100276919,875.00,United Kingdom Atomic Energy Authority,United Kingdom Atomic Energy Authority
09/07/2012,MATERIALS & SPARES,FUSION,FARNELL ELECTRONIC,5100277041,60.26,United Kingdom Atomic Energy Authority,United Kingdom Atomic Energy Authority
09/07/2012,PROFESSIONAL SERVICES,FUSION,SCIENTIFICS LTD,5100277073,1215.00,United Kingdom Atomic Energy Authority,United Kingdom Atomic Energy Authority
18/07/2012,RENT OF VEHICLE & EQUIPMENT,FUSION,M.J.C SERVICES,5100277085,346.66,United Kingdom Atomic Energy Authority,United Kingdom Atomic Energy Authority
25/07/2012,PROFESSIONAL SERVICES,FUSION,HILLS WASTE SOLUTIONS LTD,5100277121,2408.45,United Kingdom Atomic Energy Authority,United Kingdom Atomic Energy Authority
25/07/2012,PROFESSIONAL SERVICES,FUSION,HILLS WASTE SOLUTIONS LTD,5100277122,647.40,United Kingdom Atomic Energy Authority,United Kingdom Atomic Energy Authority
25/07/2012,PROFESSIONAL SERVICES,FUSION,HILLS WASTE SOLUTIONS LTD,5100277123,460.00,United Kingdom Atomic Energy Authority,United Kingdom Atomic Energy Authority
25/07/2012,PROFESSIONAL SERVICES,FUSION,HILLS WASTE SOLUTIONS LTD,5100277124,170.00,United Kingdom Atomic Energy Authority,United Kingdom Atomic Energy Authority
09/07/2012,MATERIALS & SPARES,FUSION,RS COMPONENTS LTD,5100277139,51.19,United Kingdom Atomic Energy Authority,United Kingdom Atomic Energy Authority
16/07/2012,GASES,FUSION,BOC LTD,5100277226,15.84,United Kingdom Atomic Energy Authority,United Kingdom Atomic Energy Authority
25/07/2012,PERSONAL PROTECTIVE EQUIPMENT,FUSION,ARCO LTD,5100277257,2286.40,United Kingdom Atomic Energy Authority,United Kingdom Atomic Energy Authority
16/07/2012,PLANT & EQUIPMENT,FUSION,PATRICO LTD,5100277262,4915.20,United Kingdom Atomic Energy Authority,United Kingdom Atomic Energy Authority
25/07/2012,MATERIALS & SPARES,FUSION,HOTCHKISS AIR SUPPLY,5100277275,28.72,United Kingdom Atomic Energy Authority,United Kingdom Atomic Energy Authority
16/07/2012,MATERIALS & SPARES,FUSION,HOTCHKISS AIR SUPPLY,5100277276,80.00,United Kingdom Atomic Energy Authority,United Kingdom Atomic Energy Authority
25/07/2012,PERSONAL PROTECTIVE EQUIPMENT,FUSION,ARCO LTD,5100277286,65.52,United Kingdom Atomic Energy Authority,United Kingdom Atomic Energy Authority
16/07/2012,MATERIALS & SPARES,FUSION,RS COMPONENTS LTD,5100277304,34.34,United Kingdom Atomic Energy Authority,United Kingdom Atomic Energy Authority
16/07/2012,MATERIALS & SPARES,FUSION,RS COMPONENTS LTD,5100277367,14.96,United Kingdom Atomic Energy Authority,United Kingdom Atomic Energy Authority
23/07/2012,MATERIALS & SPARES,FUSION,SCREWFIX DIRECT LTD,5100277503,372.00,United Kingdom Atomic Energy Authority,United Kingdom Atomic Energy Authority
23/07/2012,PLANT & EQUIPMENT,FUSION,FISHER SCIENTIFIC UK LTD,5100277507,128.86,United Kingdom Atomic Energy Authority,United Kingdom Atomic Energy Authority
23/07/2012,PROFESSIONAL SERVICES,FUSION,SCIENTIFICS LTD,5100277519,240.00,United Kingdom Atomic Energy Authority,United Kingdom Atomic Energy Authority
25/07/2012,BUILDING REPAIRS,FUSION,KNOWLES & SONS (OXFORD) LTD,5100277608,1538.06,United Kingdom Atomic Energy Authority,United Kingdom Atomic Energy Authority
25/07/2012,BUILDING REPAIRS,FUSION,KNOWLES & SONS (OXFORD) LTD,5100277609,8407.60,United Kingdom Atomic Energy Authority,United Kingdom Atomic Energy Authority
23/07/2012,MATERIALS & SPARES,FUSION,RS COMPONENTS LTD,5100277638,32.77,United Kingdom Atomic Energy Authority,United Kingdom Atomic Energy Authority
25/07/2012,CAR HIRE,FUSION,LEASEDRIVE VELO,5100277649,36.44,United Kingdom Atomic Energy Authority,United Kingdom Atomic Energy Authority
25/07/2012,PLANT & EQUIPMENT,FUSION,MR BOX LTD,5100277667,8155.00,United Kingdom Atomic Energy Authority,United Kingdom Atomic Energy Authority
04/07/2012,TRAINING COURSE FEES,FUSION,The Open University,1900057157,735.00,United Kingdom Atomic Energy Authority,United Kingdom Atomic Energy Authority
12/07/2012,PLANT & EQUIPMENT REPAIR,FUSION,Flowline Manufacturing Ltd,1900057220,1836.00,United Kingdom Atomic Energy Authority,United Kingdom Atomic Energy Authority
14/07/2012,SUBSISTENCE,FUSION,EMPLOYEE EXPENSES,100650743,10.65,United Kingdom Atomic Energy Authority,United Kingdom Atomic Energy Authority
14/07/2012,ROAD TRAVEL,FUSION,EMPLOYEE EXPENSES,100650743,43.65,United Kingdom Atomic Energy Authority,United Kingdom Atomic Energy Authority
25/07/2012,MATERIALS & SPARES,FUSION,FARNELL ELECTRONIC,5100276313,72.23,United Kingdom Atomic Energy Authority,United Kingdom Atomic Energy Authority
02/07/2012,PLANT SPARES,FUSION,CSE INDUSTRIAL ELECTRICAL DISTRIBUT,5100276542,6675.62,United Kingdom Atomic Energy Authority,United Kingdom Atomic Energy Authority
02/07/2012,MATERIALS & SPARES,FUSION,FARNELL ELECTRONIC,5100276555,684.26,United Kingdom Atomic Energy Authority,United Kingdom Atomic Energy Authority
02/07/2012,MATERIALS & SPARES,FUSION,FARNELL ELECTRONIC,5100276556,398.96,United Kingdom Atomic Energy Authority,United Kingdom Atomic Energy Authority
02/07/2012,MATERIALS & SPARES,FUSION,OERLIKON LEYBOLD VACUUM UK LTD,5100276561,2982.41,United Kingdom Atomic Energy Authority,United Kingdom Atomic Energy Authority
02/07/2012,MATERIALS & SPARES,FUSION,FARNELL ELECTRONIC,5100276661,52.02,United Kingdom Atomic Energy Authority,United Kingdom Atomic Energy Authority
02/07/2012,MATERIALS & SPARES,FUSION,FARNELL ELECTRONIC,5100276662,195.64,United Kingdom Atomic Energy Authority,United Kingdom Atomic Energy Authority
09/07/2012,MATERIALS & SPARES,FUSION,FARNELL ELECTRONIC,5100276663,102.80,United Kingdom Atomic Energy Authority,United Kingdom Atomic Energy Authority
02/07/2012,MATERIALS & SPARES,FUSION,FARNELL ELECTRONIC,5100276664,5.51,United Kingdom Atomic Energy Authority,United Kingdom Atomic Energy Authority
02/07/2012,PERSONAL PROTECTIVE EQUIPMENT,FUSION,ARCO WESSEX,5100276711,10.50,United Kingdom Atomic Energy Authority,United Kingdom Atomic Energy Authority
02/07/2012,MATERIALS & SPARES,FUSION,RS COMPONENTS LTD,5100276726,338.03,United Kingdom Atomic Energy Authority,United Kingdom Atomic Energy Authority
02/07/2012,MATERIALS & SPARES,FUSION,OXFORD BOLTS & BEARINGS,5100276739,108.37,United Kingdom Atomic Energy Authority,United Kingdom Atomic Energy Authority
02/07/2012,MATERIALS & SPARES,FUSION,RS COMPONENTS LTD,5100276812,120.41,United Kingdom Atomic Energy Authority,United Kingdom Atomic Energy Authority
09/07/2012,MATERIALS & SPARES,FUSION,FARNELL ELECTRONIC,5100276859,155.10,United Kingdom Atomic Energy Authority,United Kingdom Atomic Energy Authority
09/07/2012,MATERIALS & SPARES,FUSION,FARNELL ELECTRONIC,5100276860,258.31,United Kingdom Atomic Energy Authority,United Kingdom Atomic Energy Authority
09/07/2012,MATERIALS & SPARES,FUSION,FARNELL ELECTRONIC,5100276861,97.76,United Kingdom Atomic Energy Authority,United Kingdom Atomic Energy Authority
09/07/2012,MATERIALS & SPARES,FUSION,FARNELL ELECTRONIC,5100276862,21.68,United Kingdom Atomic Energy Authority,United Kingdom Atomic Energy Authority
09/07/2012,MATERIALS & SPARES,FUSION,FARNELL ELECTRONIC,5100276863,26.09,United Kingdom Atomic Energy Authority,United Kingdom Atomic Energy Authority
09/07/2012,MATERIALS & SPARES,FUSION,FTI LTD,5100276882,4432.65,United Kingdom Atomic Energy Authority,United Kingdom Atomic Energy Authority
09/07/2012,MATERIALS & SPARES,FUSION,FARNELL ELECTRONIC,5100276920,52.02,United Kingdom Atomic Energy Authority,United Kingdom Atomic Energy Authority
09/07/2012,MATERIALS & SPARES,FUSION,FARNELL ELECTRONIC,5100276930,288.16,United Kingdom Atomic Energy Authority,United Kingdom Atomic Energy Authority
09/07/2012,MATERIALS & SPARES,FUSION,FARNELL ELECTRONIC,5100276931,444.76,United Kingdom Atomic Energy Authority,United Kingdom Atomic Energy Authority
09/07/2012,MATERIALS & SPARES,FUSION,FARNELL ELECTRONIC,5100276932,38.04,United Kingdom Atomic Energy Authority,United Kingdom Atomic Energy Authority
09/07/2012,MATERIALS & SPARES,FUSION,FARNELL ELECTRONIC,5100276934,10.00,United Kingdom Atomic Energy Authority,United Kingdom Atomic Energy Authority
09/07/2012,MATERIALS & SPARES,FUSION,FARNELL ELECTRONIC,5100276937,50.00,United Kingdom Atomic Energy Authority,United Kingdom Atomic Energy Authority
09/07/2012,PROFESSIONAL SERVICES,FUSION,MKS INSTRUMENT UK LIMITED,5100276965,6404.00,United Kingdom Atomic Energy Authority,United Kingdom Atomic Energy Authority
09/07/2012,BUILDING REPAIRS,FUSION,TILL & WHITEHEAD LTD,5100276971,37.06,United Kingdom Atomic Energy Authority,United Kingdom Atomic Energy Authority
09/07/2012,MATERIALS & SPARES,FUSION,FARNELL ELECTRONIC,5100276993,109.68,United Kingdom Atomic Energy Authority,United Kingdom Atomic Energy Authority
16/07/2012,MATERIALS & SPARES,FUSION,FARNELL ELECTRONIC,5100276994,547.10,United Kingdom Atomic Energy Authority,United Kingdom Atomic Energy Authority
09/07/2012,MATERIALS & SPARES,FUSION,FARNELL ELECTRONIC,5100276995,44.10,United Kingdom Atomic Energy Authority,United Kingdom Atomic Energy Authority
09/07/2012,PERSONAL PROTECTIVE EQUIPMENT,FUSION,ARCO WESSEX,5100277069,31.49,United Kingdom Atomic Energy Authority,United Kingdom Atomic Energy Authority
09/07/2012,PERSONAL PROTECTIVE EQUIPMENT,FUSION,ARCO WESSEX,5100277071,68.29,United Kingdom Atomic Energy Authority,United Kingdom Atomic Energy Authority
09/07/2012,MATERIALS & SPARES,FUSION,RS COMPONENTS LTD,5100277142,11.02,United Kingdom Atomic Energy Authority,United Kingdom Atomic Energy Authority
09/07/2012,MATERIALS & SPARES,FUSION,OERLIKON LEYBOLD VACUUM UK LTD,5100277149,380.10,United Kingdom Atomic Energy Authority,United Kingdom Atomic Energy Authority
09/07/2012,MATERIALS & SPARES,FUSION,RS COMPONENTS LTD,5100277152,114.24,United Kingdom Atomic Energy Authority,United Kingdom Atomic Energy Authority
09/07/2012,MATERIALS & SPARES,FUSION,RS COMPONENTS LTD,5100277159,147.33,United Kingdom Atomic Energy Authority,United Kingdom Atomic Energy Authority
11/07/2012,MATERIALS & SPARES,FUSION,CROMWELL LTD,5100277194,64.80,United Kingdom Atomic Energy Authority,United Kingdom Atomic Energy Authority
16/07/2012,GASES,FUSION,BOC LTD,5100277222,239.30,United Kingdom Atomic Energy Authority,United Kingdom Atomic Energy Authority
16/07/2012,GASES,FUSION,BOC LTD,5100277289,2208.00,United Kingdom Atomic Energy Authority,United Kingdom Atomic Energy Authority
16/07/2012,MATERIALS & SPARES,FUSION,OXFORD BOLTS & BEARINGS,5100277293,217.50,United Kingdom Atomic Energy Authority,United Kingdom Atomic Energy Authority
16/07/2012,MATERIALS & SPARES,FUSION,METALFAST (A DIVISION OF,5100277316,41.00,United Kingdom Atomic Energy Authority,United Kingdom Atomic Energy Authority
16/07/2012,MATERIALS & SPARES,FUSION,RS COMPONENTS LTD,5100277328,83.82,United Kingdom Atomic Energy Authority,United Kingdom Atomic Energy Authority
16/07/2012,MATERIALS & SPARES,FUSION,RS COMPONENTS LTD,5100277332,1739.06,United Kingdom Atomic Energy Authority,United Kingdom Atomic Energy Authority
16/07/2012,MATERIALS & SPARES,FUSION,RS COMPONENTS LTD,5100277341,19.09,United Kingdom Atomic Energy Authority,United Kingdom Atomic Energy Authority
23/07/2012,PLANT & EQUIPMENT,FUSION,NEW PIG LTD,5100277351,176.25,United Kingdom Atomic Energy Authority,United Kingdom Atomic Energy Authority
16/07/2012,MATERIALS & SPARES,FUSION,UNDERWOODS ELECTRICAL DISTRIBUTORS,5100277359,626.77,United Kingdom Atomic Energy Authority,United Kingdom Atomic Energy Authority
16/07/2012,MATERIALS & SPARES,FUSION,FARNELL ELECTRONIC,5100277372,297.15,United Kingdom Atomic Energy Authority,United Kingdom Atomic Energy Authority
16/07/2012,MATERIALS & SPARES,FUSION,FARNELL ELECTRONIC,5100277374,222.38,United Kingdom Atomic Energy Authority,United Kingdom Atomic Energy Authority
16/07/2012,MATERIALS & SPARES,FUSION,FARNELL ELECTRONIC,5100277375,222.38,United Kingdom Atomic Energy Authority,United Kingdom Atomic Energy Authority
16/07/2012,PLANT & EQUIPMENT,FUSION,FISHER SCIENTIFIC UK LTD,5100277416,52.61,United Kingdom Atomic Energy Authority,United Kingdom Atomic Energy Authority
16/07/2012,MATERIALS & SPARES,FUSION,FARNELL ELECTRONIC,5100277428,-215.66,United Kingdom Atomic Energy Authority,United Kingdom Atomic Energy Authority
23/07/2012,MATERIALS & SPARES,FUSION,FARNELL ELECTRONIC,5100277454,3.93,United Kingdom Atomic Energy Authority,United Kingdom Atomic Energy Authority
23/07/2012,MATERIALS & SPARES,FUSION,FARNELL ELECTRONIC,5100277455,73.83,United Kingdom Atomic Energy Authority,United Kingdom Atomic Energy Authority
23/07/2012,MATERIALS & SPARES,FUSION,FARNELL ELECTRONIC,5100277456,76.08,United Kingdom Atomic Energy Authority,United Kingdom Atomic Energy Authority
23/07/2012,MATERIALS & SPARES,FUSION,FARNELL ELECTRONIC,5100277457,10.70,United Kingdom Atomic Energy Authority,United Kingdom Atomic Energy Authority
23/07/2012,MATERIALS & SPARES,FUSION,FARNELL ELECTRONIC,5100277616,10.00,United Kingdom Atomic Energy Authority,United Kingdom Atomic Energy Authority
23/07/2012,MATERIALS & SPARES,FUSION,FARNELL ELECTRONIC,5100277617,179.63,United Kingdom Atomic Energy Authority,United Kingdom Atomic Energy Authority
23/07/2012,MATERIALS & SPARES,FUSION,FARNELL ELECTRONIC,5100277618,14.50,United Kingdom Atomic Energy Authority,United Kingdom Atomic Energy Authority
23/07/2012,MATERIALS & SPARES,FUSION,RS COMPONENTS LTD,5100277633,16.54,United Kingdom Atomic Energy Authority,United Kingdom Atomic Energy Authority
23/07/2012,GASES,FUSION,BOC LTD,5100277683,2925.00,United Kingdom Atomic Energy Authority,United Kingdom Atomic Energy Authority
25/07/2012,PROFESSIONAL SERVICES,FUSION,SWAGELOK LONDON,5100277690,552.33,United Kingdom Atomic Energy Authority,United Kingdom Atomic Energy Authority
25/07/2012,PROFESSIONAL SERVICES,FUSION,SWAGELOK LONDON,5100277691,148.25,United Kingdom Atomic Energy Authority,United Kingdom Atomic Energy Authority
23/07/2012,MATERIALS & SPARES,FUSION,RS COMPONENTS LTD,5100277704,372.47,United Kingdom Atomic Energy Authority,United Kingdom Atomic Energy Authority
23/07/2012,PLANT & EQUIPMENT,FUSION,PFEIFFER VACUUM UK,5100277713,147.20,United Kingdom Atomic Energy Authority,United Kingdom Atomic Energy Authority
25/07/2012,MATERIALS & SPARES,FUSION,FARNELL ELECTRONIC,5100277760,-72.23,United Kingdom Atomic Energy Authority,United Kingdom Atomic Energy Authority
02/07/2012,PROFESSIONAL SERVICES,FUSION,SERCO ASSURANCE,5100276618,10747.36,United Kingdom Atomic Energy Authority,United Kingdom Atomic Energy Authority
02/07/2012,MATERIALS & SPARES,FUSION,FARNELL ELECTRONIC,5100275067,846.05,United Kingdom Atomic Energy Authority,United Kingdom Atomic Energy Authority
02/07/2012,MATERIALS & SPARES,FUSION,FARNELL ELECTRONIC,5100276156,120.32,United Kingdom Atomic Energy Authority,United Kingdom Atomic Energy Authority
09/07/2012,PLANT SPARES,FUSION,RS COMPONENTS CALIBRATION SERVICES,5100276239,13.39,United Kingdom Atomic Energy Authority,United Kingdom Atomic Energy Authority
23/07/2012,REPAIRS & MAINTENANCE,FUSION,BEAVER 84 LIMITED,5100276241,4365.60,United Kingdom Atomic Energy Authority,United Kingdom Atomic Energy Authority
02/07/2012,MATERIALS & SPARES,FUSION,FARNELL ELECTRONIC,5100276322,82.21,United Kingdom Atomic Energy Authority,United Kingdom Atomic Energy Authority
02/07/2012,PERSONAL PROTECTIVE EQUIPMENT,FUSION,ARCO LTD,5100276373,274.32,United Kingdom Atomic Energy Authority,United Kingdom Atomic Energy Authority
23/07/2012,REPAIRS & MAINTENANCE,FUSION,BEAVER 84 LIMITED,5100276447,5220.00,United Kingdom Atomic Energy Authority,United Kingdom Atomic Energy Authority
02/07/2012,PERSONAL PROTECTIVE EQUIPMENT,FUSION,ARCO LTD,5100276453,-420.00,United Kingdom Atomic Energy Authority,United Kingdom Atomic Energy Authority
02/07/2012,PLANT & EQUIPMENT,FUSION,EDMUNDSON ELECTRICALS LTD,5100276511,263.72,United Kingdom Atomic Energy Authority,United Kingdom Atomic Energy Authority
02/07/2012,PLANT & EQUIPMENT,FUSION,EDMUNDSON ELECTRICALS LTD,5100276549,173.44,United Kingdom Atomic Energy Authority,United Kingdom Atomic Energy Authority
02/07/2012,MATERIALS & SPARES,FUSION,FARNELL ELECTRONIC,5100276552,9.62,United Kingdom Atomic Energy Authority,United Kingdom Atomic Energy Authority
02/07/2012,MATERIALS & SPARES,FUSION,OXFORD BOLTS & BEARINGS,5100276576,82.92,United Kingdom Atomic Energy Authority,United Kingdom Atomic Energy Authority
02/07/2012,MATERIALS & SPARES,FUSION,BUNZL SWS,5100276639,100.32,United Kingdom Atomic Energy Authority,United Kingdom Atomic Energy Authority
02/07/2012,MATERIALS & SPARES,FUSION,BSS OXFORD,5100276640,48.00,United Kingdom Atomic Energy Authority,United Kingdom Atomic Energy Authority
02/07/2012,MATERIALS & SPARES,FUSION,FARNELL ELECTRONIC,5100276651,19.10,United Kingdom Atomic Energy Authority,United Kingdom Atomic Energy Authority
02/07/2012,MATERIALS & SPARES,FUSION,FARNELL ELECTRONIC,5100276653,647.92,United Kingdom Atomic Energy Authority,United Kingdom Atomic Energy Authority
02/07/2012,PERSONAL PROTECTIVE EQUIPMENT,FUSION,ARCO LTD,5100276669,16.16,United Kingdom Atomic Energy Authority,United Kingdom Atomic Energy Authority
02/07/2012,PERSONAL PROTECTIVE EQUIPMENT,FUSION,ARCO LTD,5100276670,49.99,United Kingdom Atomic Energy Authority,United Kingdom Atomic Energy Authority
02/07/2012,MATERIALS & SPARES,FUSION,FARNELL ELECTRONIC,5100276671,270.96,United Kingdom Atomic Energy Authority,United Kingdom Atomic Energy Authority
02/07/2012,PERSONAL PROTECTIVE EQUIPMENT,FUSION,ARCO LTD,5100276700,304.08,United Kingdom Atomic Energy Authority,United Kingdom Atomic Energy Authority
02/07/2012,PERSONAL PROTECTIVE EQUIPMENT,FUSION,ARCO LTD,5100276702,75.00,United Kingdom Atomic Energy Authority,United Kingdom Atomic Energy Authority
02/07/2012,PERSONAL PROTECTIVE EQUIPMENT,FUSION,ARCO LTD,5100276710,214.50,United Kingdom Atomic Energy Authority,United Kingdom Atomic Energy Authority
02/07/2012,PERSONAL PROTECTIVE EQUIPMENT,FUSION,ARCO LTD,5100276712,387.80,United Kingdom Atomic Energy Authority,United Kingdom Atomic Energy Authority
02/07/2012,PERSONAL PROTECTIVE EQUIPMENT,FUSION,ARCO LTD,5100276714,1641.00,United Kingdom Atomic Energy Authority,United Kingdom Atomic Energy Authority
02/07/2012,PERSONAL PROTECTIVE EQUIPMENT,FUSION,ARCO LTD,5100276738,-35.00,United Kingdom Atomic Energy Authority,United Kingdom Atomic Energy Authority
02/07/2012,PERSONAL PROTECTIVE EQUIPMENT,FUSION,ARCO LTD,5100276754,11.78,United Kingdom Atomic Energy Authority,United Kingdom Atomic Energy Authority
02/07/2012,PERSONAL PROTECTIVE EQUIPMENT,FUSION,ARCO LTD,5100276758,1638.30,United Kingdom Atomic Energy Authority,United Kingdom Atomic Energy Authority
02/07/2012,PERSONAL PROTECTIVE EQUIPMENT,FUSION,ARCO LTD,5100276759,37.59,United Kingdom Atomic Energy Authority,United Kingdom Atomic Energy Authority
02/07/2012,PERSONAL PROTECTIVE EQUIPMENT,FUSION,ARCO LTD,5100276760,91.02,United Kingdom Atomic Energy Authority,United Kingdom Atomic Energy Authority
02/07/2012,PERSONAL PROTECTIVE EQUIPMENT,FUSION,ARCO LTD,5100276761,280.50,United Kingdom Atomic Energy Authority,United Kingdom Atomic Energy Authority
02/07/2012,PLANT & EQUIPMENT,FUSION,EDMUNDSON ELECTRICALS LTD,5100276794,219.08,United Kingdom Atomic Energy Authority,United Kingdom Atomic Energy Authority
09/07/2012,MATERIALS & SPARES,FUSION,RS COMPONENTS LTD,5100276811,170.10,United Kingdom Atomic Energy Authority,United Kingdom Atomic Energy Authority
09/07/2012,MATERIALS & SPARES,FUSION,FLEXIBLE & SPECIALIST CABLES,5100276878,148.60,United Kingdom Atomic Energy Authority,United Kingdom Atomic Energy Authority
11/07/2012,BUILDING REPAIRS,FUSION,LORNE STEWART PLC,5100276888,18991.90,United Kingdom Atomic Energy Authority,United Kingdom Atomic Energy Authority
11/07/2012,BUILDING REPAIRS,FUSION,LORNE STEWART PLC,5100276907,17254.84,United Kingdom Atomic Energy Authority,United Kingdom Atomic Energy Authority
09/07/2012,MATERIALS & SPARES,FUSION,ALPHA PACKAGING,5100276928,440.06,United Kingdom Atomic Energy Authority,United Kingdom Atomic Energy Authority
09/07/2012,MATERIALS & SPARES,FUSION,ALPHA PACKAGING,5100276929,447.54,United Kingdom Atomic Energy Authority,United Kingdom Atomic Energy Authority
09/07/2012,REPAIRS & MAINTENANCE,FUSION,BATT CABLES PLC,5100276948,282.00,United Kingdom Atomic Energy Authority,United Kingdom Atomic Energy Authority
09/07/2012,REPAIRS & MAINTENANCE,FUSION,BATT CABLES PLC,5100276950,4700.35,United Kingdom Atomic Energy Authority,United Kingdom Atomic Energy Authority
09/07/2012,REPAIRS & MAINTENANCE,FUSION,BATT CABLES PLC,5100276951,954.00,United Kingdom Atomic Energy Authority,United Kingdom Atomic Energy Authority
09/07/2012,PERSONAL PROTECTIVE EQUIPMENT,FUSION,ARCO LTD,5100276957,15.92,United Kingdom Atomic Energy Authority,United Kingdom Atomic Energy Authority
09/07/2012,MATERIALS & SPARES,FUSION,FARNELL ELECTRONIC,5100276961,85.23,United Kingdom Atomic Energy Authority,United Kingdom Atomic Energy Authority
09/07/2012,REPAIRS & MAINTENANCE,FUSION,BEAVER 84 LIMITED,5100276967,582.00,United Kingdom Atomic Energy Authority,United Kingdom Atomic Energy Authority
09/07/2012,BUILDING REPAIRS,FUSION,TILL & WHITEHEAD LTD,5100276972,126.65,United Kingdom Atomic Energy Authority,United Kingdom Atomic Energy Authority
09/07/2012,BUILDING REPAIRS,FUSION,TILL & WHITEHEAD LTD,5100276973,33.15,United Kingdom Atomic Energy Authority,United Kingdom Atomic Energy Authority
09/07/2012,BUILDING REPAIRS,FUSION,TILL & WHITEHEAD LTD,5100276974,28.15,United Kingdom Atomic Energy Authority,United Kingdom Atomic Energy Authority
09/07/2012,BUILDING REPAIRS,FUSION,TILL & WHITEHEAD LTD,5100276975,129.10,United Kingdom Atomic Energy Authority,United Kingdom Atomic Energy Authority
09/07/2012,PLANT & EQUIPMENT,FUSION,DRAEGER LTD,5100276981,103.08,United Kingdom Atomic Energy Authority,United Kingdom Atomic Energy Authority
09/07/2012,PLANT & EQUIPMENT,FUSION,EDMUNDSON ELECTRICALS LTD,5100276990,6.70,United Kingdom Atomic Energy Authority,United Kingdom Atomic Energy Authority
09/07/2012,MATERIALS & SPARES,FUSION,FARNELL ELECTRONIC,5100277039,423.21,United Kingdom Atomic Energy Authority,United Kingdom Atomic Energy Authority
09/07/2012,MATERIALS & SPARES,FUSION,FARNELL ELECTRONIC,5100277040,174.70,United Kingdom Atomic Energy Authority,United Kingdom Atomic Energy Authority
09/07/2012,BLUEBELL LAUNDRY,FUSION,BLUEBELL LAUNDRY,5100277053,31.00,United Kingdom Atomic Energy Authority,United Kingdom Atomic Energy Authority
09/07/2012,VEHICLE REPAIRS,FUSION,SUTTON COURTENAY TYRES,5100277059,216.00,United Kingdom Atomic Energy Authority,United Kingdom Atomic Energy Authority
09/07/2012,VEHICLE REPAIRS,FUSION,SUTTON COURTENAY TYRES,5100277061,75.00,United Kingdom Atomic Energy Authority,United Kingdom Atomic Energy Authority
09/07/2012,PERSONAL PROTECTIVE EQUIPMENT,FUSION,ARCO LTD,5100277070,44.57,United Kingdom Atomic Energy Authority,United Kingdom Atomic Energy Authority
09/07/2012,MATERIALS & SPARES,FUSION,CBL ELECTRIC VEHICLES LTD,5100277087,98.00,United Kingdom Atomic Energy Authority,United Kingdom Atomic Energy Authority
09/07/2012,MATERIALS & SPARES,FUSION,CBL ELECTRIC VEHICLES LTD,5100277088,273.60,United Kingdom Atomic Energy Authority,United Kingdom Atomic Energy Authority
09/07/2012,MATERIALS & SPARES,FUSION,CBL ELECTRIC VEHICLES LTD,5100277089,248.50,United Kingdom Atomic Energy Authority,United Kingdom Atomic Energy Authority
09/07/2012,MATERIALS & SPARES,FUSION,CBL ELECTRIC VEHICLES LTD,5100277090,160.00,United Kingdom Atomic Energy Authority,United Kingdom Atomic Energy Authority
09/07/2012,MATERIALS & SPARES,FUSION,CBL ELECTRIC VEHICLES LTD,5100277091,60.32,United Kingdom Atomic Energy Authority,United Kingdom Atomic Energy Authority
09/07/2012,PLANT SPARES,FUSION,RS COMPONENTS CALIBRATION SERVICES,5100277092,-13.39,United Kingdom Atomic Energy Authority,United Kingdom Atomic Energy Authority
09/07/2012,MATERIALS & SPARES,FUSION,CBL ELECTRIC VEHICLES LTD,5100277093,1783.36,United Kingdom Atomic Energy Authority,United Kingdom Atomic Energy Authority
09/07/2012,STATIONERY,FUSION,LYRECO UK LIMITED,5100277115,470.11,United Kingdom Atomic Energy Authority,United Kingdom Atomic Energy Authority
09/07/2012,STATIONERY,FUSION,LYRECO UK LIMITED,5100277116,302.68,United Kingdom Atomic Energy Authority,United Kingdom Atomic Energy Authority
09/07/2012,STATIONERY,FUSION,LYRECO UK LIMITED,5100277117,607.60,United Kingdom Atomic Energy Authority,United Kingdom Atomic Energy Authority
09/07/2012,STATIONERY,FUSION,LYRECO UK LIMITED,5100277118,645.17,United Kingdom Atomic Energy Authority,United Kingdom Atomic Energy Authority
09/07/2012,PLANT SPARES,FUSION,RS COMPONENTS CALIBRATION SERVICES,5100277133,152.24,United Kingdom Atomic Energy Authority,United Kingdom Atomic Energy Authority
11/07/2012,MATERIALS & SPARES,FUSION,RS COMPONENTS LTD,5100277134,141.74,United Kingdom Atomic Energy Authority,United Kingdom Atomic Energy Authority
09/07/2012,MATERIALS & SPARES,FUSION,RS COMPONENTS LTD,5100277135,155.87,United Kingdom Atomic Energy Authority,United Kingdom Atomic Energy Authority
09/07/2012,MATERIALS & SPARES,FUSION,RS COMPONENTS LTD,5100277136,239.03,United Kingdom Atomic Energy Authority,United Kingdom Atomic Energy Authority
18/07/2012,MATERIALS & SPARES,FUSION,RS COMPONENTS LTD,5100277163,69.64,United Kingdom Atomic Energy Authority,United Kingdom Atomic Energy Authority
09/07/2012,MATERIALS & SPARES,FUSION,RS COMPONENTS LTD,5100277164,14.42,United Kingdom Atomic Energy Authority,United Kingdom Atomic Energy Authority
16/07/2012,MATERIALS & SPARES,FUSION,RS COMPONENTS LTD,5100277184,124.05,United Kingdom Atomic Energy Authority,United Kingdom Atomic Energy Authority
11/07/2012,BUILDING REPAIRS,FUSION,TILL & WHITEHEAD LTD,5100277189,17.45,United Kingdom Atomic Energy Authority,United Kingdom Atomic Energy Authority
11/07/2012,REPAIRS & MAINTENANCE,FUSION,BATT CABLES PLC,5100277191,470.00,United Kingdom Atomic Energy Authority,United Kingdom Atomic Energy Authority
16/07/2012,PERSONAL PROTECTIVE EQUIPMENT,FUSION,ARCO LTD,5100277195,109.72,United Kingdom Atomic Energy Authority,United Kingdom Atomic Energy Authority
16/07/2012,PERSONAL PROTECTIVE EQUIPMENT,FUSION,ARCO LTD,5100277197,364.78,United Kingdom Atomic Energy Authority,United Kingdom Atomic Energy Authority
16/07/2012,GASES,FUSION,BOC LTD,5100277221,66.30,United Kingdom Atomic Energy Authority,United Kingdom Atomic Energy Authority
16/07/2012,PERSONAL PROTECTIVE EQUIPMENT,FUSION,ARCO LTD,5100277255,1395.52,United Kingdom Atomic Energy Authority,United Kingdom Atomic Energy Authority
16/07/2012,PERSONAL PROTECTIVE EQUIPMENT,FUSION,ARCO LTD,5100277256,95.28,United Kingdom Atomic Energy Authority,United Kingdom Atomic Energy Authority
16/07/2012,PERSONAL PROTECTIVE EQUIPMENT,FUSION,ARCO LTD,5100277258,205.74,United Kingdom Atomic Energy Authority,United Kingdom Atomic Energy Authority
16/07/2012,PERSONAL PROTECTIVE EQUIPMENT,FUSION,ARCO LTD,5100277284,259.50,United Kingdom Atomic Energy Authority,United Kingdom Atomic Energy Authority
16/07/2012,MATERIALS & SPARES,FUSION,OXFORD BOLTS & BEARINGS,5100277295,504.50,United Kingdom Atomic Energy Authority,United Kingdom Atomic Energy Authority
16/07/2012,MATERIALS & SPARES,FUSION,RS COMPONENTS LTD,5100277301,8.92,United Kingdom Atomic Energy Authority,United Kingdom Atomic Energy Authority
16/07/2012,REPAIRS & MAINTENANCE,FUSION,BEAVER 84 LIMITED,5100277320,62.92,United Kingdom Atomic Energy Authority,United Kingdom Atomic Energy Authority
16/07/2012,REPAIRS & MAINTENANCE,FUSION,BEAVER 84 LIMITED,5100277322,70.98,United Kingdom Atomic Energy Authority,United Kingdom Atomic Energy Authority
16/07/2012,STATIONERY,FUSION,LYRECO UK LIMITED,5100277352,444.07,United Kingdom Atomic Energy Authority,United Kingdom Atomic Energy Authority
16/07/2012,STATIONERY,FUSION,LYRECO UK LIMITED,5100277353,331.32,United Kingdom Atomic Energy Authority,United Kingdom Atomic Energy Authority
16/07/2012,STATIONERY,FUSION,LYRECO UK LIMITED,5100277354,222.36,United Kingdom Atomic Energy Authority,United Kingdom Atomic Energy Authority
18/07/2012,MATERIALS & SPARES,FUSION,RS COMPONENTS LTD,5100277364,276.70,United Kingdom Atomic Energy Authority,United Kingdom Atomic Energy Authority
23/07/2012,PERSONAL PROTECTIVE EQUIPMENT,FUSION,ARCO LTD,5100277385,17.44,United Kingdom Atomic Energy Authority,United Kingdom Atomic Energy Authority
16/07/2012,REPAIRS & MAINTENANCE,FUSION,BATT CABLES PLC,5100277420,102.00,United Kingdom Atomic Energy Authority,United Kingdom Atomic Energy Authority
16/07/2012,REPAIRS & MAINTENANCE,FUSION,BATT CABLES PLC,5100277421,408.00,United Kingdom Atomic Energy Authority,United Kingdom Atomic Energy Authority
23/07/2012,MATERIALS & SPARES,FUSION,ANIXTER (UK) LTD,5100277479,769.00,United Kingdom Atomic Energy Authority,United Kingdom Atomic Energy Authority
23/07/2012,PLANT & EQUIPMENT,FUSION,EDMUNDSON ELECTRICALS LTD,5100277487,496.00,United Kingdom Atomic Energy Authority,United Kingdom Atomic Energy Authority
23/07/2012,PLANT & EQUIPMENT,FUSION,EDMUNDSON ELECTRICALS LTD,5100277488,56.86,United Kingdom Atomic Energy Authority,United Kingdom Atomic Energy Authority
23/07/2012,PLANT & EQUIPMENT,FUSION,EDMUNDSON ELECTRICALS LTD,5100277490,400.70,United Kingdom Atomic Energy Authority,United Kingdom Atomic Energy Authority
23/07/2012,PLANT & EQUIPMENT,FUSION,EDMUNDSON ELECTRICALS LTD,5100277491,995.35,United Kingdom Atomic Energy Authority,United Kingdom Atomic Energy Authority
23/07/2012,PLANT & EQUIPMENT,FUSION,YOKOGAWA MEASUREMENT TECHNOLOGIES,5100277496,11890.45,United Kingdom Atomic Energy Authority,United Kingdom Atomic Energy Authority
23/07/2012,MATERIALS & SPARES,FUSION,BUNZL SWS,5100277515,75.24,United Kingdom Atomic Energy Authority,United Kingdom Atomic Energy Authority
23/07/2012,MATERIALS & SPARES,FUSION,ANIXTER (UK) LTD,5100277518,432.00,United Kingdom Atomic Energy Authority,United Kingdom Atomic Energy Authority
23/07/2012,PERSONAL PROTECTIVE EQUIPMENT,FUSION,ARCO LTD,5100277593,26.39,United Kingdom Atomic Energy Authority,United Kingdom Atomic Energy Authority
25/07/2012,BUILDING REPAIRS,FUSION,KNOWLES & SONS (OXFORD) LTD,5100277605,14029.04,United Kingdom Atomic Energy Authority,United Kingdom Atomic Energy Authority
23/07/2012,MATERIALS & SPARES,FUSION,RS COMPONENTS LTD,5100277636,639.00,United Kingdom Atomic Energy Authority,United Kingdom Atomic Energy Authority
23/07/2012,STATIONERY,FUSION,LYRECO UK LIMITED,5100277662,53.95,United Kingdom Atomic Energy Authority,United Kingdom Atomic Energy Authority
23/07/2012,MATERIALS & SPARES,FUSION,RS COMPONENTS LTD,5100277698,504.00,United Kingdom Atomic Energy Authority,United Kingdom Atomic Energy Authority
23/07/2012,PLANT & EQUIPMENT,FUSION,FISHER SCIENTIFIC UK LTD,5100277715,458.85,United Kingdom Atomic Energy Authority,United Kingdom Atomic Energy Authority
09/07/2012,MEDICAL EXPENSES,FUSION,IMASS LTD,5100276748,4143.75,United Kingdom Atomic Energy Authority,United Kingdom Atomic Energy Authority
23/07/2012,MEDICAL EXPENSES,FUSION,IMASS LTD,5100277494,379.11,United Kingdom Atomic Energy Authority,United Kingdom Atomic Energy Authority
02/07/2012,PLANT & EQUIPMENT,FUSION,CANBERRA UK LIMITED,5100274864,-885.00,United Kingdom Atomic Energy Authority,United Kingdom Atomic Energy Authority
04/07/2012,GASES,FUSION,BOC LTD,5100276222,165.70,United Kingdom Atomic Energy Authority,United Kingdom Atomic Energy Authority
02/07/2012,PLANT & EQUIPMENT,FUSION,CANBERRA UK LIMITED,5100276473,9028.00,United Kingdom Atomic Energy Authority,United Kingdom Atomic Energy Authority
02/07/2012,F&F,FUSION,EFG MATTHEWS OFFICE FURNITURE LTD,5100276629,141.00,United Kingdom Atomic Energy Authority,United Kingdom Atomic Energy Authority
16/07/2012,CAR HIRE,FUSION,LEASE PLAN UK LTD,5100276774,330.21,United Kingdom Atomic Energy Authority,United Kingdom Atomic Energy Authority
02/07/2012,PLANT & EQUIPMENT,FUSION,ALPHA LABORATORIES,5100276782,174.20,United Kingdom Atomic Energy Authority,United Kingdom Atomic Energy Authority
04/07/2012,PLANT & EQUIPMENT,FUSION,FISHER SCIENTIFIC UK LTD,5100276826,187.12,United Kingdom Atomic Energy Authority,United Kingdom Atomic Energy Authority
09/07/2012,PROFESSIONAL SERVICES,FUSION,SCIENTIFICS LTD,5100276845,900.00,United Kingdom Atomic Energy Authority,United Kingdom Atomic Energy Authority
09/07/2012,PLANT & EQUIPMENT,FUSION,FISHER SCIENTIFIC UK LTD,5100276870,184.33,United Kingdom Atomic Energy Authority,United Kingdom Atomic Energy Authority
09/07/2012,PERSONAL PROTECTIVE EQUIPMENT,FUSION,SURE SAFE LTD,5100276913,534.00,United Kingdom Atomic Energy Authority,United Kingdom Atomic Energy Authority
18/07/2012,GASES,FUSION,BOC LTD,5100276916,758.70,United Kingdom Atomic Energy Authority,United Kingdom Atomic Energy Authority
18/07/2012,GASES,FUSION,BOC LTD,5100276917,539.76,United Kingdom Atomic Energy Authority,United Kingdom Atomic Energy Authority
04/07/2012,PROFESSIONAL SERVICES,FUSION,EXCEL GLOBAL LTD,5100276935,730.00,United Kingdom Atomic Energy Authority,United Kingdom Atomic Energy Authority
09/07/2012,PLANT & EQUIPMENT,FUSION,ALPHA LABORATORIES,5100276986,174.20,United Kingdom Atomic Energy Authority,United Kingdom Atomic Energy Authority
09/07/2012,PROFESSIONAL SERVICES,FUSION,RADIOCARBON DATING,5100277006,15401.20,United Kingdom Atomic Energy Authority,United Kingdom Atomic Energy Authority
11/07/2012,PLANT & EQUIPMENT,FUSION,FISHER SCIENTIFIC UK LTD,5100277008,600.64,United Kingdom Atomic Energy Authority,United Kingdom Atomic Energy Authority
09/07/2012,HEALTH PHYSICS,FUSION,NUVIA LIMITED,5100277022,18533.47,United Kingdom Atomic Energy Authority,United Kingdom Atomic Energy Authority
09/07/2012,HEALTH PHYSICS,FUSION,NUVIA LIMITED,5100277050,-18533.47,United Kingdom Atomic Energy Authority,United Kingdom Atomic Energy Authority
09/07/2012,HEALTH PHYSICS,FUSION,NUVIA LIMITED,5100277051,18533.47,United Kingdom Atomic Energy Authority,United Kingdom Atomic Energy Authority
09/07/2012,TREATED WATER,FUSION,WATERWISE TECHNOLOGY LTD,5100277084,542.96,United Kingdom Atomic Energy Authority,United Kingdom Atomic Energy Authority
18/07/2012,GASES,FUSION,BOC LTD,5100277119,-100.00,United Kingdom Atomic Energy Authority,United Kingdom Atomic Energy Authority
09/07/2012,MATERIALS & SPARES,FUSION,RS COMPONENTS LTD,5100277179,75.70,United Kingdom Atomic Energy Authority,United Kingdom Atomic Energy Authority
11/07/2012,PLANT & EQUIPMENT,FUSION,ARVAL UK LIMITED,5100277187,271.62,United Kingdom Atomic Energy Authority,United Kingdom Atomic Energy Authority
16/07/2012,PLANT & EQUIPMENT,FUSION,ARVAL UK LIMITED,5100277188,271.62,United Kingdom Atomic Energy Authority,United Kingdom Atomic Energy Authority
16/07/2012,PROFESSIONAL SERVICES,FUSION,SCIENTIFICS LTD,5100277207,900.00,United Kingdom Atomic Energy Authority,United Kingdom Atomic Energy Authority
16/07/2012,GASES,FUSION,BOC LTD,5100277223,180.04,United Kingdom Atomic Energy Authority,United Kingdom Atomic Energy Authority
16/07/2012,PERSONAL PROTECTIVE EQUIPMENT,FUSION,ARCO WESSEX,5100277254,45.11,United Kingdom Atomic Energy Authority,United Kingdom Atomic Energy Authority
16/07/2012,PROFESSIONAL SERVICES,FUSION,PERKIN ELMER LAS UK LTD,5100277270,479.00,United Kingdom Atomic Energy Authority,United Kingdom Atomic Energy Authority
16/07/2012,PLANT & EQUIPMENT,FUSION,FISHER SCIENTIFIC UK LTD,5100277292,87.34,United Kingdom Atomic Energy Authority,United Kingdom Atomic Energy Authority
18/07/2012,PROFESSIONAL SERVICES,FUSION,VT NUCLEAR SERVICES LTD,5100277314,3652.64,United Kingdom Atomic Energy Authority,United Kingdom Atomic Energy Authority
16/07/2012,PROFESSIONAL SERVICES,FUSION,EUROPEAN INSTRUMENTS,5100277412,730.00,United Kingdom Atomic Energy Authority,United Kingdom Atomic Energy Authority
16/07/2012,PLANT & EQUIPMENT,FUSION,FISHER SCIENTIFIC UK LTD,5100277414,91.20,United Kingdom Atomic Energy Authority,United Kingdom Atomic Energy Authority
16/07/2012,MATERIALS & SPARES,FUSION,VWR INTERNATIONAL LTD,5100277417,1234.70,United Kingdom Atomic Energy Authority,United Kingdom Atomic Energy Authority
16/07/2012,PROFESSIONAL SERVICES,FUSION,PERKIN ELMER LAS UK LTD,5100277435,45.00,United Kingdom Atomic Energy Authority,United Kingdom Atomic Energy Authority
16/07/2012,PROFESSIONAL SERVICES,FUSION,PERKIN ELMER LAS UK LTD,5100277436,49.00,United Kingdom Atomic Energy Authority,United Kingdom Atomic Energy Authority
23/07/2012,PLANT & EQUIPMENT,FUSION,FISHER SCIENTIFIC UK LTD,5100277505,1864.51,United Kingdom Atomic Energy Authority,United Kingdom Atomic Energy Authority
23/07/2012,MATERIALS & SPARES,FUSION,FARNELL ELECTRONIC,5100277630,126.65,United Kingdom Atomic Energy Authority,United Kingdom Atomic Energy Authority
23/07/2012,CONFERENCES,FUSION,THE SOCIETY FOR RADIOLOGICAL PROTEC,5100277658,95.00,United Kingdom Atomic Energy Authority,United Kingdom Atomic Energy Authority
25/07/2012,PERSONAL PROTECTIVE EQUIPMENT,FUSION,SURE SAFE LTD,5100277726,293.00,United Kingdom Atomic Energy Authority,United Kingdom Atomic Energy Authority
20/07/2012,TRAINING COURSE FEES,FUSION,Aster Training,1900057269,294.00,United Kingdom Atomic Energy Authority,United Kingdom Atomic Energy Authority
12/07/2012,MILEAGE ALLOWANCE,FUSION,EMPLOYEE EXPENSES,100650694,16.00,United Kingdom Atomic Energy Authority,United Kingdom Atomic Energy Authority
12/07/2012,MILEAGE ALLOWANCE,FUSION,EMPLOYEE EXPENSES,100650710,16.00,United Kingdom Atomic Energy Authority,United Kingdom Atomic Energy Authority
12/07/2012,OTHER STAFF COSTS,FUSION,EMPLOYEE EXPENSES,100650710,16.00,United Kingdom Atomic Energy Authority,United Kingdom Atomic Energy Authority
12/07/2012,MILEAGE ALLOWANCE,FUSION,EMPLOYEE EXPENSES,100650711,16.00,United Kingdom Atomic Energy Authority,United Kingdom Atomic Energy Authority
12/07/2012,OTHER STAFF COSTS,FUSION,EMPLOYEE EXPENSES,100650711,16.00,United Kingdom Atomic Energy Authority,United Kingdom Atomic Energy Authority
02/07/2012,INSPECTION SERVICES,FUSION,ROYAL & SUN ALLIANCE ENGINEERING LT,5100276566,1683.25,United Kingdom Atomic Energy Authority,United Kingdom Atomic Energy Authority
25/07/2012,BUILDING REPAIRS,FUSION,KNOWLES & SONS (OXFORD) LTD,5100277743,-729.02,United Kingdom Atomic Energy Authority,United Kingdom Atomic Energy Authority
25/07/2012,BUILDING REPAIRS,FUSION,KNOWLES & SONS (OXFORD) LTD,5100277745,-847.52,United Kingdom Atomic Energy Authority,United Kingdom Atomic Energy Authority
26/07/2012,SUBSISTENCE,FUSION,EMPLOYEE EXPENSES,100658567,5.00,United Kingdom Atomic Energy Authority,United Kingdom Atomic Energy Authority
26/07/2012,SUBSISTENCE,FUSION,EMPLOYEE EXPENSES,100658567,83.33,United Kingdom Atomic Energy Authority,United Kingdom Atomic Energy Authority
26/07/2012,ROAD TRAVEL,FUSION,EMPLOYEE EXPENSES,100658567,41.68,United Kingdom Atomic Energy Authority,United Kingdom Atomic Energy Authority
09/07/2012,ADVERTISING STAFF,FUSION,TMP (UK) LTD,5100277057,3047.87,United Kingdom Atomic Energy Authority,United Kingdom Atomic Energy Authority
16/07/2012,ADVERTISING STAFF,FUSION,TMP (UK) LTD,5100277312,1435.90,United Kingdom Atomic Energy Authority,United Kingdom Atomic Energy Authority
02/07/2012,BUILDING REPAIRS,FUSION,KNOWLES & SONS (OXFORD) LTD,5100276586,81.15,United Kingdom Atomic Energy Authority,United Kingdom Atomic Energy Authority
11/07/2012,BUILDING REPAIRS,FUSION,LORNE STEWART PLC,5100276897,3067.47,United Kingdom Atomic Energy Authority,United Kingdom Atomic Energy Authority
09/07/2012,TRAINING COSTS,FUSION,ENERGY INFORMATION CENTRE LTD,5100276936,2100.00,United Kingdom Atomic Energy Authority,United Kingdom Atomic Energy Authority
23/07/2012,BUILDING REPAIRS,FUSION,KNOWLES & SONS (OXFORD) LTD,5100277532,1343.47,United Kingdom Atomic Energy Authority,United Kingdom Atomic Energy Authority
23/07/2012,BUILDING REPAIRS,FUSION,KNOWLES & SONS (OXFORD) LTD,5100277539,54.81,United Kingdom Atomic Energy Authority,United Kingdom Atomic Energy Authority
09/07/2012,TRAINING COURSE FEES,FUSION,MACGREGOR INDUSTRIES LTD,5100276984,1389.10,United Kingdom Atomic Energy Authority,United Kingdom Atomic Energy Authority
02/07/2012,SOFTWARE,FUSION,ABB LTD,5100276844,4506.00,United Kingdom Atomic Energy Authority,United Kingdom Atomic Energy Authority
16/07/2012,SOFTWARE,FUSION,ABB LTD,5100277397,21100.50,United Kingdom Atomic Energy Authority,United Kingdom Atomic Energy Authority
25/07/2012,PLANT & EQUIPMENT,FUSION,ABB LIMITED,5100277671,33647.10,United Kingdom Atomic Energy Authority,United Kingdom Atomic Energy Authority
02/07/2012,MATERIALS & SPARES,FUSION,OXFORD BOLTS & BEARINGS,5100276575,194.50,United Kingdom Atomic Energy Authority,United Kingdom Atomic Energy Authority
02/07/2012,PLANT & EQUIPMENT,FUSION,ERODEX UK LTD,5100276613,2275.00,United Kingdom Atomic Energy Authority,United Kingdom Atomic Energy Authority
02/07/2012,PLANT & EQUIPMENT,FUSION,BELLEVILLE SPRINGS LTD,5100276787,1448.00,United Kingdom Atomic Energy Authority,United Kingdom Atomic Energy Authority
02/07/2012,MATERIALS & SPARES,FUSION,RS COMPONENTS LTD,5100276800,150.90,United Kingdom Atomic Energy Authority,United Kingdom Atomic Energy Authority
11/07/2012,MATERIALS & SPARES,FUSION,ALPHA ENGINEERING SUPPLIES,5100277203,20.78,United Kingdom Atomic Energy Authority,United Kingdom Atomic Energy Authority
16/07/2012,PROFESSIONAL SERVICES,FUSION,SWAGELOK LONDON,5100277283,1762.43,United Kingdom Atomic Energy Authority,United Kingdom Atomic Energy Authority
23/07/2012,MATERIALS & SPARES,FUSION,ALPHA ENGINEERING SUPPLIES,5100277411,156.00,United Kingdom Atomic Energy Authority,United Kingdom Atomic Energy Authority
23/07/2012,CAR HIRE,FUSION,LEASEDRIVE VELO,5100277644,36.44,United Kingdom Atomic Energy Authority,United Kingdom Atomic Energy Authority
23/07/2012,CAR HIRE,FUSION,LEASEDRIVE VELO,5100277646,96.12,United Kingdom Atomic Energy Authority,United Kingdom Atomic Energy Authority
02/07/2012,PROFESSIONAL SERVICES,FUSION,HENRIS PRECISION ENGINEERS,5100276677,3972.00,United Kingdom Atomic Energy Authority,United Kingdom Atomic Energy Authority
02/07/2012,PROFESSIONAL SERVICES,FUSION,OXFORD TECHNOLOGIES LTD,5100276717,3122.93,United Kingdom Atomic Energy Authority,United Kingdom Atomic Energy Authority
02/07/2012,PROFESSIONAL SERVICES,FUSION,OXFORD TECHNOLOGIES LTD,5100276718,1736.04,United Kingdom Atomic Energy Authority,United Kingdom Atomic Energy Authority
02/07/2012,PROFESSIONAL SERVICES,FUSION,OXFORD TECHNOLOGIES LTD,5100276719,4513.50,United Kingdom Atomic Energy Authority,United Kingdom Atomic Energy Authority
23/07/2012,PROFESSIONAL SERVICES,FUSION,OXFORD TECHNOLOGIES LTD,5100277612,25.53,United Kingdom Atomic Energy Authority,United Kingdom Atomic Energy Authority
23/07/2012,PROFESSIONAL SERVICES,FUSION,OXFORD TECHNOLOGIES LTD,5100277613,702.08,United Kingdom Atomic Energy Authority,United Kingdom Atomic Energy Authority
14/07/2012,SUBSISTENCE,FUSION,EMPLOYEE EXPENSES,100650727,485.17,United Kingdom Atomic Energy Authority,United Kingdom Atomic Energy Authority
14/07/2012,SUBSISTENCE,FUSION,EMPLOYEE EXPENSES,100650727,7.12,United Kingdom Atomic Energy Authority,United Kingdom Atomic Energy Authority
14/07/2012,ROAD TRAVEL,FUSION,EMPLOYEE EXPENSES,100650727,36.32,United Kingdom Atomic Energy Authority,United Kingdom Atomic Energy Authority
14/07/2012,OTHER EMPLOYEE EXPENSES,FUSION,EMPLOYEE EXPENSES,100650727,3.00,United Kingdom Atomic Energy Authority,United Kingdom Atomic Energy Authority
14/07/2012,SUBSISTENCE,FUSION,EMPLOYEE EXPENSES,100650744,230.53,United Kingdom Atomic Energy Authority,United Kingdom Atomic Energy Authority
14/07/2012,SUBSISTENCE,FUSION,EMPLOYEE EXPENSES,100650744,8.33,United Kingdom Atomic Energy Authority,United Kingdom Atomic Energy Authority
14/07/2012,ROAD TRAVEL,FUSION,EMPLOYEE EXPENSES,100650744,27.12,United Kingdom Atomic Energy Authority,United Kingdom Atomic Energy Authority
26/07/2012,TAXIS,FUSION,EMPLOYEE EXPENSES,100658568,43.24,United Kingdom Atomic Energy Authority,United Kingdom Atomic Energy Authority
26/07/2012,OTHER EMPLOYEE EXPENSES,FUSION,EMPLOYEE EXPENSES,100658568,3.00,United Kingdom Atomic Energy Authority,United Kingdom Atomic Energy Authority
16/07/2012,MATERIALS & SPARES,FUSION,TECAN LTD,5100277344,-230.15,United Kingdom Atomic Energy Authority,United Kingdom Atomic Energy Authority
16/07/2012,MATERIALS & SPARES,FUSION,TECAN LTD,5100277345,230.15,United Kingdom Atomic Energy Authority,United Kingdom Atomic Energy Authority
23/07/2012,MATERIALS & SPARES,FUSION,HEMPEL SPECIAL METALS LTD,5100277513,819.00,United Kingdom Atomic Energy Authority,United Kingdom Atomic Energy Authority
23/07/2012,PLANT SPARES,FUSION,MERSEN UK PORTSLADE LTD,5100276009,81818.88,United Kingdom Atomic Energy Authority,United Kingdom Atomic Energy Authority
23/07/2012,PLANT SPARES,FUSION,MERSEN UK PORTSLADE LTD,5100276010,8242.16,United Kingdom Atomic Energy Authority,United Kingdom Atomic Energy Authority
23/07/2012,PLANT SPARES,FUSION,MERSEN UK PORTSLADE LTD,5100276011,53.27,United Kingdom Atomic Energy Authority,United Kingdom Atomic Energy Authority
11/07/2012,MATERIALS & SPARES,FUSION,LUVATA PORI OY,5100276323,14774.02,United Kingdom Atomic Energy Authority,United Kingdom Atomic Energy Authority
04/07/2012,MATERIALS & SPARES,FUSION,RS COMPONENTS LTD,5100276728,24.52,United Kingdom Atomic Energy Authority,United Kingdom Atomic Energy Authority
02/07/2012,SOFTWARE,FUSION,ANSYS UK LTD,5100276788,940.00,United Kingdom Atomic Energy Authority,United Kingdom Atomic Energy Authority
18/07/2012,MATERIALS & SPARES,FUSION,ACRONA ENGINEERING LTD,5100276839,8000.00,United Kingdom Atomic Energy Authority,United Kingdom Atomic Energy Authority
09/07/2012,PROFESSIONAL SERVICES,FUSION,GLANVILLE CONSULTANTS,5100276869,2650.00,United Kingdom Atomic Energy Authority,United Kingdom Atomic Energy Authority
16/07/2012,PLANT & EQUIPMENT,FUSION,BRAMLEY ENGINEERING,5100277277,108220.00,United Kingdom Atomic Energy Authority,United Kingdom Atomic Energy Authority
16/07/2012,MATERIALS & SPARES,FUSION,FISHER SCIENTIFIC UK LIMITED,5100277413,105.00,United Kingdom Atomic Energy Authority,United Kingdom Atomic Energy Authority
23/07/2012,CAR HIRE,FUSION,LEASEDRIVE VELO,5100277647,36.44,United Kingdom Atomic Energy Authority,United Kingdom Atomic Energy Authority
23/07/2012,PROFESSIONAL SERVICES,FUSION,WESTMORELAND MECHANICAL TESTING & RESEARCH,5100277669,310.00,United Kingdom Atomic Energy Authority,United Kingdom Atomic Energy Authority
23/07/2012,CAR HIRE,FUSION,LEASEDRIVE VELO,5100277707,84.39,United Kingdom Atomic Energy Authority,United Kingdom Atomic Energy Authority
23/07/2012,MATERIALS & SPARES,FUSION,DURBIN METAL INDUSTRIES LTD,5100277723,9.75,United Kingdom Atomic Energy Authority,United Kingdom Atomic Energy Authority
23/07/2012,MATERIALS & SPARES,FUSION,DURBIN METAL INDUSTRIES LTD,5100277725,41.93,United Kingdom Atomic Energy Authority,United Kingdom Atomic Energy Authority
23/07/2012,PLANT SPARES,FUSION,MERSEN UK PORTSLADE LTD,5100277738,-8242.16,United Kingdom Atomic Energy Authority,United Kingdom Atomic Energy Authority
16/07/2012,OTHER EXTERNAL COSTS,FUSION,EMPLOYEE EXPENSES,1900057248,1088.70,United Kingdom Atomic Energy Authority,United Kingdom Atomic Energy Authority
06/07/2012,MILEAGE ALLOWANCE,FUSION,EMPLOYEE EXPENSES,100650651,32.00,United Kingdom Atomic Energy Authority,United Kingdom Atomic Energy Authority
14/07/2012,MILEAGE ALLOWANCE,FUSION,EMPLOYEE EXPENSES,100650726,34.80,United Kingdom Atomic Energy Authority,United Kingdom Atomic Energy Authority
14/07/2012,SUBSISTENCE,FUSION,EMPLOYEE EXPENSES,100650733,233.92,United Kingdom Atomic Energy Authority,United Kingdom Atomic Energy Authority
14/07/2012,SUBSISTENCE,FUSION,EMPLOYEE EXPENSES,100650733,3.41,United Kingdom Atomic Energy Authority,United Kingdom Atomic Energy Authority
14/07/2012,ROAD TRAVEL,FUSION,EMPLOYEE EXPENSES,100650733,15.82,United Kingdom Atomic Energy Authority,United Kingdom Atomic Energy Authority
14/07/2012,OTHER EMPLOYEE EXPENSES,FUSION,EMPLOYEE EXPENSES,100650733,3.00,United Kingdom Atomic Energy Authority,United Kingdom Atomic Energy Authority
14/07/2012,SUBSISTENCE,FUSION,EMPLOYEE EXPENSES,100650735,203.19,United Kingdom Atomic Energy Authority,United Kingdom Atomic Energy Authority
14/07/2012,RAIL TRAVEL,FUSION,EMPLOYEE EXPENSES,100650735,6.20,United Kingdom Atomic Energy Authority,United Kingdom Atomic Energy Authority
14/07/2012,ROAD TRAVEL,FUSION,EMPLOYEE EXPENSES,100650735,26.00,United Kingdom Atomic Energy Authority,United Kingdom Atomic Energy Authority
14/07/2012,OTHER EMPLOYEE EXPENSES,FUSION,EMPLOYEE EXPENSES,100650735,3.00,United Kingdom Atomic Energy Authority,United Kingdom Atomic Energy Authority
14/07/2012,TAXIS,FUSION,EMPLOYEE EXPENSES,100650736,3.93,United Kingdom Atomic Energy Authority,United Kingdom Atomic Energy Authority
14/07/2012,SUBSISTENCE,FUSION,EMPLOYEE EXPENSES,100650736,278.95,United Kingdom Atomic Energy Authority,United Kingdom Atomic Energy Authority
19/07/2012,MILEAGE ALLOWANCE,FUSION,EMPLOYEE EXPENSES,100650852,32.00,United Kingdom Atomic Energy Authority,United Kingdom Atomic Energy Authority
19/07/2012,MILEAGE ALLOWANCE,FUSION,EMPLOYEE EXPENSES,100650853,32.00,United Kingdom Atomic Energy Authority,United Kingdom Atomic Energy Authority
26/07/2012,SUBSISTENCE,FUSION,EMPLOYEE EXPENSES,100658580,252.66,United Kingdom Atomic Energy Authority,United Kingdom Atomic Energy Authority
09/07/2012,CONSUMABLES,FUSION,ABLOY SECURITY,5100276989,10.41,United Kingdom Atomic Energy Authority,United Kingdom Atomic Energy Authority
09/07/2012,MATERIALS & SPARES,FUSION,FARNELL ELECTRONIC,5100277035,124.14,United Kingdom Atomic Energy Authority,United Kingdom Atomic Energy Authority
09/07/2012,MATERIALS & SPARES,FUSION,RS COMPONENTS LTD,5100277153,501.35,United Kingdom Atomic Energy Authority,United Kingdom Atomic Energy Authority
16/07/2012,CAR HIRE,FUSION,LEASEDRIVE VELO,5100277391,68.78,United Kingdom Atomic Energy Authority,United Kingdom Atomic Energy Authority
23/07/2012,MATERIALS & SPARES,FUSION,FARNELL ELECTRONIC,5100277625,191.06,United Kingdom Atomic Energy Authority,United Kingdom Atomic Energy Authority
23/07/2012,MATERIALS & SPARES,FUSION,RS COMPONENTS LTD,5100277689,6.75,United Kingdom Atomic Energy Authority,United Kingdom Atomic Energy Authority
25/07/2012,PLANT & EQUIPMENT,FUSION,INDUSTRIAL COOLING SYSTEMS,5100277710,2870.00,United Kingdom Atomic Energy Authority,United Kingdom Atomic Energy Authority
05/07/2012,CONFERENCES/MEETINGS,FUSION,Nordea Pankki Suomo Oyi,1900057174,3342.44,United Kingdom Atomic Energy Authority,United Kingdom Atomic Energy Authority
12/07/2012,SUBSISTENCE,FUSION,EMPLOYEE EXPENSES,100650701,82.25,United Kingdom Atomic Energy Authority,United Kingdom Atomic Energy Authority
12/07/2012,ROAD TRAVEL,FUSION,EMPLOYEE EXPENSES,100650701,40.13,United Kingdom Atomic Energy Authority,United Kingdom Atomic Energy Authority
26/07/2012,SUBSISTENCE,FUSION,EMPLOYEE EXPENSES,100658579,5.00,United Kingdom Atomic Energy Authority,United Kingdom Atomic Energy Authority
26/07/2012,SUBSISTENCE,FUSION,EMPLOYEE EXPENSES,100658579,57.71,United Kingdom Atomic Energy Authority,United Kingdom Atomic Energy Authority
04/07/2012,CONFERENCES/MEETINGS,FUSION,SCK-CEN,1900057169,521.17,United Kingdom Atomic Energy Authority,United Kingdom Atomic Energy Authority
06/07/2012,TAXIS,FUSION,EMPLOYEE EXPENSES,100650648,11.00,United Kingdom Atomic Energy Authority,United Kingdom Atomic Energy Authority
06/07/2012,SUBSISTENCE,FUSION,EMPLOYEE EXPENSES,100650648,884.97,United Kingdom Atomic Energy Authority,United Kingdom Atomic Energy Authority
06/07/2012,MILEAGE ALLOWANCE,FUSION,EMPLOYEE EXPENSES,100650648,40.80,United Kingdom Atomic Energy Authority,United Kingdom Atomic Energy Authority
06/07/2012,ROAD TRAVEL,FUSION,EMPLOYEE EXPENSES,100650648,27.00,United Kingdom Atomic Energy Authority,United Kingdom Atomic Energy Authority
06/07/2012,ROAD TRAVEL,FUSION,EMPLOYEE EXPENSES,100650648,142.21,United Kingdom Atomic Energy Authority,United Kingdom Atomic Energy Authority
06/07/2012,OTHER EMPLOYEE EXPENSES,FUSION,EMPLOYEE EXPENSES,100650648,6.17,United Kingdom Atomic Energy Authority,United Kingdom Atomic Energy Authority
06/07/2012,SUBSISTENCE,FUSION,EMPLOYEE EXPENSES,100650649,4.62,United Kingdom Atomic Energy Authority,United Kingdom Atomic Energy Authority
06/07/2012,ROAD TRAVEL,FUSION,EMPLOYEE EXPENSES,100650649,24.00,United Kingdom Atomic Energy Authority,United Kingdom Atomic Energy Authority
06/07/2012,TAXIS,FUSION,EMPLOYEE EXPENSES,100650656,29.81,United Kingdom Atomic Energy Authority,United Kingdom Atomic Energy Authority
06/07/2012,SUBSISTENCE,FUSION,EMPLOYEE EXPENSES,100650656,991.54,United Kingdom Atomic Energy Authority,United Kingdom Atomic Energy Authority
06/07/2012,SUBSISTENCE,FUSION,EMPLOYEE EXPENSES,100650656,2.71,United Kingdom Atomic Energy Authority,United Kingdom Atomic Energy Authority
06/07/2012,PROFESSIONAL SUBSCRIPTION,FUSION,EMPLOYEE EXPENSES,100650657,63.00,United Kingdom Atomic Energy Authority,United Kingdom Atomic Energy Authority
28/07/2012,TAXIS,FUSION,EMPLOYEE EXPENSES,100658602,21.00,United Kingdom Atomic Energy Authority,United Kingdom Atomic Energy Authority
28/07/2012,SUBSISTENCE,FUSION,EMPLOYEE EXPENSES,100658602,532.96,United Kingdom Atomic Energy Authority,United Kingdom Atomic Energy Authority
28/07/2012,SUBSISTENCE,FUSION,EMPLOYEE EXPENSES,100658602,12.87,United Kingdom Atomic Energy Authority,United Kingdom Atomic Energy Authority
28/07/2012,ROAD TRAVEL,FUSION,EMPLOYEE EXPENSES,100658602,27.00,United Kingdom Atomic Energy Authority,United Kingdom Atomic Energy Authority
28/07/2012,ROAD TRAVEL,FUSION,EMPLOYEE EXPENSES,100658602,3.99,United Kingdom Atomic Energy Authority,United Kingdom Atomic Energy Authority
28/07/2012,OTHER EMPLOYEE EXPENSES,FUSION,EMPLOYEE EXPENSES,100658602,159.50,United Kingdom Atomic Energy Authority,United Kingdom Atomic Energy Authority
06/07/2012,PUBLICE RELATIONS,FUSION,European Physical Society,1900057177,963.70,United Kingdom Atomic Energy Authority,United Kingdom Atomic Energy Authority
16/07/2012,ROAD TRAVEL,FUSION,Simon Freethy,1900057250,27.40,United Kingdom Atomic Energy Authority,United Kingdom Atomic Energy Authority
06/07/2012,ROAD TRAVEL,FUSION,EMPLOYEE EXPENSES,100650638,33.33,United Kingdom Atomic Energy Authority,United Kingdom Atomic Energy Authority
06/07/2012,ROAD TRAVEL,FUSION,EMPLOYEE EXPENSES,100650639,25.00,United Kingdom Atomic Energy Authority,United Kingdom Atomic Energy Authority
19/07/2012,MILEAGE ALLOWANCE,FUSION,EMPLOYEE EXPENSES,100650856,9.60,United Kingdom Atomic Energy Authority,United Kingdom Atomic Energy Authority
02/07/2012,CONFERENCES ,FUSION,ST EDMUND HALL,5100276689,2757.20,United Kingdom Atomic Energy Authority,United Kingdom Atomic Energy Authority
02/07/2012,CONFERENCES ,FUSION,ST EDMUND HALL,5100276691,6620.00,United Kingdom Atomic Energy Authority,United Kingdom Atomic Energy Authority
09/07/2012,UNIVERSITY PLACEMENT,FUSION,UNIVERSITY OF MANCHESTER,5100276875,2091.00,United Kingdom Atomic Energy Authority,United Kingdom Atomic Energy Authority
09/07/2012,UNIVERSITY PLACEMENT,FUSION,QUEEN MARY UNIVERSITY OF LONDON,5100277167,1645.00,United Kingdom Atomic Energy Authority,United Kingdom Atomic Energy Authority
16/07/2012,PROFESSIONAL SERVICES,FUSION,LOUGHBOROUGH UNIVERSITY,5100277356,2049.00,United Kingdom Atomic Energy Authority,United Kingdom Atomic Energy Authority
16/07/2012,UNIVERSITY PLACEMENT,FUSION,IMPERIAL COLLEGE,5100277406,1646.00,United Kingdom Atomic Energy Authority,United Kingdom Atomic Energy Authority
16/07/2012,UNIVERSITY PLACEMENT,FUSION,IMPERIAL COLLEGE,5100277434,1932.00,United Kingdom Atomic Energy Authority,United Kingdom Atomic Energy Authority
25/07/2012,UNIVERSITY PLACEMENT,FUSION,UNIVERSITY COLLEGE LONDON,5100277576,6000.00,United Kingdom Atomic Energy Authority,United Kingdom Atomic Energy Authority
25/07/2012,UNIVERSITY PLACEMENT,FUSION,MERTON COLLEGE,5100277597,7336.77,United Kingdom Atomic Energy Authority,United Kingdom Atomic Energy Authority
25/07/2012,TRAINING COURSE FEES,FUSION,OXFORD UNIVERSITY,5100277600,3220.87,United Kingdom Atomic Energy Authority,United Kingdom Atomic Energy Authority
05/07/2012,OTHER EXTERNAL COSTS,FUSION,EMPLOYEE EXPENSES,1900057176,250.00,United Kingdom Atomic Energy Authority,United Kingdom Atomic Energy Authority
12/07/2012,OTHER EXTERNAL COSTS,FUSION,EMPLOYEE EXPENSES,1900057221,240.00,United Kingdom Atomic Energy Authority,United Kingdom Atomic Energy Authority
13/07/2012,RAIL TRAVEL,FUSION,JB Ekanayake,1900057242,62.45,United Kingdom Atomic Energy Authority,United Kingdom Atomic Energy Authority
06/07/2012,SUBSISTENCE,FUSION,EMPLOYEE EXPENSES,100650640,106.20,United Kingdom Atomic Energy Authority,United Kingdom Atomic Energy Authority
06/07/2012,SUBSISTENCE,FUSION,EMPLOYEE EXPENSES,100650641,5.00,United Kingdom Atomic Energy Authority,United Kingdom Atomic Energy Authority
06/07/2012,SUBSISTENCE,FUSION,EMPLOYEE EXPENSES,100650641,52.71,United Kingdom Atomic Energy Authority,United Kingdom Atomic Energy Authority
06/07/2012,MILEAGE ALLOWANCE,FUSION,EMPLOYEE EXPENSES,100650641,48.00,United Kingdom Atomic Energy Authority,United Kingdom Atomic Energy Authority
14/07/2012,TAXIS,FUSION,EMPLOYEE EXPENSES,100650729,30.23,United Kingdom Atomic Energy Authority,United Kingdom Atomic Energy Authority
14/07/2012,SUBSISTENCE,FUSION,EMPLOYEE EXPENSES,100650729,191.88,United Kingdom Atomic Energy Authority,United Kingdom Atomic Energy Authority
14/07/2012,SUBSISTENCE,FUSION,EMPLOYEE EXPENSES,100650729,5.62,United Kingdom Atomic Energy Authority,United Kingdom Atomic Energy Authority
14/07/2012,MILEAGE ALLOWANCE,FUSION,EMPLOYEE EXPENSES,100650729,2.40,United Kingdom Atomic Energy Authority,United Kingdom Atomic Energy Authority
14/07/2012,RAIL TRAVEL,FUSION,EMPLOYEE EXPENSES,100650729,52.39,United Kingdom Atomic Energy Authority,United Kingdom Atomic Energy Authority
14/07/2012,ROAD TRAVEL,FUSION,EMPLOYEE EXPENSES,100650729,27.00,United Kingdom Atomic Energy Authority,United Kingdom Atomic Energy Authority
14/07/2012,OTHER EMPLOYEE EXPENSES,FUSION,EMPLOYEE EXPENSES,100650729,3.00,United Kingdom Atomic Energy Authority,United Kingdom Atomic Energy Authority
19/07/2012,SUBSISTENCE,FUSION,EMPLOYEE EXPENSES,100650849,8.33,United Kingdom Atomic Energy Authority,United Kingdom Atomic Energy Authority
19/07/2012,MILEAGE ALLOWANCE,FUSION,EMPLOYEE EXPENSES,100650849,48.00,United Kingdom Atomic Energy Authority,United Kingdom Atomic Energy Authority
26/07/2012,SUBSISTENCE,FUSION,EMPLOYEE EXPENSES,100658565,4.75,United Kingdom Atomic Energy Authority,United Kingdom Atomic Energy Authority
26/07/2012,MILEAGE ALLOWANCE,FUSION,EMPLOYEE EXPENSES,100658565,48.00,United Kingdom Atomic Energy Authority,United Kingdom Atomic Energy Authority
26/07/2012,ROAD TRAVEL,FUSION,EMPLOYEE EXPENSES,100658565,3.00,United Kingdom Atomic Energy Authority,United Kingdom Atomic Energy Authority
26/07/2012,MILEAGE ALLOWANCE,FUSION,EMPLOYEE EXPENSES,100658571,48.80,United Kingdom Atomic Energy Authority,United Kingdom Atomic Energy Authority
26/07/2012,SUBSISTENCE,FUSION,EMPLOYEE EXPENSES,100658578,10.90,United Kingdom Atomic Energy Authority,United Kingdom Atomic Energy Authority
26/07/2012,SUBSISTENCE,FUSION,EMPLOYEE EXPENSES,100658578,70.92,United Kingdom Atomic Energy Authority,United Kingdom Atomic Energy Authority
28/07/2012,SUBSISTENCE,FUSION,EMPLOYEE EXPENSES,100658599,5.00,United Kingdom Atomic Energy Authority,United Kingdom Atomic Energy Authority
28/07/2012,SUBSISTENCE,FUSION,EMPLOYEE EXPENSES,100658599,74.53,United Kingdom Atomic Energy Authority,United Kingdom Atomic Energy Authority
28/07/2012,PROFESSIONAL SUBSCRIPTION,FUSION,EMPLOYEE EXPENSES,100658605,129.00,United Kingdom Atomic Energy Authority,United Kingdom Atomic Energy Authority
06/07/2012,SUBSISTENCE,FUSION,EMPLOYEE EXPENSES,100650646,5.00,United Kingdom Atomic Energy Authority,United Kingdom Atomic Energy Authority
06/07/2012,SUBSISTENCE,FUSION,EMPLOYEE EXPENSES,100650646,70.74,United Kingdom Atomic Energy Authority,United Kingdom Atomic Energy Authority
06/07/2012,MILEAGE ALLOWANCE,FUSION,EMPLOYEE EXPENSES,100650646,103.60,United Kingdom Atomic Energy Authority,United Kingdom Atomic Energy Authority
06/07/2012,SUBSISTENCE,FUSION,EMPLOYEE EXPENSES,100650647,6.79,United Kingdom Atomic Energy Authority,United Kingdom Atomic Energy Authority
06/07/2012,MILEAGE ALLOWANCE,FUSION,EMPLOYEE EXPENSES,100650647,70.40,United Kingdom Atomic Energy Authority,United Kingdom Atomic Energy Authority
19/07/2012,SUBSISTENCE,FUSION,EMPLOYEE EXPENSES,100650850,593.47,United Kingdom Atomic Energy Authority,United Kingdom Atomic Energy Authority
19/07/2012,SUBSISTENCE,FUSION,EMPLOYEE EXPENSES,100650850,14.87,United Kingdom Atomic Energy Authority,United Kingdom Atomic Energy Authority
19/07/2012,MILEAGE ALLOWANCE,FUSION,EMPLOYEE EXPENSES,100650850,78.00,United Kingdom Atomic Energy Authority,United Kingdom Atomic Energy Authority
19/07/2012,ROAD TRAVEL,FUSION,EMPLOYEE EXPENSES,100650850,110.28,United Kingdom Atomic Energy Authority,United Kingdom Atomic Energy Authority
26/07/2012,TAXIS,FUSION,EMPLOYEE EXPENSES,100658569,8.77,United Kingdom Atomic Energy Authority,United Kingdom Atomic Energy Authority
26/07/2012,SUBSISTENCE,FUSION,EMPLOYEE EXPENSES,100658569,155.62,United Kingdom Atomic Energy Authority,United Kingdom Atomic Energy Authority
26/07/2012,SUBSISTENCE,FUSION,EMPLOYEE EXPENSES,100658569,5.42,United Kingdom Atomic Energy Authority,United Kingdom Atomic Energy Authority
26/07/2012,MILEAGE ALLOWANCE,FUSION,EMPLOYEE EXPENSES,100658569,49.20,United Kingdom Atomic Energy Authority,United Kingdom Atomic Energy Authority
26/07/2012,ROAD TRAVEL,FUSION,EMPLOYEE EXPENSES,100658569,47.12,United Kingdom Atomic Energy Authority,United Kingdom Atomic Energy Authority
09/07/2012,MATERIALS & SPARES,FUSION,THORLABS LTD,5100276393,44.74,United Kingdom Atomic Energy Authority,United Kingdom Atomic Energy Authority
09/07/2012,MATERIALS & SPARES,FUSION,THORLABS LTD,5100276784,95.54,United Kingdom Atomic Energy Authority,United Kingdom Atomic Energy Authority
09/07/2012,MATERIALS & SPARES,FUSION,THORLABS LTD,5100277067,193.36,United Kingdom Atomic Energy Authority,United Kingdom Atomic Energy Authority
09/07/2012,CAR HIRE,FUSION,LEASEDRIVE VELO,5100277112,91.17,United Kingdom Atomic Energy Authority,United Kingdom Atomic Energy Authority
23/07/2012,CAR HIRE,FUSION,LEASEDRIVE VELO,5100277643,36.44,United Kingdom Atomic Energy Authority,United Kingdom Atomic Energy Authority
23/07/2012,CAR HIRE,FUSION,LEASEDRIVE VELO,5100277650,59.73,United Kingdom Atomic Energy Authority,United Kingdom Atomic Energy Authority
19/07/2012,CONFERENCES/MEETINGS,FUSION,SCK-CEN,1900057268,1703.70,United Kingdom Atomic Energy Authority,United Kingdom Atomic Energy Authority
25/07/2012,CONFERENCES/MEETINGS,FUSION,SCK-CEN,1900057285,527.43,United Kingdom Atomic Energy Authority,United Kingdom Atomic Energy Authority
14/07/2012,TAXIS,FUSION,EMPLOYEE EXPENSES,100650731,40.17,United Kingdom Atomic Energy Authority,United Kingdom Atomic Energy Authority
14/07/2012,SUBSISTENCE,FUSION,EMPLOYEE EXPENSES,100650731,390.15,United Kingdom Atomic Energy Authority,United Kingdom Atomic Energy Authority
14/07/2012,ROAD TRAVEL,FUSION,EMPLOYEE EXPENSES,100650731,39.80,United Kingdom Atomic Energy Authority,United Kingdom Atomic Energy Authority
14/07/2012,ROAD TRAVEL,FUSION,EMPLOYEE EXPENSES,100650731,15.74,United Kingdom Atomic Energy Authority,United Kingdom Atomic Energy Authority
19/07/2012,TAXIS,FUSION,EMPLOYEE EXPENSES,100650858,60.19,United Kingdom Atomic Energy Authority,United Kingdom Atomic Energy Authority
19/07/2012,SUBSISTENCE,FUSION,EMPLOYEE EXPENSES,100650858,244.88,United Kingdom Atomic Energy Authority,United Kingdom Atomic Energy Authority
19/07/2012,SUBSISTENCE,FUSION,EMPLOYEE EXPENSES,100650858,5.03,United Kingdom Atomic Energy Authority,United Kingdom Atomic Energy Authority
19/07/2012,OTHER EMPLOYEE EXPENSES,FUSION,EMPLOYEE EXPENSES,100650858,3.00,United Kingdom Atomic Energy Authority,United Kingdom Atomic Energy Authority
26/07/2012,SUBSISTENCE,FUSION,EMPLOYEE EXPENSES,100658582,3.85,United Kingdom Atomic Energy Authority,United Kingdom Atomic Energy Authority
02/07/2012,ADVERTISING STAFF,FUSION,TMP (UK) LTD,5100275990,350.00,United Kingdom Atomic Energy Authority,United Kingdom Atomic Energy Authority
16/07/2012,SUBSISTENCE,FUSION,Young-Chul Kim,1900057245,949.09,United Kingdom Atomic Energy Authority,United Kingdom Atomic Energy Authority
12/07/2012,TAXIS,FUSION,EMPLOYEE EXPENSES,100650695,43.58,United Kingdom Atomic Energy Authority,United Kingdom Atomic Energy Authority
12/07/2012,SUBSISTENCE,FUSION,EMPLOYEE EXPENSES,100650695,546.17,United Kingdom Atomic Energy Authority,United Kingdom Atomic Energy Authority
12/07/2012,SUBSISTENCE,FUSION,EMPLOYEE EXPENSES,100650695,3.16,United Kingdom Atomic Energy Authority,United Kingdom Atomic Energy Authority
12/07/2012,ROAD TRAVEL,FUSION,EMPLOYEE EXPENSES,100650695,10.27,United Kingdom Atomic Energy Authority,United Kingdom Atomic Energy Authority
12/07/2012,OTHER EMPLOYEE EXPENSES,FUSION,EMPLOYEE EXPENSES,100650695,11.30,United Kingdom Atomic Energy Authority,United Kingdom Atomic Energy Authority
14/07/2012,SUBSISTENCE,FUSION,EMPLOYEE EXPENSES,100650732,522.01,United Kingdom Atomic Energy Authority,United Kingdom Atomic Energy Authority
14/07/2012,SUBSISTENCE,FUSION,EMPLOYEE EXPENSES,100650732,10.00,United Kingdom Atomic Energy Authority,United Kingdom Atomic Energy Authority
14/07/2012,ROAD TRAVEL,FUSION,EMPLOYEE EXPENSES,100650732,18.14,United Kingdom Atomic Energy Authority,United Kingdom Atomic Energy Authority
19/07/2012,TAXIS,FUSION,EMPLOYEE EXPENSES,100650855,43.05,United Kingdom Atomic Energy Authority,United Kingdom Atomic Energy Authority
19/07/2012,SUBSISTENCE,FUSION,EMPLOYEE EXPENSES,100650855,427.77,United Kingdom Atomic Energy Authority,United Kingdom Atomic Energy Authority
19/07/2012,SUBSISTENCE,FUSION,EMPLOYEE EXPENSES,100650855,6.00,United Kingdom Atomic Energy Authority,United Kingdom Atomic Energy Authority
19/07/2012,RAIL TRAVEL,FUSION,EMPLOYEE EXPENSES,100650855,25.01,United Kingdom Atomic Energy Authority,United Kingdom Atomic Energy Authority
26/07/2012,SUBSISTENCE,FUSION,EMPLOYEE EXPENSES,100658570,876.72,United Kingdom Atomic Energy Authority,United Kingdom Atomic Energy Authority
26/07/2012,RAIL TRAVEL,FUSION,EMPLOYEE EXPENSES,100658570,32.80,United Kingdom Atomic Energy Authority,United Kingdom Atomic Energy Authority
26/07/2012,ROAD TRAVEL,FUSION,EMPLOYEE EXPENSES,100658570,24.00,United Kingdom Atomic Energy Authority,United Kingdom Atomic Energy Authority
26/07/2012,SUBSISTENCE,FUSION,EMPLOYEE EXPENSES,100658572,853.77,United Kingdom Atomic Energy Authority,United Kingdom Atomic Energy Authority
26/07/2012,SUBSISTENCE,FUSION,EMPLOYEE EXPENSES,100658572,9.33,United Kingdom Atomic Energy Authority,United Kingdom Atomic Energy Authority
26/07/2012,RAIL TRAVEL,FUSION,EMPLOYEE EXPENSES,100658572,49.97,United Kingdom Atomic Energy Authority,United Kingdom Atomic Energy Authority
26/07/2012,SUBSISTENCE,FUSION,EMPLOYEE EXPENSES,100658573,"1,026.07",United Kingdom Atomic Energy Authority,United Kingdom Atomic Energy Authority
26/07/2012,RAIL TRAVEL,FUSION,EMPLOYEE EXPENSES,100658573,48.09,United Kingdom Atomic Energy Authority,United Kingdom Atomic Energy Authority
26/07/2012,ROAD TRAVEL,FUSION,EMPLOYEE EXPENSES,100658573,20.00,United Kingdom Atomic Energy Authority,United Kingdom Atomic Energy Authority
27/07/2012,AIR TRAVEL,FUSION,EMPLOYEE EXPENSES,100658592,788.69,United Kingdom Atomic Energy Authority,United Kingdom Atomic Energy Authority
09/07/2012,MATERIALS & SPARES,FUSION,THERMAL EXCHANGE LTD,5100276631,520.00,United Kingdom Atomic Energy Authority,United Kingdom Atomic Energy Authority
02/07/2012,PLANT & EQUIPMENT,FUSION,EDMUNDSON ELECTRICALS LTD,5100276633,8.73,United Kingdom Atomic Energy Authority,United Kingdom Atomic Energy Authority
02/07/2012,MATERIALS & SPARES,FUSION,FARNELL ELECTRONIC,5100276673,52.65,United Kingdom Atomic Energy Authority,United Kingdom Atomic Energy Authority
02/07/2012,SOFTWARE,FUSION,THE MATHWORKS,5100276696,180.00,United Kingdom Atomic Energy Authority,United Kingdom Atomic Energy Authority
02/07/2012,MATERIALS & SPARES,FUSION,RS COMPONENTS LTD,5100276720,105.31,United Kingdom Atomic Energy Authority,United Kingdom Atomic Energy Authority
02/07/2012,PROFESSIONAL SERVICES,FUSION,SCHNEIDER ELECTRIC,5100276749,821.00,United Kingdom Atomic Energy Authority,United Kingdom Atomic Energy Authority
09/07/2012,MATERIALS & SPARES,FUSION,FARNELL ELECTRONIC,5100276944,31.80,United Kingdom Atomic Energy Authority,United Kingdom Atomic Energy Authority
09/07/2012,MATERIALS & SPARES,FUSION,FARNELL ELECTRONIC,5100276997,648.31,United Kingdom Atomic Energy Authority,United Kingdom Atomic Energy Authority
09/07/2012,MATERIALS & SPARES,FUSION,FARNELL ELECTRONIC,5100276998,105.54,United Kingdom Atomic Energy Authority,United Kingdom Atomic Energy Authority
18/07/2012,TREATED WATER,FUSION,WATERWISE TECHNOLOGY LTD,5100277082,2215.00,United Kingdom Atomic Energy Authority,United Kingdom Atomic Energy Authority
09/07/2012,TRAINING COSTS,FUSION,HEALTH PROTECTION AGENCY CENTRE,5100277120,2050.00,United Kingdom Atomic Energy Authority,United Kingdom Atomic Energy Authority
16/07/2012,MATERIALS & SPARES,FUSION,SCHROFF UK LTD,5100277209,1590.80,United Kingdom Atomic Energy Authority,United Kingdom Atomic Energy Authority
16/07/2012,UNIVERSITY PLACEMENT,FUSION,UNIVERSITY OF YORK,5100277402,15000.00,United Kingdom Atomic Energy Authority,United Kingdom Atomic Energy Authority
19/07/2012,EXTRA MURAL RESEARCH,FUSION,ALEXEI DNESTROVSKIJ,5100277419,2000.00,United Kingdom Atomic Energy Authority,United Kingdom Atomic Energy Authority
23/07/2012,BUILDING REPAIRS,FUSION,KNOWLES & SONS (OXFORD) LTD,5100277537,39.10,United Kingdom Atomic Energy Authority,United Kingdom Atomic Energy Authority
23/07/2012,MATERIALS & SPARES,FUSION,FARNELL ELECTRONIC,5100277619,105.25,United Kingdom Atomic Energy Authority,United Kingdom Atomic Energy Authority
23/07/2012,MATERIALS & SPARES,FUSION,FARNELL ELECTRONIC,5100277620,111.79,United Kingdom Atomic Energy Authority,United Kingdom Atomic Energy Authority
23/07/2012,MATERIALS & SPARES,FUSION,FARNELL ELECTRONIC,5100277621,84.25,United Kingdom Atomic Energy Authority,United Kingdom Atomic Energy Authority
25/07/2012,IT EQUIPMENT NON CAPITAL,FUSION,BOSTON LIMITED,5100277675,2636.95,United Kingdom Atomic Energy Authority,United Kingdom Atomic Energy Authority
12/07/2012,SUBSISTENCE,FUSION,Yurij Dnestrovskij,1900057224,650.00,United Kingdom Atomic Energy Authority,United Kingdom Atomic Energy Authority
12/07/2012,SUBSISTENCE,FUSION,Alexandr Danilov,1900057225,650.00,United Kingdom Atomic Energy Authority,United Kingdom Atomic Energy Authority
16/07/2012,MATERIALS & SPARES,FUSION,Dexter Magnetic Technologies,1900057247,1105.32,United Kingdom Atomic Energy Authority,United Kingdom Atomic Energy Authority
17/07/2012,MATERIALS & SPARES,FUSION,Dexter Magnetic Technologies,1900057252,34.44,United Kingdom Atomic Energy Authority,United Kingdom Atomic Energy Authority
17/07/2012,PROFESSIONAL SUBSCRIPTION,FUSION,F Wagner,1900057254,436.68,United Kingdom Atomic Energy Authority,United Kingdom Atomic Energy Authority
17/07/2012,TRAVELLING EXPENSES,FUSION,F Wagner,1900057255,65.65,United Kingdom Atomic Energy Authority,United Kingdom Atomic Energy Authority
24/07/2012,TAXIS,FUSION,Martin O'Mullane,1900057280,384.12,United Kingdom Atomic Energy Authority,United Kingdom Atomic Energy Authority
14/07/2012,SUBSISTENCE,FUSION,EMPLOYEE EXPENSES,100650734,593.06,United Kingdom Atomic Energy Authority,United Kingdom Atomic Energy Authority
14/07/2012,ROAD TRAVEL,FUSION,EMPLOYEE EXPENSES,100650734,10.27,United Kingdom Atomic Energy Authority,United Kingdom Atomic Energy Authority
14/07/2012,OTHER EMPLOYEE EXPENSES,FUSION,EMPLOYEE EXPENSES,100650734,3.00,United Kingdom Atomic Energy Authority,United Kingdom Atomic Energy Authority
02/07/2012,MATERIALS & SPARES,FUSION,FARNELL ELECTRONIC,5100276554,139.72,United Kingdom Atomic Energy Authority,United Kingdom Atomic Energy Authority
02/07/2012,MATERIALS & SPARES,FUSION,FARNELL ELECTRONIC,5100276559,24.55,United Kingdom Atomic Energy Authority,United Kingdom Atomic Energy Authority
02/07/2012,IT EQUIPMENT NON CAPITAL,FUSION,SCAN COMPUTERS INTERNATIONAL LTD,5100276621,81.74,United Kingdom Atomic Energy Authority,United Kingdom Atomic Energy Authority
02/07/2012,MATERIALS & SPARES,FUSION,FARNELL ELECTRONIC,5100276660,16.32,United Kingdom Atomic Energy Authority,United Kingdom Atomic Energy Authority
02/07/2012,MATERIALS & SPARES,FUSION,RS COMPONENTS LTD,5100276709,113.34,United Kingdom Atomic Energy Authority,United Kingdom Atomic Energy Authority
02/07/2012,PROFESSIONAL SERVICES,FUSION,SWAGELOK LONDON,5100276798,339.42,United Kingdom Atomic Energy Authority,United Kingdom Atomic Energy Authority
02/07/2012,MATERIALS & SPARES,FUSION,RS COMPONENTS LTD,5100276803,16.69,United Kingdom Atomic Energy Authority,United Kingdom Atomic Energy Authority
04/07/2012,MATERIALS & SPARES,FUSION,RS COMPONENTS LTD,5100276814,682.90,United Kingdom Atomic Energy Authority,United Kingdom Atomic Energy Authority
04/07/2012,MATERIALS & SPARES,FUSION,OERLIKON LEYBOLD VACUUM UK LTD,5100276836,1745.86,United Kingdom Atomic Energy Authority,United Kingdom Atomic Energy Authority
09/07/2012,MATERIALS & SPARES,FUSION,FARNELL ELECTRONIC,5100276943,59.78,United Kingdom Atomic Energy Authority,United Kingdom Atomic Energy Authority
09/07/2012,MATERIALS & SPARES,FUSION,FARNELL ELECTRONIC,5100276985,162.64,United Kingdom Atomic Energy Authority,United Kingdom Atomic Energy Authority
09/07/2012,MATERIALS & SPARES,FUSION,RS COMPONENTS LTD,5100277065,73.63,United Kingdom Atomic Energy Authority,United Kingdom Atomic Energy Authority
09/07/2012,MATERIALS & SPARES,FUSION,RS COMPONENTS LTD,5100277076,99.40,United Kingdom Atomic Energy Authority,United Kingdom Atomic Energy Authority
09/07/2012,BOOKS & PUBLICATIONS,FUSION,BLACKWELL UK LTD,5100277100,61.79,United Kingdom Atomic Energy Authority,United Kingdom Atomic Energy Authority
09/07/2012,MATERIALS & SPARES,FUSION,RS COMPONENTS LTD,5100277141,24.37,United Kingdom Atomic Energy Authority,United Kingdom Atomic Energy Authority
09/07/2012,MATERIALS & SPARES,FUSION,RS COMPONENTS LTD,5100277158,182.85,United Kingdom Atomic Energy Authority,United Kingdom Atomic Energy Authority
09/07/2012,MATERIALS & SPARES,FUSION,RS COMPONENTS LTD,5100277162,339.32,United Kingdom Atomic Energy Authority,United Kingdom Atomic Energy Authority
09/07/2012,MATERIALS & SPARES,FUSION,RS COMPONENTS LTD,5100277182,17.50,United Kingdom Atomic Energy Authority,United Kingdom Atomic Energy Authority
16/07/2012,GASES,FUSION,BOC LTD,5100277229,140.24,United Kingdom Atomic Energy Authority,United Kingdom Atomic Energy Authority
16/07/2012,MATERIALS & SPARES,FUSION,TVH,5100277287,213.50,United Kingdom Atomic Energy Authority,United Kingdom Atomic Energy Authority
16/07/2012,MATERIALS & SPARES,FUSION,RS COMPONENTS LTD,5100277337,152.30,United Kingdom Atomic Energy Authority,United Kingdom Atomic Energy Authority
16/07/2012,MATERIALS & SPARES,FUSION,FARNELL ELECTRONIC,5100277371,57.06,United Kingdom Atomic Energy Authority,United Kingdom Atomic Energy Authority
16/07/2012,GASES,FUSION,BOC LTD,5100277373,243.05,United Kingdom Atomic Energy Authority,United Kingdom Atomic Energy Authority
16/07/2012,PERSONAL PROTECTIVE EQUIPMENT,FUSION,BUCK & HICKMAN LTD,5100277387,52.00,United Kingdom Atomic Energy Authority,United Kingdom Atomic Energy Authority
25/07/2012,MATERIALS & SPARES,FUSION,FARNELL ELECTRONIC,5100277453,25.96,United Kingdom Atomic Energy Authority,United Kingdom Atomic Energy Authority
23/07/2012,MATERIALS & SPARES,FUSION,FARNELL ELECTRONIC,5100277458,224.70,United Kingdom Atomic Energy Authority,United Kingdom Atomic Energy Authority
23/07/2012,BUILDING REPAIRS,FUSION,KNOWLES & SONS (OXFORD) LTD,5100277567,102.92,United Kingdom Atomic Energy Authority,United Kingdom Atomic Energy Authority
23/07/2012,GASES,FUSION,AIR PRODUCTS PLC,5100277655,10.20,United Kingdom Atomic Energy Authority,United Kingdom Atomic Energy Authority
23/07/2012,IT EQUIPMENT NON CAPITAL,FUSION,SCAN COMPUTERS INTERNATIONAL LTD,5100277656,250.67,United Kingdom Atomic Energy Authority,United Kingdom Atomic Energy Authority
23/07/2012,PROFESSIONAL SERVICES,FUSION,MKS INSTRUMENT UK LIMITED,5100277670,425.00,United Kingdom Atomic Energy Authority,United Kingdom Atomic Energy Authority
23/07/2012,MATERIALS & SPARES,FUSION,RS COMPONENTS LTD,5100277686,81.82,United Kingdom Atomic Energy Authority,United Kingdom Atomic Energy Authority
23/07/2012,MATERIALS & SPARES,FUSION,RS COMPONENTS LTD,5100277703,105.33,United Kingdom Atomic Energy Authority,United Kingdom Atomic Energy Authority
23/07/2012,MATERIALS & SPARES,FUSION,CPC PLC,5100277720,85.93,United Kingdom Atomic Energy Authority,United Kingdom Atomic Energy Authority
12/07/2012,TAXIS,FUSION,EMPLOYEE EXPENSES,100650692,12.58,United Kingdom Atomic Energy Authority,United Kingdom Atomic Energy Authority
12/07/2012,SUBSISTENCE,FUSION,EMPLOYEE EXPENSES,100650692,42.99,United Kingdom Atomic Energy Authority,United Kingdom Atomic Energy Authority
12/07/2012,ROAD TRAVEL,FUSION,EMPLOYEE EXPENSES,100650692,1.17,United Kingdom Atomic Energy Authority,United Kingdom Atomic Energy Authority
12/07/2012,OTHER EMPLOYEE EXPENSES,FUSION,EMPLOYEE EXPENSES,100650692,4.26,United Kingdom Atomic Energy Authority,United Kingdom Atomic Energy Authority
25/07/2012,MATERIALS & SPARES,FUSION,DARTPOINT LIMITED,5100277063,7144.00,United Kingdom Atomic Energy Authority,United Kingdom Atomic Energy Authority
23/07/2012,MATERIALS & SPARES,FUSION,RS COMPONENTS LTD,5100277634,729.51,United Kingdom Atomic Energy Authority,United Kingdom Atomic Energy Authority
18/07/2012,UNIVERSITY PLACEMENT,FUSION,WARWICK UNIVERSITY,5100277400,1510.21,United Kingdom Atomic Energy Authority,United Kingdom Atomic Energy Authority
06/07/2012,TAXIS,FUSION,EMPLOYEE EXPENSES,100650649,93.13,United Kingdom Atomic Energy Authority,United Kingdom Atomic Energy Authority
06/07/2012,SUBSISTENCE,FUSION,EMPLOYEE EXPENSES,100650649,925.96,United Kingdom Atomic Energy Authority,United Kingdom Atomic Energy Authority
12/07/2012,STATIONERY,FUSION,EMPLOYEE EXPENSES,100650693,4.11,United Kingdom Atomic Energy Authority,United Kingdom Atomic Energy Authority
12/07/2012,TAXIS,FUSION,EMPLOYEE EXPENSES,100650693,68.46,United Kingdom Atomic Energy Authority,United Kingdom Atomic Energy Authority
12/07/2012,SUBSISTENCE,FUSION,EMPLOYEE EXPENSES,100650693,818.79,United Kingdom Atomic Energy Authority,United Kingdom Atomic Energy Authority
12/07/2012,ROAD TRAVEL,FUSION,EMPLOYEE EXPENSES,100650693,27.00,United Kingdom Atomic Energy Authority,United Kingdom Atomic Energy Authority
12/07/2012,ROAD TRAVEL,FUSION,EMPLOYEE EXPENSES,100650693,9.96,United Kingdom Atomic Energy Authority,United Kingdom Atomic Energy Authority
12/07/2012,OTHER EMPLOYEE EXPENSES,FUSION,EMPLOYEE EXPENSES,100650693,14.78,United Kingdom Atomic Energy Authority,United Kingdom Atomic Energy Authority
19/07/2012,TAXIS,FUSION,EMPLOYEE EXPENSES,100650854,14.50,United Kingdom Atomic Energy Authority,United Kingdom Atomic Energy Authority
19/07/2012,SUBSISTENCE,FUSION,EMPLOYEE EXPENSES,100650854,933.42,United Kingdom Atomic Energy Authority,United Kingdom Atomic Energy Authority
19/07/2012,SUBSISTENCE,FUSION,EMPLOYEE EXPENSES,100650854,6.37,United Kingdom Atomic Energy Authority,United Kingdom Atomic Energy Authority
26/07/2012,TAXIS,FUSION,EMPLOYEE EXPENSES,100658581,29.47,United Kingdom Atomic Energy Authority,United Kingdom Atomic Energy Authority
26/07/2012,SUBSISTENCE,FUSION,EMPLOYEE EXPENSES,100658581,"1,322.92",United Kingdom Atomic Energy Authority,United Kingdom Atomic Energy Authority
26/07/2012,ROAD TRAVEL,FUSION,EMPLOYEE EXPENSES,100658581,27.00,United Kingdom Atomic Energy Authority,United Kingdom Atomic Energy Authority
28/07/2012,SUBSISTENCE,FUSION,EMPLOYEE EXPENSES,100658604,246.38,United Kingdom Atomic Energy Authority,United Kingdom Atomic Energy Authority
28/07/2012,SUBSISTENCE,FUSION,EMPLOYEE EXPENSES,100658604,4.53,United Kingdom Atomic Energy Authority,United Kingdom Atomic Energy Authority
28/07/2012,ROAD TRAVEL,FUSION,EMPLOYEE EXPENSES,100658604,32.60,United Kingdom Atomic Energy Authority,United Kingdom Atomic Energy Authority
28/07/2012,ROAD TRAVEL,FUSION,EMPLOYEE EXPENSES,100658604,8.12,United Kingdom Atomic Energy Authority,United Kingdom Atomic Energy Authority
28/07/2012,OTHER EMPLOYEE EXPENSES,FUSION,EMPLOYEE EXPENSES,100658604,4.76,United Kingdom Atomic Energy Authority,United Kingdom Atomic Energy Authority
02/07/2012,SOFTWARE,FUSION,APPLIED CAE,5100276592,1971.00,United Kingdom Atomic Energy Authority,United Kingdom Atomic Energy Authority
02/07/2012,CAR HIRE,FUSION,LEASEDRIVE VELO,5100276680,36.44,United Kingdom Atomic Energy Authority,United Kingdom Atomic Energy Authority
02/07/2012,REPAIRS & MAINTENANCE,FUSION,ADVATEK,5100276848,-425.00,United Kingdom Atomic Energy Authority,United Kingdom Atomic Energy Authority
02/07/2012,REPAIRS & MAINTENANCE,FUSION,ADVATEK,5100276850,425.00,United Kingdom Atomic Energy Authority,United Kingdom Atomic Energy Authority
16/07/2012,PUBLICATIONS,FUSION,IOP PUBLISHING LTD,5100277290,750.00,United Kingdom Atomic Energy Authority,United Kingdom Atomic Energy Authority
16/07/2012,PUBLICATIONS,FUSION,IOP PUBLISHING LTD,5100277291,1125.00,United Kingdom Atomic Energy Authority,United Kingdom Atomic Energy Authority
04/07/2012,IT EQUIPMENT: NON CAPITAL,FUSION,Reliant Technology LLC,1900057170,1961.63,United Kingdom Atomic Energy Authority,United Kingdom Atomic Energy Authority
06/07/2012,TAXIS,FUSION,EMPLOYEE EXPENSES,100650661,20.00,United Kingdom Atomic Energy Authority,United Kingdom Atomic Energy Authority
06/07/2012,RAIL TRAVEL,FUSION,EMPLOYEE EXPENSES,100650661,142.00,United Kingdom Atomic Energy Authority,United Kingdom Atomic Energy Authority
12/07/2012,TAXIS,FUSION,EMPLOYEE EXPENSES,100650714,64.00,United Kingdom Atomic Energy Authority,United Kingdom Atomic Energy Authority
12/07/2012,SUBSISTENCE,FUSION,EMPLOYEE EXPENSES,100650714,350.16,United Kingdom Atomic Energy Authority,United Kingdom Atomic Energy Authority
12/07/2012,AIR TRAVEL,FUSION,EMPLOYEE EXPENSES,100650714,228.37,United Kingdom Atomic Energy Authority,United Kingdom Atomic Energy Authority
12/07/2012,RAIL TRAVEL,FUSION,EMPLOYEE EXPENSES,100650714,27.49,United Kingdom Atomic Energy Authority,United Kingdom Atomic Energy Authority
12/07/2012,ROAD TRAVEL,FUSION,EMPLOYEE EXPENSES,100650714,16.25,United Kingdom Atomic Energy Authority,United Kingdom Atomic Energy Authority
14/07/2012,SUBSISTENCE,FUSION,EMPLOYEE EXPENSES,100650737,60.02,United Kingdom Atomic Energy Authority,United Kingdom Atomic Energy Authority
14/07/2012,SUBSISTENCE,FUSION,EMPLOYEE EXPENSES,100650738,5.00,United Kingdom Atomic Energy Authority,United Kingdom Atomic Energy Authority
14/07/2012,TAXIS,FUSION,EMPLOYEE EXPENSES,100650739,10.01,United Kingdom Atomic Energy Authority,United Kingdom Atomic Energy Authority
14/07/2012,TAXIS,FUSION,EMPLOYEE EXPENSES,100650740,24.89,United Kingdom Atomic Energy Authority,United Kingdom Atomic Energy Authority
14/07/2012,RAIL TRAVEL,FUSION,EMPLOYEE EXPENSES,100650740,18.00,United Kingdom Atomic Energy Authority,United Kingdom Atomic Energy Authority
14/07/2012,TAXIS,FUSION,EMPLOYEE EXPENSES,100650741,23.97,United Kingdom Atomic Energy Authority,United Kingdom Atomic Energy Authority
14/07/2012,SUBSISTENCE,FUSION,EMPLOYEE EXPENSES,100650741,179.78,United Kingdom Atomic Energy Authority,United Kingdom Atomic Energy Authority
14/07/2012,RAIL TRAVEL,FUSION,EMPLOYEE EXPENSES,100650741,4.00,United Kingdom Atomic Energy Authority,United Kingdom Atomic Energy Authority
14/07/2012,RAIL TRAVEL,FUSION,EMPLOYEE EXPENSES,100650741,1.60,United Kingdom Atomic Energy Authority,United Kingdom Atomic Energy Authority
14/07/2012,SUBSISTENCE,FUSION,EMPLOYEE EXPENSES,100650742,594.62,United Kingdom Atomic Energy Authority,United Kingdom Atomic Energy Authority
14/07/2012,RAIL TRAVEL,FUSION,EMPLOYEE EXPENSES,100650742,44.88,United Kingdom Atomic Energy Authority,United Kingdom Atomic Energy Authority
19/07/2012,PROFESSIONAL SUBSCRIPTION,FUSION,EMPLOYEE EXPENSES,100650857,90.88,United Kingdom Atomic Energy Authority,United Kingdom Atomic Energy Authority
12/07/2012,TAXIS,FUSION,EMPLOYEE EXPENSES,100650707,3.64,United Kingdom Atomic Energy Authority,United Kingdom Atomic Energy Authority
12/07/2012,SUBSISTENCE,FUSION,EMPLOYEE EXPENSES,100650707,888.62,United Kingdom Atomic Energy Authority,United Kingdom Atomic Energy Authority
12/07/2012,ROAD TRAVEL,FUSION,EMPLOYEE EXPENSES,100650707,27.00,United Kingdom Atomic Energy Authority,United Kingdom Atomic Energy Authority
12/07/2012,ROAD TRAVEL,FUSION,EMPLOYEE EXPENSES,100650707,4.60,United Kingdom Atomic Energy Authority,United Kingdom Atomic Energy Authority
09/07/2012,STUDENT SPONSORSHIPS,FUSION,Marie Allouard,1900057188,600.00,United Kingdom Atomic Energy Authority,United Kingdom Atomic Energy Authority
09/07/2012,STUDENT SPONSORSHIPS,FUSION,David Freynet,1900057189,600.00,United Kingdom Atomic Energy Authority,United Kingdom Atomic Energy Authority
09/07/2012,STUDENT SPONSORSHIPS,FUSION,Marion Fouchere,1900057190,600.00,United Kingdom Atomic Energy Authority,United Kingdom Atomic Energy Authority
16/07/2012,PROFESSIONAL SERVICES,FUSION,DAVID YAPP,5100277234,15000.00,United Kingdom Atomic Energy Authority,United Kingdom Atomic Energy Authority
25/07/2012,CONSUMABLES,FUSION,CARILLON INDUSTRIAL SERVICES LTD,5100273957,34.16,United Kingdom Atomic Energy Authority,United Kingdom Atomic Energy Authority
25/07/2012,CONSUMABLES,FUSION,CARILLON INDUSTRIAL SERVICES LTD,5100275385,38.59,United Kingdom Atomic Energy Authority,United Kingdom Atomic Energy Authority
02/07/2012,PERSONAL PROTECTIVE EQUIPMENT,FUSION,ARCO LTD,5100276024,36.29,United Kingdom Atomic Energy Authority,United Kingdom Atomic Energy Authority
02/07/2012,PERSONAL PROTECTIVE EQUIPMENT,FUSION,ARCO LTD,5100276524,46.66,United Kingdom Atomic Energy Authority,United Kingdom Atomic Energy Authority
02/07/2012,MATERIALS & SPARES,FUSION,FARNELL ELECTRONIC,5100276557,9.97,United Kingdom Atomic Energy Authority,United Kingdom Atomic Energy Authority
02/07/2012,MATERIALS & SPARES,FUSION,FARNELL ELECTRONIC,5100276558,10.88,United Kingdom Atomic Energy Authority,United Kingdom Atomic Energy Authority
04/07/2012,MATERIALS & SPARES,FUSION,NEWCASTLE OPTICAL ENGINEERING LTD,5100276567,378.00,United Kingdom Atomic Energy Authority,United Kingdom Atomic Energy Authority
18/07/2012,MATERIALS & SPARES,FUSION,VACOM VAKUUM KOMPONENTEN,5100276590,323.77,United Kingdom Atomic Energy Authority,United Kingdom Atomic Energy Authority
02/07/2012,PLANT & EQUIPMENT,FUSION,SPANOPTIC LTD,5100276611,420.00,United Kingdom Atomic Energy Authority,United Kingdom Atomic Energy Authority
02/07/2012,MATERIALS & SPARES,FUSION,DURBIN METAL INDUSTRIES LTD,5100276612,1402.50,United Kingdom Atomic Energy Authority,United Kingdom Atomic Energy Authority
02/07/2012,CONSUMABLES,FUSION,BOXER MACHINE TOOLS SERVICES,5100276641,4760.00,United Kingdom Atomic Energy Authority,United Kingdom Atomic Energy Authority
02/07/2012,HIRED STAFF,FUSION,CHAMPION EMPLOYMENT LTD,5100276642,853.20,United Kingdom Atomic Energy Authority,United Kingdom Atomic Energy Authority
02/07/2012,HIRED STAFF,FUSION,CHAMPION EMPLOYMENT LTD,5100276643,972.82,United Kingdom Atomic Energy Authority,United Kingdom Atomic Energy Authority
02/07/2012,HIRED STAFF,FUSION,CHAMPION EMPLOYMENT LTD,5100276644,774.75,United Kingdom Atomic Energy Authority,United Kingdom Atomic Energy Authority
02/07/2012,HIRED STAFF,FUSION,CHAMPION EMPLOYMENT LTD,5100276645,619.31,United Kingdom Atomic Energy Authority,United Kingdom Atomic Energy Authority
02/07/2012,HIRED STAFF,FUSION,CHAMPION EMPLOYMENT LTD,5100276646,580.56,United Kingdom Atomic Energy Authority,United Kingdom Atomic Energy Authority
02/07/2012,HIRED STAFF,FUSION,CHAMPION EMPLOYMENT LTD,5100276647,688.13,United Kingdom Atomic Energy Authority,United Kingdom Atomic Energy Authority
04/07/2012,MATERIALS & SPARES,FUSION,PI-KEM LTD,5100276684,503.40,United Kingdom Atomic Energy Authority,United Kingdom Atomic Energy Authority
04/07/2012,MATERIALS & SPARES,FUSION,NEWCASTLE OPTICAL ENGINEERING LTD,5100276685,378.00,United Kingdom Atomic Energy Authority,United Kingdom Atomic Energy Authority
02/07/2012,MATERIALS & SPARES,FUSION,KURT J LESKER,5100276695,306.00,United Kingdom Atomic Energy Authority,United Kingdom Atomic Energy Authority
02/07/2012,MATERIALS & SPARES,FUSION,KURT J LESKER,5100276698,87.10,United Kingdom Atomic Energy Authority,United Kingdom Atomic Energy Authority
09/07/2012,PERSONAL PROTECTIVE EQUIPMENT,FUSION,ARCO LTD,5100276705,46.66,United Kingdom Atomic Energy Authority,United Kingdom Atomic Energy Authority
04/07/2012,PLANT SPARES,FUSION,TESTBOURNE LTD,5100276742,184.00,United Kingdom Atomic Energy Authority,United Kingdom Atomic Energy Authority
02/07/2012,PERSONAL PROTECTIVE EQUIPMENT,FUSION,ARCO LTD,5100276751,-36.29,United Kingdom Atomic Energy Authority,United Kingdom Atomic Energy Authority
09/07/2012,PERSONAL PROTECTIVE EQUIPMENT,FUSION,ARCO LTD,5100276757,30.82,United Kingdom Atomic Energy Authority,United Kingdom Atomic Energy Authority
04/07/2012,MATERIALS & SPARES,FUSION,KEMET INTERNATIONAL LTD,5100276766,41.00,United Kingdom Atomic Energy Authority,United Kingdom Atomic Energy Authority
04/07/2012,PLANT & EQUIPMENT,FUSION,FISHER SCIENTIFIC UK LTD,5100276767,33.67,United Kingdom Atomic Energy Authority,United Kingdom Atomic Energy Authority
04/07/2012,PLANT & EQUIPMENT,FUSION,PHS GROUP PLC,5100276772,31.06,United Kingdom Atomic Energy Authority,United Kingdom Atomic Energy Authority
04/07/2012,MATERIALS & SPARES,FUSION,METSPIN LTD,5100276780,2660.50,United Kingdom Atomic Energy Authority,United Kingdom Atomic Energy Authority
04/07/2012,MATERIALS & SPARES,FUSION,METSPIN LTD,5100276781,196.00,United Kingdom Atomic Energy Authority,United Kingdom Atomic Energy Authority
02/07/2012,CONSUMABLES,FUSION,CARILLON INDUSTRIAL SERVICES LTD,5100276789,41.35,United Kingdom Atomic Energy Authority,United Kingdom Atomic Energy Authority
04/07/2012,MATERIALS & SPARES,FUSION,PHILIP CORNES & COMPANY LTD,5100276820,1065.00,United Kingdom Atomic Energy Authority,United Kingdom Atomic Energy Authority
04/07/2012,MATERIALS & SPARES,FUSION,NEWCASTLE OPTICAL ENGINEERING LTD,5100276821,1196.10,United Kingdom Atomic Energy Authority,United Kingdom Atomic Energy Authority
09/07/2012,MATERIALS & SPARES,FUSION,JAC TOOLS LTD,5100276873,46.00,United Kingdom Atomic Energy Authority,United Kingdom Atomic Energy Authority
09/07/2012,MATERIALS & SPARES,FUSION,OXFORD BOLTS & BEARINGS,5100276876,43.30,United Kingdom Atomic Energy Authority,United Kingdom Atomic Energy Authority
09/07/2012,MATERIALS & SPARES,FUSION,NEWCASTLE OPTICAL ENGINEERING LTD,5100276880,370.00,United Kingdom Atomic Energy Authority,United Kingdom Atomic Energy Authority
09/07/2012,MATERIALS & SPARES,FUSION,NEWCASTLE OPTICAL ENGINEERING LTD,5100276881,378.00,United Kingdom Atomic Energy Authority,United Kingdom Atomic Energy Authority
11/07/2012,BUILDING REPAIRS,FUSION,LORNE STEWART PLC,5100276895,259.26,United Kingdom Atomic Energy Authority,United Kingdom Atomic Energy Authority
04/07/2012,MATERIALS & SPARES,FUSION,ANIXTER (UK) LTD,5100276909,195.20,United Kingdom Atomic Energy Authority,United Kingdom Atomic Energy Authority
09/07/2012,MATERIALS & SPARES,FUSION,DURBIN METAL INDUSTRIES LTD,5100276910,108.90,United Kingdom Atomic Energy Authority,United Kingdom Atomic Energy Authority
09/07/2012,MATERIALS & SPARES,FUSION,DURBIN METAL INDUSTRIES LTD,5100276911,46.00,United Kingdom Atomic Energy Authority,United Kingdom Atomic Energy Authority
09/07/2012,MATERIALS & SPARES,FUSION,DURBIN METAL INDUSTRIES LTD,5100276912,15.00,United Kingdom Atomic Energy Authority,United Kingdom Atomic Energy Authority
04/07/2012,CONSUMABLES,FUSION,WESSEX CHEMICAL FACTORS,5100276914,140.00,United Kingdom Atomic Energy Authority,United Kingdom Atomic Energy Authority
09/07/2012,GASES,FUSION,BOC LTD,5100276954,15.12,United Kingdom Atomic Energy Authority,United Kingdom Atomic Energy Authority
09/07/2012,MATERIALS & SPARES,FUSION,SMITHS METAL CENTRES,5100276966,27.67,United Kingdom Atomic Energy Authority,United Kingdom Atomic Energy Authority
09/07/2012,CONSUMABLES,FUSION,CARILLON INDUSTRIAL SERVICES LTD,5100276977,115.20,United Kingdom Atomic Energy Authority,United Kingdom Atomic Energy Authority
09/07/2012,CONSUMABLES,FUSION,CARILLON INDUSTRIAL SERVICES LTD,5100276979,101.22,United Kingdom Atomic Energy Authority,United Kingdom Atomic Energy Authority
09/07/2012,CONSUMABLES,FUSION,CARILLON INDUSTRIAL SERVICES LTD,5100276980,74.42,United Kingdom Atomic Energy Authority,United Kingdom Atomic Energy Authority
09/07/2012,MATERIALS & SPARES,FUSION,FARNELL ELECTRONIC,5100276996,147.70,United Kingdom Atomic Energy Authority,United Kingdom Atomic Energy Authority
09/07/2012,PROFESSIONAL SERVICES,FUSION,METRO ENGINEERING AND PLATING WORKS,5100277010,100.00,United Kingdom Atomic Energy Authority,United Kingdom Atomic Energy Authority
09/07/2012,HIRED STAFF,FUSION,CHAMPION EMPLOYMENT LTD,5100277012,774.75,United Kingdom Atomic Energy Authority,United Kingdom Atomic Energy Authority
09/07/2012,HIRED STAFF,FUSION,CHAMPION EMPLOYMENT LTD,5100277013,712.38,United Kingdom Atomic Energy Authority,United Kingdom Atomic Energy Authority
09/07/2012,HIRED STAFF,FUSION,CHAMPION EMPLOYMENT LTD,5100277014,1055.84,United Kingdom Atomic Energy Authority,United Kingdom Atomic Energy Authority
09/07/2012,HIRED STAFF,FUSION,CHAMPION EMPLOYMENT LTD,5100277015,688.13,United Kingdom Atomic Energy Authority,United Kingdom Atomic Energy Authority
09/07/2012,HIRED STAFF,FUSION,CHAMPION EMPLOYMENT LTD,5100277017,424.80,United Kingdom Atomic Energy Authority,United Kingdom Atomic Energy Authority
09/07/2012,HIRED STAFF,FUSION,CHAMPION EMPLOYMENT LTD,5100277018,688.13,United Kingdom Atomic Energy Authority,United Kingdom Atomic Energy Authority
09/07/2012,PERSONAL PROTECTIVE EQUIPMENT,FUSION,ARCO LTD,5100277066,-46.66,United Kingdom Atomic Energy Authority,United Kingdom Atomic Energy Authority
09/07/2012,CONSUMABLES,FUSION,CARILLON INDUSTRIAL SERVICES LTD,5100277095,102.04,United Kingdom Atomic Energy Authority,United Kingdom Atomic Energy Authority
09/07/2012,CONSUMABLES,FUSION,CARILLON INDUSTRIAL SERVICES LTD,5100277096,64.01,United Kingdom Atomic Energy Authority,United Kingdom Atomic Energy Authority
09/07/2012,PLANT & EQUIPMENT,FUSION,ADVENT RESEARCH MATERIALS LTD,5100277101,347.00,United Kingdom Atomic Energy Authority,United Kingdom Atomic Energy Authority
11/07/2012,PROFESSIONAL SERVICES,FUSION,SPECIALIST WELDING SERVICES,5100277201,465.00,United Kingdom Atomic Energy Authority,United Kingdom Atomic Energy Authority
16/07/2012,MATERIALS & SPARES,FUSION,DURBIN METAL INDUSTRIES LTD,5100277206,141.50,United Kingdom Atomic Energy Authority,United Kingdom Atomic Energy Authority
16/07/2012,PLANT & EQUIPMENT,FUSION,SPANOPTIC LTD,5100277211,429.50,United Kingdom Atomic Energy Authority,United Kingdom Atomic Energy Authority
16/07/2012,LAUNDRY,FUSION,CLEAN LINEN SERVICES LTD,5100277212,61.76,United Kingdom Atomic Energy Authority,United Kingdom Atomic Energy Authority
16/07/2012,HIRED STAFF,FUSION,CHAMPION EMPLOYMENT LTD,5100277213,405.92,United Kingdom Atomic Energy Authority,United Kingdom Atomic Energy Authority
16/07/2012,HIRED STAFF,FUSION,CHAMPION EMPLOYMENT LTD,5100277214,688.13,United Kingdom Atomic Energy Authority,United Kingdom Atomic Energy Authority
18/07/2012,HIRED STAFF,FUSION,CHAMPION EMPLOYMENT LTD,5100277215,789.21,United Kingdom Atomic Energy Authority,United Kingdom Atomic Energy Authority
16/07/2012,HIRED STAFF,FUSION,CHAMPION EMPLOYMENT LTD,5100277216,574.50,United Kingdom Atomic Energy Authority,United Kingdom Atomic Energy Authority
16/07/2012,HIRED STAFF,FUSION,CHAMPION EMPLOYMENT LTD,5100277217,774.75,United Kingdom Atomic Energy Authority,United Kingdom Atomic Energy Authority
12/07/2012,GASES,FUSION,BOC LTD,5100277224,68.50,United Kingdom Atomic Energy Authority,United Kingdom Atomic Energy Authority
16/07/2012,MATERIALS & SPARES,FUSION,KURT J LESKER,5100277268,125.50,United Kingdom Atomic Energy Authority,United Kingdom Atomic Energy Authority
16/07/2012,PLANT & EQUIPMENT,FUSION,JOHNSON MATTHEY PLC,5100277274,548.88,United Kingdom Atomic Energy Authority,United Kingdom Atomic Energy Authority
16/07/2012,MATERIALS & SPARES,FUSION,DURBIN METAL INDUSTRIES LTD,5100277313,192.00,United Kingdom Atomic Energy Authority,United Kingdom Atomic Energy Authority
12/07/2012,GASES,FUSION,BOC LTD,5100277392,-68.50,United Kingdom Atomic Energy Authority,United Kingdom Atomic Energy Authority
16/07/2012,GASES,FUSION,BOC LTD,5100277393,68.50,United Kingdom Atomic Energy Authority,United Kingdom Atomic Energy Authority
16/07/2012,MATERIALS & SPARES,FUSION,OXFORD BOLTS & BEARINGS,5100277395,6.00,United Kingdom Atomic Energy Authority,United Kingdom Atomic Energy Authority
16/07/2012,PERSONAL PROTECTIVE EQUIPMENT,FUSION,ARCO LTD,5100277423,24.62,United Kingdom Atomic Energy Authority,United Kingdom Atomic Energy Authority
23/07/2012,MATERIALS & SPARES,FUSION,NEWCASTLE OPTICAL ENGINEERING LTD,5100277517,452.00,United Kingdom Atomic Energy Authority,United Kingdom Atomic Energy Authority
23/07/2012,MATERIALS & SPARES,FUSION,DURBIN METAL INDUSTRIES LTD,5100277522,31.85,United Kingdom Atomic Energy Authority,United Kingdom Atomic Energy Authority
23/07/2012,MATERIALS & SPARES,FUSION,DURBIN METAL INDUSTRIES LTD,5100277523,96.00,United Kingdom Atomic Energy Authority,United Kingdom Atomic Energy Authority
23/07/2012,MATERIALS & SPARES,FUSION,DURBIN METAL INDUSTRIES LTD,5100277524,26.05,United Kingdom Atomic Energy Authority,United Kingdom Atomic Energy Authority
23/07/2012,BUILDING REPAIRS,FUSION,KNOWLES & SONS (OXFORD) LTD,5100277529,6061.81,United Kingdom Atomic Energy Authority,United Kingdom Atomic Energy Authority
23/07/2012,MATERIALS & SPARES,FUSION,DURBIN METAL INDUSTRIES LTD,5100277552,63.00,United Kingdom Atomic Energy Authority,United Kingdom Atomic Energy Authority
23/07/2012,MATERIALS & SPARES,FUSION,DURBIN METAL INDUSTRIES LTD,5100277553,35.00,United Kingdom Atomic Energy Authority,United Kingdom Atomic Energy Authority
23/07/2012,MATERIALS & SPARES,FUSION,DURBIN METAL INDUSTRIES LTD,5100277554,55.80,United Kingdom Atomic Energy Authority,United Kingdom Atomic Energy Authority
23/07/2012,HIRED STAFF,FUSION,CHAMPION EMPLOYMENT LTD,5100277572,1022.67,United Kingdom Atomic Energy Authority,United Kingdom Atomic Energy Authority
23/07/2012,HIRED STAFF,FUSION,CHAMPION EMPLOYMENT LTD,5100277573,574.50,United Kingdom Atomic Energy Authority,United Kingdom Atomic Energy Authority
23/07/2012,HIRED STAFF,FUSION,CHAMPION EMPLOYMENT LTD,5100277574,906.53,United Kingdom Atomic Energy Authority,United Kingdom Atomic Energy Authority
23/07/2012,HIRED STAFF,FUSION,CHAMPION EMPLOYMENT LTD,5100277575,688.13,United Kingdom Atomic Energy Authority,United Kingdom Atomic Energy Authority
23/07/2012,HIRED STAFF,FUSION,CHAMPION EMPLOYMENT LTD,5100277577,934.56,United Kingdom Atomic Energy Authority,United Kingdom Atomic Energy Authority
23/07/2012,HIRED STAFF,FUSION,CHAMPION EMPLOYMENT LTD,5100277578,908.33,United Kingdom Atomic Energy Authority,United Kingdom Atomic Energy Authority
23/07/2012,MATERIALS & SPARES,FUSION,CROSSMAN ENGINEERING,5100277584,195.00,United Kingdom Atomic Energy Authority,United Kingdom Atomic Energy Authority
23/07/2012,MATERIALS & SPARES,FUSION,JAC TOOLS LTD,5100277652,42.66,United Kingdom Atomic Energy Authority,United Kingdom Atomic Energy Authority
23/07/2012,MATERIALS & SPARES,FUSION,DURBIN METAL INDUSTRIES LTD,5100277661,105.75,United Kingdom Atomic Energy Authority,United Kingdom Atomic Energy Authority
